Body_Code,Body_Name,Service_Area,Responsible_Unit,Expense_Type,Expense_Code,Narrative,Date,Transaction_Number,Amount,Supplier_Name
http://statistics.data.gov.uk/id/local-authority/38,Oxfordshire County Council,Children's Social Care,Supervised Contact,Allowances,35200,Car Allowance,30/09/2012,Payroll,431.55,REDACTED PERSONAL DATA
http://statistics.data.gov.uk/id/local-authority/38,Oxfordshire County Council,Children's Social Care,Supervised Contact,Allowances,35200,Car Allowance,30/09/2012,Payroll,479.37,REDACTED PERSONAL DATA
http://statistics.data.gov.uk/id/local-authority/38,Oxfordshire County Council,Education & Early Intervention,Yenworthy Lodge,Allowances,35200,Car Allowance,30/09/2012,Payroll,613.2,REDACTED PERSONAL DATA
http://statistics.data.gov.uk/id/local-authority/38,Oxfordshire County Council,Children's Social Care,Adoption,Allowances,35200,Car Allowance,30/09/2012,Payroll,459.55,REDACTED PERSONAL DATA
http://statistics.data.gov.uk/id/local-authority/38,Oxfordshire County Council,Education & Early Intervention,ECAR - Every Child A Reader,Expenses,46100,Staff Subs Allows,30/09/2012,Payroll,559.4,REDACTED PERSONAL DATA
http://statistics.data.gov.uk/id/local-authority/38,Oxfordshire County Council,SCS Pooled Budgets,Rehabilitation - Central Locality,Allowances,35200,Car Allowance,30/09/2012,Payroll,466.2,REDACTED PERSONAL DATA
http://statistics.data.gov.uk/id/local-authority/38,Oxfordshire County Council,Children's Social Care,Fam Supp City 2,Allowances,35200,Car Allowance,30/09/2012,Payroll,526.75,REDACTED PERSONAL DATA
http://statistics.data.gov.uk/id/local-authority/38,Oxfordshire County Council,Children's Social Care,Leaving Care South,Allowances,35200,Car Allowance,30/09/2012,Payroll,1097.25,REDACTED PERSONAL DATA
http://statistics.data.gov.uk/id/local-authority/38,Oxfordshire County Council,Children's Social Care,Looked After City 2,Allowances,35200,Car Allowance,30/09/2012,Payroll,656.25,REDACTED PERSONAL DATA
http://statistics.data.gov.uk/id/local-authority/38,Oxfordshire County Council,Highways & Transport,Traffic Signals Staff,Training Expenses,19983,Qual Traing - Oth,30/09/2012,Payroll,439,REDACTED PERSONAL DATA
http://statistics.data.gov.uk/id/local-authority/38,Oxfordshire County Council,Highways & Transport,Streetworks,Allowances,35200,Car Allowance,30/09/2012,Payroll,457.1,REDACTED PERSONAL DATA
http://statistics.data.gov.uk/id/local-authority/38,Oxfordshire County Council,Education & Early Intervention,Educational Effectiveness Man. Staff,Other Employee Expenses,19992,Remvl/Relocn Exps,30/09/2012,Payroll,6309.92,REDACTED PERSONAL DATA
http://statistics.data.gov.uk/id/local-authority/38,Oxfordshire County Council,Growth & Infrastructure,Infrastructure Planning Management,Other Employee Expenses,19992,Remvl/Relocn Exps,30/09/2012,Payroll,852.71,REDACTED PERSONAL DATA
http://statistics.data.gov.uk/id/local-authority/38,Oxfordshire County Council,Growth & Infrastructure,Infrastructure Planning Management,Other Employee Expenses,19992,Remvl/Relocn Exps,30/09/2012,Payroll,852.71,REDACTED PERSONAL DATA
http://statistics.data.gov.uk/id/local-authority/38,Oxfordshire County Council,Growth & Infrastructure,Infrastructure Planning Management,Other Employee Expenses,19992,Remvl/Relocn Exps,30/09/2012,Payroll,793.52,REDACTED PERSONAL DATA
http://statistics.data.gov.uk/id/local-authority/38,Oxfordshire County Council,Growth & Infrastructure,Infrastructure Planning Management,Other Employee Expenses,19992,Remvl/Relocn Exps,30/09/2012,Payroll,734.33,REDACTED PERSONAL DATA
http://statistics.data.gov.uk/id/local-authority/38,Oxfordshire County Council,Social & Community Services,Service Delivery General,Other Employee Expenses,19992,Remvl/Relocn Exps,30/09/2012,Payroll,5000,REDACTED PERSONAL DATA
http://statistics.data.gov.uk/id/local-authority/38,Oxfordshire County Council,Highways & Transport,Landscape & Environment Staff,Allowances,35200,Car Allowance,30/09/2012,Payroll,570.85,REDACTED PERSONAL DATA
http://statistics.data.gov.uk/id/local-authority/38,Oxfordshire County Council,,,Expenses,46100,Staff Subs Allows,30/09/2012,Payroll,2296.27,REDACTED PERSONAL DATA
http://statistics.data.gov.uk/id/local-authority/38,Oxfordshire County Council,Children's Social Care,Aim Higher Funding,Grants and Subscriptions,47150,Grants to Individuals,17/09/2012,3301601272,565.65,Abacus Care  Ltd
http://statistics.data.gov.uk/id/local-authority/38,Oxfordshire County Council,SCS Pooled Budgets,OP Pool Fast Track,Other Agency and Contracted Services,57304,Home Support (Ext) Palliative Care,28/09/2012,3350227599,1084.37,Abacus Care  Ltd
http://statistics.data.gov.uk/id/local-authority/38,Oxfordshire County Council,STD Insurance,Motor Fleet,Motor Insurance Fund Rev AC,Z5151,Motor IF Own Damage,18/09/2012,3301601517,684.6,AWP Body Repairs
http://statistics.data.gov.uk/id/local-authority/38,Oxfordshire County Council,SCS Other Cost Centres,Home Support trading account for PBs,Other Agency and Contracted Services,57300,Home Support (Ext) OS&HCD,05/09/2012,7000437626,513.21,Allied Healthcare Group Ltd
http://statistics.data.gov.uk/id/local-authority/38,Oxfordshire County Council,SCS Pooled Budgets,OP Pool Continuing Care Home Support,Other Agency and Contracted Services,57302,Home Support (Ext) Continuing Care,14/09/2012,3350227316,599.75,Allied Healthcare Group Ltd
http://statistics.data.gov.uk/id/local-authority/38,Oxfordshire County Council,SCS Pooled Budgets,OP Pool Continuing Care Home Support,Other Agency and Contracted Services,57302,Home Support (Ext) Continuing Care,17/09/2012,3350227396,619.75,Allied Healthcare Group Ltd
http://statistics.data.gov.uk/id/local-authority/38,Oxfordshire County Council,SCS Pooled Budgets,OP Pool Continuing Care Home Support,Other Agency and Contracted Services,57302,Home Support (Ext) Continuing Care,17/09/2012,3350227397,590,Allied Healthcare Group Ltd
http://statistics.data.gov.uk/id/local-authority/38,Oxfordshire County Council,SCS Other Cost Centres,Home Support trading account for PBs,Other Agency and Contracted Services,57300,Home Support (Ext) OS&HCD,19/09/2012,7000443743,18021.06,Allied Healthcare Group Ltd
http://statistics.data.gov.uk/id/local-authority/38,Oxfordshire County Council,SCS Pooled Budgets,OP Pool Continuing Care Home Support,Other Agency and Contracted Services,57302,Home Support (Ext) Continuing Care,28/09/2012,3350227623,5346.64,Allied Healthcare Group Ltd
http://statistics.data.gov.uk/id/local-authority/38,Oxfordshire County Council,SCS Pooled Budgets,Community Support Budget - Chipping Nort,Contract Hire/Leasing,33300,Transport (General),10/09/2012,7000438540,500.8,Ambassador Taxis
http://statistics.data.gov.uk/id/local-authority/38,Oxfordshire County Council,Education & Early Intervention,Oxford Nth SEN Trans,Contract Hire/Leasing,33101,Home to School Trans,03/09/2012,7000436560,3090,Ancil Services
http://statistics.data.gov.uk/id/local-authority/38,Oxfordshire County Council,Education & Early Intervention,Oxford Nth SEN Trans,Contract Hire/Leasing,33300,Transport (General),03/09/2012,7000436561,678.9,Ancil Services
http://statistics.data.gov.uk/id/local-authority/38,Oxfordshire County Council,Education & Early Intervention,Abingdon SEN Trans,Contract Hire/Leasing,33101,Home to School Trans,03/09/2012,7000436562,1140,Ancil Services
http://statistics.data.gov.uk/id/local-authority/38,Oxfordshire County Council,SCS Other Cost Centres,Home Support trading account for PBs,Other Agency and Contracted Services,57300,Home Support (Ext) OS&HCD,05/09/2012,7000437628,3874.34,Home Choice Care
http://statistics.data.gov.uk/id/local-authority/38,Oxfordshire County Council,SCS Other Cost Centres,Home Support trading account for PBs,Other Agency and Contracted Services,57300,Home Support (Ext) OS&HCD,19/09/2012,7000443745,22357.91,Home Choice Care
http://statistics.data.gov.uk/id/local-authority/38,Oxfordshire County Council,Highways & Transport,Traffic Signals Principal Roads,Private Contractors,56400,Major Contracts,12/09/2012,3301593158,506,ATG Access Ltd
http://statistics.data.gov.uk/id/local-authority/38,Oxfordshire County Council,Highways & Transport,Rising Bollards,Private Contractors,56400,Major Contracts,12/09/2012,3301593495,829,ATG Access Ltd
http://statistics.data.gov.uk/id/local-authority/38,Oxfordshire County Council,SCS Other Cost Centres,Control Account Trojan Residential Care,Balance Sheet General,B2040,ABACUS Accounts Payable Control A/c,13/09/2012,7000440279,120042.66,Barchester Healthcare Homes Ltd
http://statistics.data.gov.uk/id/local-authority/38,Oxfordshire County Council,Children's Social Care,Aim Higher Funding,Contract Hire/Leasing,33300,Transport (General),07/09/2012,7000438516,520,Black and White Taxis
http://statistics.data.gov.uk/id/local-authority/38,Oxfordshire County Council,Children's Social Care,Looked After North,Contract Hire/Leasing,33300,Transport (General),12/09/2012,7000439510,1040,Black and White Taxis
http://statistics.data.gov.uk/id/local-authority/38,Oxfordshire County Council,Children's Social Care,Fam Supp South,Contract Hire/Leasing,33300,Transport (General),14/09/2012,7000443322,450,Black and White Taxis
http://statistics.data.gov.uk/id/local-authority/38,Oxfordshire County Council,Children's Social Care,Fam Supp South,Contract Hire/Leasing,33300,Transport (General),14/09/2012,7000443323,750,Black and White Taxis
http://statistics.data.gov.uk/id/local-authority/38,Oxfordshire County Council,Children's Social Care,Fam Supp South,Contract Hire/Leasing,33300,Transport (General),14/09/2012,7000443324,1500,Black and White Taxis
http://statistics.data.gov.uk/id/local-authority/38,Oxfordshire County Council,Highways & Transport,"Special Transport, Fleet Operations",Contract Hire/Leasing,33300,Transport (General),14/09/2012,7000443338,1049,Black and White Taxis
http://statistics.data.gov.uk/id/local-authority/38,Oxfordshire County Council,Growth & Infrastructure,Corporate Properties,Grounds Maintenance,22207,Health & Safety,07/09/2012,3350226875,916.76,Morgan Sindall (Construction) plc
http://statistics.data.gov.uk/id/local-authority/38,Oxfordshire County Council,Growth & Infrastructure,Corporate Properties,Total Responsive R&M,21104,Windows & Doors (Urgent),07/09/2012,3350226903,586.13,Morgan Sindall (Construction) plc
http://statistics.data.gov.uk/id/local-authority/38,Oxfordshire County Council,Growth & Infrastructure,Corporate Properties,Total Responsive R&M,21104,Windows & Doors (Urgent),07/09/2012,3350226966,554.78,Morgan Sindall (Construction) plc
http://statistics.data.gov.uk/id/local-authority/38,Oxfordshire County Council,Schools,Burford School & Community College,Total Responsive R&M,21102,Flat Roofs (Urg),07/09/2012,3350226978,1057.25,Morgan Sindall (Construction) plc
http://statistics.data.gov.uk/id/local-authority/38,Oxfordshire County Council,Social & Community Services,Older People  Service Agreements (Base),Contract Hire/Leasing,33103,Transport to Centres,12/09/2012,7000438714,10315.16,British Red Cross Society
http://statistics.data.gov.uk/id/local-authority/38,Oxfordshire County Council,SCS Other Cost Centres,Control Account Trojan Residential Care,Balance Sheet General,B2040,ABACUS Accounts Payable Control A/c,13/09/2012,7000439944,63626.37,Caretech Community Services Ltd
http://statistics.data.gov.uk/id/local-authority/38,Oxfordshire County Council,SCS Other Cost Centres,Home Support trading account for PBs,Other Agency and Contracted Services,57300,Home Support (Ext) OS&HCD,05/09/2012,7000437633,7507.96,Charterville Care At Home Ltd
http://statistics.data.gov.uk/id/local-authority/38,Oxfordshire County Council,SCS Pooled Budgets,PD Pool Continuing Care Home Support,Other Agency and Contracted Services,57302,Home Support (Ext) Continuing Care,10/09/2012,3350227211,1834.06,Charterville Care At Home Ltd
http://statistics.data.gov.uk/id/local-authority/38,Oxfordshire County Council,SCS Other Cost Centres,Home Support trading account for PBs,Other Agency and Contracted Services,57300,Home Support (Ext) OS&HCD,19/09/2012,7000443750,23794.81,Charterville Care At Home Ltd
http://statistics.data.gov.uk/id/local-authority/38,Oxfordshire County Council,SCS Pooled Budgets,LD Team budget (CMPB) North,Contract Hire/Leasing,33300,Transport (General),07/09/2012,7000438451,546,Cheney Coaches Limited
http://statistics.data.gov.uk/id/local-authority/38,Oxfordshire County Council,SCS Other Cost Centres,Home Support trading account for PBs,Other Agency and Contracted Services,57300,Home Support (Ext) OS&HCD,05/09/2012,7000437634,4379.08,Cherwell Care Services
http://statistics.data.gov.uk/id/local-authority/38,Oxfordshire County Council,SCS Pooled Budgets,OP Pool Continuing Care Home Support,Other Agency and Contracted Services,57302,Home Support (Ext) Continuing Care,06/09/2012,3350227153,1324.32,Cherwell Care Services
http://statistics.data.gov.uk/id/local-authority/38,Oxfordshire County Council,SCS Pooled Budgets,PD Pool Continuing Care Home Support,Other Agency and Contracted Services,57302,Home Support (Ext) Continuing Care,10/09/2012,3350227213,1758.25,Cherwell Care Services
http://statistics.data.gov.uk/id/local-authority/38,Oxfordshire County Council,SCS Pooled Budgets,OP Pool Continuing Care Home Support,Other Agency and Contracted Services,57302,Home Support (Ext) Continuing Care,17/09/2012,3350227353,1278.38,Cherwell Care Services
http://statistics.data.gov.uk/id/local-authority/38,Oxfordshire County Council,SCS Pooled Budgets,PD Pool Continuing Care Home Support,Other Agency and Contracted Services,57302,Home Support (Ext) Continuing Care,17/09/2012,3350227357,1652.07,Cherwell Care Services
http://statistics.data.gov.uk/id/local-authority/38,Oxfordshire County Council,SCS Other Cost Centres,Home Support trading account for PBs,Other Agency and Contracted Services,57300,Home Support (Ext) OS&HCD,19/09/2012,7000443751,16452.03,Cherwell Care Services
http://statistics.data.gov.uk/id/local-authority/38,Oxfordshire County Council,Social & Community Services,Women at Risk of Domestic Violence,Other Agency and Contracted Services,57352,Monthly,28/09/2012,7000447430,824.06,Cherwell Housing Trust
http://statistics.data.gov.uk/id/local-authority/38,Oxfordshire County Council,Social & Community Services,Women at Risk of Domestic Violence,Other Agency and Contracted Services,57352,Monthly,28/09/2012,7000447431,2305.03,Cherwell Housing Trust
http://statistics.data.gov.uk/id/local-authority/38,Oxfordshire County Council,Social & Community Services,Women at Risk of Domestic Violence,Other Agency and Contracted Services,57352,Monthly,28/09/2012,7000447432,2376.1,Cherwell Housing Trust
http://statistics.data.gov.uk/id/local-authority/38,Oxfordshire County Council,Social & Community Services,Women at Risk of Domestic Violence,Other Agency and Contracted Services,57352,Monthly,28/09/2012,7000447433,3296.26,Cherwell Housing Trust
http://statistics.data.gov.uk/id/local-authority/38,Oxfordshire County Council,Social & Community Services,Women at Risk of Domestic Violence,Other Agency and Contracted Services,57352,Monthly,28/09/2012,7000447434,9220.13,Cherwell Housing Trust
http://statistics.data.gov.uk/id/local-authority/38,Oxfordshire County Council,Social & Community Services,Women at Risk of Domestic Violence,Other Agency and Contracted Services,57352,Monthly,28/09/2012,7000447435,9504.4,Cherwell Housing Trust
http://statistics.data.gov.uk/id/local-authority/38,Oxfordshire County Council,Social & Community Services,Homeless People,Other Agency and Contracted Services,57352,Monthly,28/09/2012,7000447436,47200.34,Cherwell Housing Trust
http://statistics.data.gov.uk/id/local-authority/38,Oxfordshire County Council,SCS Other Cost Centres,Control Account Trojan Residential Care,Balance Sheet General,B2040,ABACUS Accounts Payable Control A/c,13/09/2012,7000439967,135163.45,Choice Ltd
http://statistics.data.gov.uk/id/local-authority/38,Oxfordshire County Council,Social & Community Services,Headington/City DTS,Contract Hire/Leasing,33103,Transport to Centres,12/09/2012,7000438692,594.22,Courtesy Cars
http://statistics.data.gov.uk/id/local-authority/38,Oxfordshire County Council,SCS Pooled Budgets,LD Team budget (CMPB) - City,Contract Hire/Leasing,33300,Transport (General),12/09/2012,7000438693,844.23,Courtesy Cars
http://statistics.data.gov.uk/id/local-authority/38,Oxfordshire County Council,SCS Pooled Budgets,LD Team budget (CMPB) - City,Contract Hire/Leasing,33300,Transport (General),12/09/2012,7000438694,741.56,Courtesy Cars
http://statistics.data.gov.uk/id/local-authority/38,Oxfordshire County Council,SCS Pooled Budgets,LD Team budget (CMPB) - City,Contract Hire/Leasing,33300,Transport (General),12/09/2012,7000438698,1189.43,Courtesy Cars
http://statistics.data.gov.uk/id/local-authority/38,Oxfordshire County Council,Children's Social Care,Looked After South,Contract Hire/Leasing,33300,Transport (General),12/09/2012,7000438701,544,Courtesy Cars
http://statistics.data.gov.uk/id/local-authority/38,Oxfordshire County Council,Social & Community Services,Headington/City DTS,Contract Hire/Leasing,33103,Transport to Centres,17/09/2012,7000443473,872.76,Courtesy Cars
http://statistics.data.gov.uk/id/local-authority/38,Oxfordshire County Council,SCS Pooled Budgets,LD Team budget (CMPB) - City,Contract Hire/Leasing,33300,Transport (General),17/09/2012,7000443475,747.82,Courtesy Cars
http://statistics.data.gov.uk/id/local-authority/38,Oxfordshire County Council,SCS Pooled Budgets,LD Team budget (CMPB) - City,Contract Hire/Leasing,33300,Transport (General),17/09/2012,7000443479,1132.4,Courtesy Cars
http://statistics.data.gov.uk/id/local-authority/38,Oxfordshire County Council,Children's Social Care,Disabilities Team South,Contract Hire/Leasing,33300,Transport (General),06/09/2012,7000437794,1369.74,Crescent Cars Ltd
http://statistics.data.gov.uk/id/local-authority/38,Oxfordshire County Council,Children's Social Care,Looked After South,Contract Hire/Leasing,33300,Transport (General),06/09/2012,7000437795,432,Crescent Cars Ltd
http://statistics.data.gov.uk/id/local-authority/38,Oxfordshire County Council,Children's Social Care,Looked After South,Contract Hire/Leasing,33300,Transport (General),26/09/2012,7000446461,-432,Crescent Cars Ltd
http://statistics.data.gov.uk/id/local-authority/38,Oxfordshire County Council,Children's Social Care,Disabilities Team South,Contract Hire/Leasing,33300,Transport (General),26/09/2012,7000446462,-1369.74,Crescent Cars Ltd
http://statistics.data.gov.uk/id/local-authority/38,Oxfordshire County Council,SCS Other Cost Centres,Home Support trading account for PBs,Other Agency and Contracted Services,57300,Home Support (Ext) OS&HCD,05/09/2012,7000437637,12363.83,Day & Night Care Assistance
http://statistics.data.gov.uk/id/local-authority/38,Oxfordshire County Council,SCS Other Cost Centres,Home Support trading account for PBs,Other Agency and Contracted Services,57300,Home Support (Ext) OS&HCD,19/09/2012,7000443754,54709.23,Day & Night Care Assistance
http://statistics.data.gov.uk/id/local-authority/38,Oxfordshire County Council,SCS Other Cost Centres,Control Account Trojan Residential Care,Balance Sheet General,B2040,ABACUS Accounts Payable Control A/c,13/09/2012,7000440282,22905.99,Devon & Cornwall Autistics
http://statistics.data.gov.uk/id/local-authority/38,Oxfordshire County Council,Children's Social Care,Looked After South,Contract Hire/Leasing,33101,Home to School Trans,17/09/2012,7000443456,752,Evenlode Taxis
http://statistics.data.gov.uk/id/local-authority/38,Oxfordshire County Council,Education & Early Intervention,FE Special Trans,Contract Hire/Leasing,33101,Home to School Trans,03/09/2012,7000436567,850,Excel Cars
http://statistics.data.gov.uk/id/local-authority/38,Oxfordshire County Council,Education & Early Intervention,LDD After School Acc,Contract Hire/Leasing,33101,Home to School Trans,07/09/2012,7000438494,561,Excel Cars
http://statistics.data.gov.uk/id/local-authority/38,Oxfordshire County Council,SCS Other Cost Centres,Home Support trading account for PBs,Other Agency and Contracted Services,57300,Home Support (Ext) OS&HCD,05/09/2012,7000437641,7563.72,Greigcare Home Service
http://statistics.data.gov.uk/id/local-authority/38,Oxfordshire County Council,SCS Other Cost Centres,Home Support trading account for PBs,Other Agency and Contracted Services,57300,Home Support (Ext) OS&HCD,19/09/2012,7000443758,17585.38,Greigcare Home Service
http://statistics.data.gov.uk/id/local-authority/38,Oxfordshire County Council,Growth & Infrastructure,Corporate Properties,Total Responsive R&M,21108,Heating (Urgent),27/09/2012,3350227581,3898,H and E Engineers (Maintenance) Ltd
http://statistics.data.gov.uk/id/local-authority/38,Oxfordshire County Council,Education & Early Intervention,LDD After School Acc,Contract Hire/Leasing,33101,Home to School Trans,12/09/2012,7000439473,808,Harolds Cars Ltd
http://statistics.data.gov.uk/id/local-authority/38,Oxfordshire County Council,Children's Social Care,Aim Higher Funding,Contract Hire/Leasing,33300,Transport (General),12/09/2012,7000439474,1118,Harolds Cars Ltd
http://statistics.data.gov.uk/id/local-authority/38,Oxfordshire County Council,Highways & Transport,"Special Transport, Trans Co-ordination",Allowances,35100,Volunteer Travel Expenses,17/09/2012,7000443460,518.5,Highlands Day Centre
http://statistics.data.gov.uk/id/local-authority/38,Oxfordshire County Council,Education & Early Intervention,FE Special Trans,Contract Hire/Leasing,33101,Home to School Trans,14/09/2012,7000443307,1200,Hunts Cabs
http://statistics.data.gov.uk/id/local-authority/38,Oxfordshire County Council,Children's Social Care,Fam Supp North,Contract Hire/Leasing,33101,Home to School Trans,14/09/2012,7000443310,840,Hunts Cabs
http://statistics.data.gov.uk/id/local-authority/38,Oxfordshire County Council,Growth & Infrastructure,Corporate Properties,Total Responsive R&M,21112,H&C Water (Urg),27/09/2012,3350227421,481.76,J N Smith
http://statistics.data.gov.uk/id/local-authority/38,Oxfordshire County Council,Growth & Infrastructure,Corporate Properties,Total Responsive R&M,21104,Windows & Doors (Urgent),27/09/2012,3350227422,545.83,J N Smith
http://statistics.data.gov.uk/id/local-authority/38,Oxfordshire County Council,Growth & Infrastructure,Corporate Properties,Total Responsive R&M,21114,Walls & Fences (Urgent),18/09/2012,3350227416,429.89,Knowles & Son (Oxford) Ltd
http://statistics.data.gov.uk/id/local-authority/38,Oxfordshire County Council,Growth & Infrastructure,Abingdon Fitzharry's School Bungalow,Total Responsive R&M,21114,Walls & Fences (Urgent),18/09/2012,3350227418,605.14,Knowles & Son (Oxford) Ltd
http://statistics.data.gov.uk/id/local-authority/38,Oxfordshire County Council,Growth & Infrastructure,Corporate Properties,Total Responsive R&M,21113,Drainage (Urgent),19/09/2012,3350227420,1065.35,Knowles & Son (Oxford) Ltd
http://statistics.data.gov.uk/id/local-authority/38,Oxfordshire County Council,Social & Community Services,Community Support Budget - City East,Other Agency and Contracted Services,57850,Rented Accomodation,26/09/2012,3301604551,1120,Letting and Property Management
http://statistics.data.gov.uk/id/local-authority/38,Oxfordshire County Council,Social & Community Services,Community Support Budget - City East,Other Agency and Contracted Services,57850,Rented Accomodation,26/09/2012,3301604553,1120,Letting and Property Management
http://statistics.data.gov.uk/id/local-authority/38,Oxfordshire County Council,SCS Pooled Budgets,LD Team budget (CMPB) - City,Contract Hire/Leasing,33300,Transport (General),06/09/2012,7000437738,1148.8,Luxicars Ltd
http://statistics.data.gov.uk/id/local-authority/38,Oxfordshire County Council,Children's Social Care,Aim Higher Funding,Contract Hire/Leasing,33300,Transport (General),03/09/2012,7000436564,1050,Windrush Transport Ltd
http://statistics.data.gov.uk/id/local-authority/38,Oxfordshire County Council,Children's Social Care,Aim Higher Funding,Contract Hire/Leasing,33300,Transport (General),03/09/2012,7000436565,980,Windrush Transport Ltd
http://statistics.data.gov.uk/id/local-authority/38,Oxfordshire County Council,SCS Other Cost Centres,Control Account Trojan Residential Care,Balance Sheet General,B2040,ABACUS Accounts Payable Control A/c,13/09/2012,7000440100,44961.94,Meadow View Nursing Home
http://statistics.data.gov.uk/id/local-authority/38,Oxfordshire County Council,Education & Early Intervention,Oxford Sth SEN Trans,Contract Hire/Leasing,33101,Home to School Trans,21/09/2012,7000444445,417.8,Monarch Oxford
http://statistics.data.gov.uk/id/local-authority/38,Oxfordshire County Council,Education & Early Intervention,Oxford Sth SEN Trans,Contract Hire/Leasing,33101,Home to School Trans,24/09/2012,7000443509,417.8,Monarch Oxford
http://statistics.data.gov.uk/id/local-authority/38,Oxfordshire County Council,SCS Other Cost Centres,Control Account Trojan Residential Care,Balance Sheet General,B2040,ABACUS Accounts Payable Control A/c,13/09/2012,7000440115,6986.31,My Life My Choice Association
http://statistics.data.gov.uk/id/local-authority/38,Oxfordshire County Council,SCS Other Cost Centres,Control Account Trojan Residential Care,Balance Sheet General,B2040,ABACUS Accounts Payable Control A/c,13/09/2012,7000439984,242037.94,Dimensions (NSO) Ltd
http://statistics.data.gov.uk/id/local-authority/38,Oxfordshire County Council,SCS Pooled Budgets,LD Team budget (CMPB) South,Contract Hire/Leasing,33300,Transport (General),07/09/2012,7000438464,1725.2,O B Cars
http://statistics.data.gov.uk/id/local-authority/38,Oxfordshire County Council,SCS Pooled Budgets,LD Team budget (CMPB) South,Contract Hire/Leasing,33300,Transport (General),07/09/2012,7000438466,762.45,O B Cars
http://statistics.data.gov.uk/id/local-authority/38,Oxfordshire County Council,SCS Pooled Budgets,LD Team budget (CMPB) South,Contract Hire/Leasing,33300,Transport (General),19/09/2012,7000444226,1370,O B Cars
http://statistics.data.gov.uk/id/local-authority/38,Oxfordshire County Council,SCS Pooled Budgets,LD Team budget (CMPB) South,Contract Hire/Leasing,33300,Transport (General),19/09/2012,7000444228,586.5,O B Cars
http://statistics.data.gov.uk/id/local-authority/38,Oxfordshire County Council,SCS Other Cost Centres,Control Account Trojan Residential Care,Balance Sheet General,B2040,ABACUS Accounts Payable Control A/c,13/09/2012,7000440128,4384.93,Orchard Lodge Ltd
http://statistics.data.gov.uk/id/local-authority/38,Oxfordshire County Council,Education & Early Intervention,Leading the EYFS (Q&I),Grants and Subscriptions,47100,Grants to Voluntary,25/09/2012,3301604326,833,Oxfam Workplace Nursery
http://statistics.data.gov.uk/id/local-authority/38,Oxfordshire County Council,SCS Other Cost Centres,Control Account Trojan Residential Care,Balance Sheet General,B2040,ABACUS Accounts Payable Control A/c,13/09/2012,7000440165,1046.14,Oxford Advocacy Development Group
http://statistics.data.gov.uk/id/local-authority/38,Oxfordshire County Council,Education & Early Intervention,Special Misc,Public Transport,34101,Pupils Season Ticket,12/09/2012,7000439449,9941,Oxford Bus Company
http://statistics.data.gov.uk/id/local-authority/38,Oxfordshire County Council,Education & Early Intervention,Mainstream Misc,Public Transport,34101,Pupils Season Ticket,12/09/2012,7000439450,37654.5,Oxford Bus Company
http://statistics.data.gov.uk/id/local-authority/38,Oxfordshire County Council,SCS Other Cost Centres,Home Support trading account for PBs,Other Agency and Contracted Services,57300,Home Support (Ext) OS&HCD,05/09/2012,7000437636,13814.02,Oxfordshire Crossroads
http://statistics.data.gov.uk/id/local-authority/38,Oxfordshire County Council,SCS Other Cost Centres,Home Support trading account for PBs,Other Agency and Contracted Services,57300,Home Support (Ext) OS&HCD,19/09/2012,7000443753,37744.83,Oxfordshire Crossroads
http://statistics.data.gov.uk/id/local-authority/38,Oxfordshire County Council,SCS Other Cost Centres,Home Support trading account for PBs,Other Agency and Contracted Services,57300,Home Support (Ext) OS&HCD,05/09/2012,7000437655,16575.92,Response Organisation
http://statistics.data.gov.uk/id/local-authority/38,Oxfordshire County Council,SCS Other Cost Centres,Home Support trading account for PBs,Other Agency and Contracted Services,57300,Home Support (Ext) OS&HCD,19/09/2012,7000443772,10827.11,Response Organisation
http://statistics.data.gov.uk/id/local-authority/38,Oxfordshire County Council,SCS Other Cost Centres,Home Support trading account for PBs,Other Agency and Contracted Services,57300,Home Support (Ext) OS&HCD,05/09/2012,7000437650,14763.68,Oxford Private Care
http://statistics.data.gov.uk/id/local-authority/38,Oxfordshire County Council,SCS Pooled Budgets,OP Pool Continuing Care Home Support,Other Agency and Contracted Services,57302,Home Support (Ext) Continuing Care,07/09/2012,3350227193,3813.6,Oxford Private Care
http://statistics.data.gov.uk/id/local-authority/38,Oxfordshire County Council,SCS Pooled Budgets,OP Pool Continuing Care Home Support,Other Agency and Contracted Services,57302,Home Support (Ext) Continuing Care,10/09/2012,3350227225,1036.45,Oxford Private Care
http://statistics.data.gov.uk/id/local-authority/38,Oxfordshire County Council,SCS Pooled Budgets,OP Pool Continuing Care Home Support,Other Agency and Contracted Services,57302,Home Support (Ext) Continuing Care,10/09/2012,3350227227,1159.38,Oxford Private Care
http://statistics.data.gov.uk/id/local-authority/38,Oxfordshire County Council,SCS Other Cost Centres,Home Support trading account for PBs,Other Agency and Contracted Services,57300,Home Support (Ext) OS&HCD,19/09/2012,7000443767,92026.4,Oxford Private Care
http://statistics.data.gov.uk/id/local-authority/38,Oxfordshire County Council,SCS Pooled Budgets,PD Pool Continuing Care Home Support,Other Agency and Contracted Services,57302,Home Support (Ext) Continuing Care,26/09/2012,3301605403,6524,Oxford Private Care
http://statistics.data.gov.uk/id/local-authority/38,Oxfordshire County Council,SCS Pooled Budgets,OP Pool Continuing Care Home Support,Other Agency and Contracted Services,57302,Home Support (Ext) Continuing Care,28/09/2012,3350227621,2901.13,Oxford Private Care
http://statistics.data.gov.uk/id/local-authority/38,Oxfordshire County Council,SCS Pooled Budgets,LD CMPB - North Transport,Contract Hire/Leasing,33300,Transport (General),17/09/2012,7000443349,842.8,P H Taxis
http://statistics.data.gov.uk/id/local-authority/38,Oxfordshire County Council,SCS Other Cost Centres,Control Account Trojan Residential Care,Balance Sheet General,B2040,ABACUS Accounts Payable Control A/c,13/09/2012,7000439903,4018.07,Phoenix House
http://statistics.data.gov.uk/id/local-authority/38,Oxfordshire County Council,SCS Other Cost Centres,Home Support trading account for PBs,Other Agency and Contracted Services,57300,Home Support (Ext) OS&HCD,05/09/2012,7000437652,3776.06,Premier Personal Care
http://statistics.data.gov.uk/id/local-authority/38,Oxfordshire County Council,SCS Other Cost Centres,Home Support trading account for PBs,Other Agency and Contracted Services,57300,Home Support (Ext) OS&HCD,19/09/2012,7000443769,25412.9,Premier Personal Care
http://statistics.data.gov.uk/id/local-authority/38,Oxfordshire County Council,SCS Pooled Budgets,LD Team budget (CMPB) South,Contract Hire/Leasing,33300,Transport (General),07/09/2012,7000438454,554.85,Pryors Cars
http://statistics.data.gov.uk/id/local-authority/38,Oxfordshire County Council,SCS Pooled Budgets,LD CMPB - South Transport,Contract Hire/Leasing,33300,Transport (General),07/09/2012,7000438455,1513.88,Pryors Cars
http://statistics.data.gov.uk/id/local-authority/38,Oxfordshire County Council,SCS Pooled Budgets,LD Team budget (CMPB) South,Contract Hire/Leasing,33300,Transport (General),07/09/2012,7000438461,581.56,Pryors Cars
http://statistics.data.gov.uk/id/local-authority/38,Oxfordshire County Council,Education & Early Intervention,FE Special Trans,Contract Hire/Leasing,33101,Home to School Trans,24/09/2012,7000444474,1116,A J Associates Ltd
http://statistics.data.gov.uk/id/local-authority/38,Oxfordshire County Council,Children's Social Care,"Children Looked After Team, City 1",Contract Hire/Leasing,33101,Home to School Trans,06/09/2012,7000437782,572.5,Oxon Transport Services Limited t/a
http://statistics.data.gov.uk/id/local-authority/38,Oxfordshire County Council,SCS Pooled Budgets,PD Comm Supp Purchasg Budget - Abingdon,Public Transport,34200,Client Journeys,21/09/2012,7000444390,570,Oxon Transport Services Limited t/a
http://statistics.data.gov.uk/id/local-authority/38,Oxfordshire County Council,Education & Early Intervention,Meadowbrook Transprt,Contract Hire/Leasing,33101,Home to School Trans,27/09/2012,7000447346,520,Oxon Transport Services Limited t/a
http://statistics.data.gov.uk/id/local-authority/38,Oxfordshire County Council,Education & Early Intervention,Oxford Nth SEN Trans,Contract Hire/Leasing,33101,Home to School Trans,27/09/2012,7000447347,760,Oxon Transport Services Limited t/a
http://statistics.data.gov.uk/id/local-authority/38,Oxfordshire County Council,Children's Social Care,Disabilities Team North/City,Contract Hire/Leasing,33300,Transport (General),18/09/2012,7000443706,1722,AKR LTD
http://statistics.data.gov.uk/id/local-authority/38,Oxfordshire County Council,SCS Other Cost Centres,Control Account Trojan Residential Care,Balance Sheet General,B2040,ABACUS Accounts Payable Control A/c,13/09/2012,7000440198,5006.74,Scope
http://statistics.data.gov.uk/id/local-authority/38,Oxfordshire County Council,SCS Other Cost Centres,Control Account Trojan Residential Care,Balance Sheet General,B2040,ABACUS Accounts Payable Control A/c,13/09/2012,7000440199,2477.49,Scope
http://statistics.data.gov.uk/id/local-authority/38,Oxfordshire County Council,SCS Other Cost Centres,Control Account Trojan Residential Care,Balance Sheet General,B2040,ABACUS Accounts Payable Control A/c,13/09/2012,7000440200,9699.73,Scope
http://statistics.data.gov.uk/id/local-authority/38,Oxfordshire County Council,SCS Other Cost Centres,Control Account Trojan Residential Care,Balance Sheet General,B2040,ABACUS Accounts Payable Control A/c,13/09/2012,7000440201,2235.39,Scope
http://statistics.data.gov.uk/id/local-authority/38,Oxfordshire County Council,SCS Other Cost Centres,Control Account Trojan Residential Care,Balance Sheet General,B2040,ABACUS Accounts Payable Control A/c,13/09/2012,7000440304,7060.24,Affinity Trust East
http://statistics.data.gov.uk/id/local-authority/38,Oxfordshire County Council,Education & Early Intervention,Zone 5 - South,Contract Hire/Leasing,33101,Home to School Trans,14/09/2012,7000443296,817.2,Henley Taxis Ltd
http://statistics.data.gov.uk/id/local-authority/38,Oxfordshire County Council,Education & Early Intervention,Zone 5 - South,Contract Hire/Leasing,33101,Home to School Trans,14/09/2012,7000443298,653.7,Henley Taxis Ltd
http://statistics.data.gov.uk/id/local-authority/38,Oxfordshire County Council,Education & Early Intervention,Zone 5 - South,Contract Hire/Leasing,33101,Home to School Trans,14/09/2012,7000443299,603.05,Henley Taxis Ltd
http://statistics.data.gov.uk/id/local-authority/38,Oxfordshire County Council,Education & Early Intervention,Zone 5 - South,Contract Hire/Leasing,33101,Home to School Trans,14/09/2012,7000443301,1855.2,Henley Taxis Ltd
http://statistics.data.gov.uk/id/local-authority/38,Oxfordshire County Council,SCS Pooled Budgets,LD Team budget (CMPB) South,Contract Hire/Leasing,33300,Transport (General),19/09/2012,7000444235,488.16,Henley Taxis Ltd
http://statistics.data.gov.uk/id/local-authority/38,Oxfordshire County Council,Education & Early Intervention,Special Misc,Public Transport,34101,Pupils Season Ticket,12/09/2012,7000439446,2676,Stagecoach Services Ltd
http://statistics.data.gov.uk/id/local-authority/38,Oxfordshire County Council,Education & Early Intervention,Mainstream Misc,Public Transport,34101,Pupils Season Ticket,12/09/2012,7000439447,4530,Stagecoach Services Ltd
http://statistics.data.gov.uk/id/local-authority/38,Oxfordshire County Council,Education & Early Intervention,Mainstream Misc,Public Transport,34101,Pupils Season Ticket,12/09/2012,7000439453,520.2,Thames Travel (Wallingford) Ltd
http://statistics.data.gov.uk/id/local-authority/38,Oxfordshire County Council,SCS Pooled Budgets,OP Pool Continuing Care Home Support,Other Agency and Contracted Services,57302,Home Support (Ext) Continuing Care,06/09/2012,3350227155,655.32,YoungDementia UK
http://statistics.data.gov.uk/id/local-authority/38,Oxfordshire County Council,SCS Pooled Budgets,OP Pool Continuing Care Home Support,Other Agency and Contracted Services,57302,Home Support (Ext) Continuing Care,14/09/2012,3350227317,552.78,YoungDementia UK
http://statistics.data.gov.uk/id/local-authority/38,Oxfordshire County Council,Education & Early Intervention,Leading the EYFS (Q&I),Expenses,46403,Course / Tuition Fee,26/09/2012,3301605160,5000,The Farmhouse Nursery School
http://statistics.data.gov.uk/id/local-authority/38,Oxfordshire County Council,SCS Other Cost Centres,Control Account Trojan Residential Care,Balance Sheet General,B2040,ABACUS Accounts Payable Control A/c,13/09/2012,7000440207,2351.91,Livability
http://statistics.data.gov.uk/id/local-authority/38,Oxfordshire County Council,SCS Other Cost Centres,Control Account Trojan Residential Care,Balance Sheet General,B2040,ABACUS Accounts Payable Control A/c,13/09/2012,7000440274,3638.57,The Shrublands Centre
http://statistics.data.gov.uk/id/local-authority/38,Oxfordshire County Council,SCS Pooled Budgets,LD Team budget (CMPB) South,Contract Hire/Leasing,33300,Transport (General),12/09/2012,7000438725,780,K Cars Kidlington
http://statistics.data.gov.uk/id/local-authority/38,Oxfordshire County Council,SCS Other Cost Centres,Control Account Trojan Residential Care,Balance Sheet General,B2040,ABACUS Accounts Payable Control A/c,13/09/2012,7000440358,39763.47,United Response
http://statistics.data.gov.uk/id/local-authority/38,Oxfordshire County Council,Growth & Infrastructure,Corporate Properties,Total Responsive R&M,21104,Windows & Doors (Urgent),14/09/2012,3350227342,438.5,Windrush Door and Window Services
http://statistics.data.gov.uk/id/local-authority/38,Oxfordshire County Council,Education & Early Intervention,Kilvrough Manor,Contract Hire/Leasing,33103,Transport to Centres,07/09/2012,7000438498,1250,Tappins Coaches
http://statistics.data.gov.uk/id/local-authority/38,Oxfordshire County Council,Education & Early Intervention,Kilvrough Manor,Contract Hire/Leasing,33103,Transport to Centres,07/09/2012,7000438499,1250,Tappins Coaches
http://statistics.data.gov.uk/id/local-authority/38,Oxfordshire County Council,Education & Early Intervention,Kilvrough Manor,Contract Hire/Leasing,33103,Transport to Centres,07/09/2012,7000438500,1250,Tappins Coaches
http://statistics.data.gov.uk/id/local-authority/38,Oxfordshire County Council,Education & Early Intervention,Woodlands Centre,Contract Hire/Leasing,33103,Transport to Centres,07/09/2012,7000438501,1320,Tappins Coaches
http://statistics.data.gov.uk/id/local-authority/38,Oxfordshire County Council,Education & Early Intervention,Woodlands Centre,Contract Hire/Leasing,33103,Transport to Centres,07/09/2012,7000438502,1320,Tappins Coaches
http://statistics.data.gov.uk/id/local-authority/38,Oxfordshire County Council,Education & Early Intervention,Woodlands Centre,Contract Hire/Leasing,33103,Transport to Centres,07/09/2012,7000438503,1020,Tappins Coaches
http://statistics.data.gov.uk/id/local-authority/38,Oxfordshire County Council,Education & Early Intervention,Yenworthy Lodge,Contract Hire/Leasing,33103,Transport to Centres,07/09/2012,7000438504,1220,Tappins Coaches
http://statistics.data.gov.uk/id/local-authority/38,Oxfordshire County Council,Education & Early Intervention,Yenworthy Lodge,Contract Hire/Leasing,33103,Transport to Centres,07/09/2012,7000438505,1220,Tappins Coaches
http://statistics.data.gov.uk/id/local-authority/38,Oxfordshire County Council,Education & Early Intervention,Yenworthy Lodge,Contract Hire/Leasing,33103,Transport to Centres,07/09/2012,7000438506,1220,Tappins Coaches
http://statistics.data.gov.uk/id/local-authority/38,Oxfordshire County Council,Education & Early Intervention,Yenworthy Lodge,Contract Hire/Leasing,33103,Transport to Centres,07/09/2012,7000438507,1220,Tappins Coaches
http://statistics.data.gov.uk/id/local-authority/38,Oxfordshire County Council,SCS Other Cost Centres,Home Support trading account for PBs,Other Agency and Contracted Services,57300,Home Support (Ext) OS&HCD,05/09/2012,7000437157,-798.4,Sevacare (UK) Ltd
http://statistics.data.gov.uk/id/local-authority/38,Oxfordshire County Council,SCS Other Cost Centres,Home Support trading account for PBs,Other Agency and Contracted Services,57300,Home Support (Ext) OS&HCD,05/09/2012,7000437658,11239.9,Sevacare (UK) Ltd
http://statistics.data.gov.uk/id/local-authority/38,Oxfordshire County Council,SCS Other Cost Centres,Home Support trading account for PBs,Other Agency and Contracted Services,57300,Home Support (Ext) OS&HCD,19/09/2012,7000443775,22449.27,Sevacare (UK) Ltd
http://statistics.data.gov.uk/id/local-authority/38,Oxfordshire County Council,Social & Community Services,LD Day Services West Oxon Day Servs,Contract Hire/Leasing,33101,Home to School Trans,06/09/2012,7000437804,3960,R H Transport Services
http://statistics.data.gov.uk/id/local-authority/38,Oxfordshire County Council,Education & Early Intervention,Zone 1 - North,Contract Hire/Leasing,33101,Home to School Trans,19/09/2012,7000443709,1251,R H Transport Services
http://statistics.data.gov.uk/id/local-authority/38,Oxfordshire County Council,Education & Early Intervention,Zone 1 - North,Contract Hire/Leasing,33101,Home to School Trans,19/09/2012,7000443710,1457.37,R H Transport Services
http://statistics.data.gov.uk/id/local-authority/38,Oxfordshire County Council,Education & Early Intervention,Zone 1 - North,Contract Hire/Leasing,33101,Home to School Trans,19/09/2012,7000443711,1457.37,R H Transport Services
http://statistics.data.gov.uk/id/local-authority/38,Oxfordshire County Council,Education & Early Intervention,Zone 1 - North,Contract Hire/Leasing,33101,Home to School Trans,19/09/2012,7000443712,1457.37,R H Transport Services
http://statistics.data.gov.uk/id/local-authority/38,Oxfordshire County Council,Education & Early Intervention,Zone 1 - North,Contract Hire/Leasing,33101,Home to School Trans,19/09/2012,7000443713,1457.37,R H Transport Services
http://statistics.data.gov.uk/id/local-authority/38,Oxfordshire County Council,Education & Early Intervention,Zone 1 - North,Contract Hire/Leasing,33101,Home to School Trans,19/09/2012,7000443714,1457.37,R H Transport Services
http://statistics.data.gov.uk/id/local-authority/38,Oxfordshire County Council,Education & Early Intervention,Zone 1 - North,Contract Hire/Leasing,33101,Home to School Trans,19/09/2012,7000443715,1457.37,R H Transport Services
http://statistics.data.gov.uk/id/local-authority/38,Oxfordshire County Council,Education & Early Intervention,Zone 1 - North,Contract Hire/Leasing,33101,Home to School Trans,19/09/2012,7000443716,1753.29,R H Transport Services
http://statistics.data.gov.uk/id/local-authority/38,Oxfordshire County Council,Education & Early Intervention,Zone 1 - North,Contract Hire/Leasing,33101,Home to School Trans,19/09/2012,7000443717,542,R H Transport Services
http://statistics.data.gov.uk/id/local-authority/38,Oxfordshire County Council,Education & Early Intervention,Zone 3 - West,Contract Hire/Leasing,33101,Home to School Trans,24/09/2012,7000443510,1120,R H Transport Services
http://statistics.data.gov.uk/id/local-authority/38,Oxfordshire County Council,Education & Early Intervention,Zone 3 - West,Contract Hire/Leasing,33101,Home to School Trans,24/09/2012,7000443511,1120,R H Transport Services
http://statistics.data.gov.uk/id/local-authority/38,Oxfordshire County Council,Education & Early Intervention,Zone 3 - West,Contract Hire/Leasing,33101,Home to School Trans,24/09/2012,7000443512,1120,R H Transport Services
http://statistics.data.gov.uk/id/local-authority/38,Oxfordshire County Council,Education & Early Intervention,Zone 3 - West,Contract Hire/Leasing,33101,Home to School Trans,24/09/2012,7000443513,1120,R H Transport Services
http://statistics.data.gov.uk/id/local-authority/38,Oxfordshire County Council,Education & Early Intervention,Zone 3 - West,Contract Hire/Leasing,33101,Home to School Trans,24/09/2012,7000443514,1120,R H Transport Services
http://statistics.data.gov.uk/id/local-authority/38,Oxfordshire County Council,Education & Early Intervention,Zone 3 - West,Contract Hire/Leasing,33101,Home to School Trans,24/09/2012,7000443515,1344,R H Transport Services
http://statistics.data.gov.uk/id/local-authority/38,Oxfordshire County Council,Education & Early Intervention,Zone 3 - West,Contract Hire/Leasing,33101,Home to School Trans,24/09/2012,7000443516,1344,R H Transport Services
http://statistics.data.gov.uk/id/local-authority/38,Oxfordshire County Council,Education & Early Intervention,Zone 3 - West,Contract Hire/Leasing,33101,Home to School Trans,24/09/2012,7000443517,1344,R H Transport Services
http://statistics.data.gov.uk/id/local-authority/38,Oxfordshire County Council,Education & Early Intervention,Zone 4 - Vale,Contract Hire/Leasing,33101,Home to School Trans,24/09/2012,7000443518,1160,R H Transport Services
http://statistics.data.gov.uk/id/local-authority/38,Oxfordshire County Council,Education & Early Intervention,Zone 4 - Vale,Contract Hire/Leasing,33101,Home to School Trans,24/09/2012,7000443519,1160,R H Transport Services
http://statistics.data.gov.uk/id/local-authority/38,Oxfordshire County Council,Education & Early Intervention,Zone 4 - Vale,Contract Hire/Leasing,33101,Home to School Trans,24/09/2012,7000443520,1160,R H Transport Services
http://statistics.data.gov.uk/id/local-authority/38,Oxfordshire County Council,Education & Early Intervention,Zone 3 - West,Contract Hire/Leasing,33101,Home to School Trans,24/09/2012,7000443521,1566,R H Transport Services
http://statistics.data.gov.uk/id/local-authority/38,Oxfordshire County Council,Education & Early Intervention,Zone 3 - West,Contract Hire/Leasing,33101,Home to School Trans,24/09/2012,7000443522,1440,R H Transport Services
http://statistics.data.gov.uk/id/local-authority/38,Oxfordshire County Council,Education & Early Intervention,Zone 3 - West,Contract Hire/Leasing,33101,Home to School Trans,24/09/2012,7000443523,1260,R H Transport Services
http://statistics.data.gov.uk/id/local-authority/38,Oxfordshire County Council,Education & Early Intervention,Zone 4 - Vale,Contract Hire/Leasing,33101,Home to School Trans,24/09/2012,7000443524,1560,R H Transport Services
http://statistics.data.gov.uk/id/local-authority/38,Oxfordshire County Council,Education & Early Intervention,Zone 2 - East,Contract Hire/Leasing,33101,Home to School Trans,24/09/2012,7000443525,1471.04,R H Transport Services
http://statistics.data.gov.uk/id/local-authority/38,Oxfordshire County Council,Education & Early Intervention,Zone 2 - East,Contract Hire/Leasing,33101,Home to School Trans,24/09/2012,7000443526,967.68,R H Transport Services
http://statistics.data.gov.uk/id/local-authority/38,Oxfordshire County Council,Education & Early Intervention,Zone 3 - West,Contract Hire/Leasing,33101,Home to School Trans,24/09/2012,7000443527,1170,R H Transport Services
http://statistics.data.gov.uk/id/local-authority/38,Oxfordshire County Council,Education & Early Intervention,Zone 3 - West,Contract Hire/Leasing,33101,Home to School Trans,24/09/2012,7000443528,1170,R H Transport Services
http://statistics.data.gov.uk/id/local-authority/38,Oxfordshire County Council,Education & Early Intervention,Zone 3 - West,Contract Hire/Leasing,33101,Home to School Trans,24/09/2012,7000443529,1170,R H Transport Services
http://statistics.data.gov.uk/id/local-authority/38,Oxfordshire County Council,Education & Early Intervention,Zone 3 - West,Contract Hire/Leasing,33101,Home to School Trans,24/09/2012,7000443530,1512,R H Transport Services
http://statistics.data.gov.uk/id/local-authority/38,Oxfordshire County Council,Education & Early Intervention,Zone 3 - West,Contract Hire/Leasing,33101,Home to School Trans,24/09/2012,7000443532,1386,R H Transport Services
http://statistics.data.gov.uk/id/local-authority/38,Oxfordshire County Council,Highways Management,Error Suspense,Capital Expenditure,CAAA1,Land purchase/compnsation/consideration - General,26/09/2012,3350227569,1000,Neasham Lloyd Solicitors
http://statistics.data.gov.uk/id/local-authority/38,Oxfordshire County Council,Education & Early Intervention,2 Year Old Funding,Voluntary Associations,55100,Fees to Non Maintain,26/09/2012,3301605416,14503.44,The Sunshine Centre Ltd
http://statistics.data.gov.uk/id/local-authority/38,Oxfordshire County Council,Education & Early Intervention,Leading the EYFS (Q&I),Expenses,46403,Course / Tuition Fee,28/09/2012,3301606181,2000,The Sunshine Centre Ltd
http://statistics.data.gov.uk/id/local-authority/38,Oxfordshire County Council,Education & Early Intervention,Leading the EYFS (Q&I),Expenses,46403,Course / Tuition Fee,17/09/2012,3301601285,5000,Daffodil Nursery
http://statistics.data.gov.uk/id/local-authority/38,Oxfordshire County Council,Education & Early Intervention,Quality & Expansion 2 Year Olds,"Equipment, Furniture and Materials",41100,Educational Supplies,25/09/2012,3301604204,2000,Daffodil Nursery
http://statistics.data.gov.uk/id/local-authority/38,Oxfordshire County Council,SCS Other Cost Centres,Control Account Trojan Residential Care,Balance Sheet General,B2040,ABACUS Accounts Payable Control A/c,13/09/2012,7000440176,15427.07,Progress Care and Education Ltd
http://statistics.data.gov.uk/id/local-authority/38,Oxfordshire County Council,Education & Early Intervention,Leading the EYFS (Q&I),Expenses,46403,Course / Tuition Fee,28/09/2012,3301601551,1780,The Nursery
http://statistics.data.gov.uk/id/local-authority/38,Oxfordshire County Council,Education & Early Intervention,Leading the EYFS (Q&I),"Equipment, Furniture and Materials",41515,Educational Visits,25/09/2012,3301600295,833,NOMAD
http://statistics.data.gov.uk/id/local-authority/38,Oxfordshire County Council,Education & Early Intervention,Leading the EYFS (Q&I),Expenses,46403,Course / Tuition Fee,19/09/2012,3301600553,2000,Turbo Teds Nursery
http://statistics.data.gov.uk/id/local-authority/38,Oxfordshire County Council,SCS Other Cost Centres,Control Account Trojan Residential Care,Balance Sheet General,B2040,ABACUS Accounts Payable Control A/c,13/09/2012,7000440284,29391.2,St Andrews Hospital
http://statistics.data.gov.uk/id/local-authority/38,Oxfordshire County Council,Education & Early Intervention,Leading the EYFS (Q&I),Expenses,46403,Course / Tuition Fee,28/09/2012,3301601618,5000,Dalton Pre-School Nursery
http://statistics.data.gov.uk/id/local-authority/38,Oxfordshire County Council,Education & Early Intervention,Leading the EYFS (Q&I),Expenses,46403,Course / Tuition Fee,17/09/2012,3301601286,5000,Dunmore Pre-School Association
http://statistics.data.gov.uk/id/local-authority/38,Oxfordshire County Council,Education & Early Intervention,Leading the EYFS (Q&I),"Equipment, Furniture and Materials",41515,Educational Visits,06/09/2012,3301595940,1000,THE ACE CENTRE
http://statistics.data.gov.uk/id/local-authority/38,Oxfordshire County Council,Education & Early Intervention,Leading the EYFS (Q&I),"Equipment, Furniture and Materials",41515,Educational Visits,19/09/2012,3301597637,833,THE ARK CHILDRENS NURSERY
http://statistics.data.gov.uk/id/local-authority/38,Oxfordshire County Council,Education & Early Intervention,Leading the EYFS (Q&I),"Equipment, Furniture and Materials",41515,Educational Visits,19/09/2012,3301597638,833,THE ARK CHILDRENS NURSERY
http://statistics.data.gov.uk/id/local-authority/38,Oxfordshire County Council,Social & Community Services,Older People  Service Agreements (Base),Voluntary Associations,55400,Service Agreements-A,26/09/2012,3301604543,25000,WEST OXFORDSHIRE CITIZENS
http://statistics.data.gov.uk/id/local-authority/38,Oxfordshire County Council,Education & Early Intervention,Leading the EYFS (Q&I),Expenses,46403,Course / Tuition Fee,25/09/2012,3301604280,1250,Woodstock Under Fives Association
http://statistics.data.gov.uk/id/local-authority/38,Oxfordshire County Council,SCS Other Cost Centres,Control Account Trojan Residential Care,Balance Sheet General,B2040,ABACUS Accounts Payable Control A/c,13/09/2012,7000440027,1335.69,Golden Lane Housing Ltd
http://statistics.data.gov.uk/id/local-authority/38,Oxfordshire County Council,Highways & Transport,Localities,"Equipment, Furniture and Materials",40101,Furniture & Equipment,04/09/2012,3301593151,600,Wroxton & Balscote
http://statistics.data.gov.uk/id/local-authority/38,Oxfordshire County Council,SCS Other Cost Centres,Control Account Trojan Residential Care,Balance Sheet General,B2040,ABACUS Accounts Payable Control A/c,13/09/2012,7000440180,25337.36,Ramping Cat House
http://statistics.data.gov.uk/id/local-authority/38,Oxfordshire County Council,SCS Other Cost Centres,Control Account Trojan Residential Care,Balance Sheet General,B2040,ABACUS Accounts Payable Control A/c,13/09/2012,7000440286,32928.29,ST ANNES RESIDENTIAL  HOME
http://statistics.data.gov.uk/id/local-authority/38,Oxfordshire County Council,SCS Other Cost Centres,Control Account Trojan Residential Care,Balance Sheet General,B2040,ABACUS Accounts Payable Control A/c,13/09/2012,7000440310,24837.77,The Close Nursing Home
http://statistics.data.gov.uk/id/local-authority/38,Oxfordshire County Council,SCS Other Cost Centres,Control Account Trojan Residential Care,Balance Sheet General,B2040,ABACUS Accounts Payable Control A/c,13/09/2012,7000440311,91611.66,The Close Nursing Home
http://statistics.data.gov.uk/id/local-authority/38,Oxfordshire County Council,SCS Other Cost Centres,Control Account Trojan Residential Care,Balance Sheet General,B2040,ABACUS Accounts Payable Control A/c,13/09/2012,7000439899,22245.64,Advance Housing & Support Ltd
http://statistics.data.gov.uk/id/local-authority/38,Oxfordshire County Council,Social & Community Services,Community Support Budget - City East,Other Agency and Contracted Services,57300,Home Support (Ext) OS&HCD,21/09/2012,3301603319,1635.2,Advance Housing & Support Ltd
http://statistics.data.gov.uk/id/local-authority/38,Oxfordshire County Council,Social & Community Services,Community Support Budget - City East,Other Agency and Contracted Services,57300,Home Support (Ext) OS&HCD,21/09/2012,3301603321,618.14,Advance Housing & Support Ltd
http://statistics.data.gov.uk/id/local-authority/38,Oxfordshire County Council,Education & Early Intervention,PbR Pilot Project,Voluntary Associations,55000,Voluntary Associatio,03/09/2012,3301594087,761.09,SPURGEON'S
http://statistics.data.gov.uk/id/local-authority/38,Oxfordshire County Council,SCS Other Cost Centres,Control Account Trojan Residential Care,Balance Sheet General,B2040,ABACUS Accounts Payable Control A/c,13/09/2012,7000439918,41294.3,Beech Court Nursing Home
http://statistics.data.gov.uk/id/local-authority/38,Oxfordshire County Council,SCS Other Cost Centres,Control Account Trojan Residential Care,Balance Sheet General,B2040,ABACUS Accounts Payable Control A/c,13/09/2012,7000440206,15324.86,Sense West
http://statistics.data.gov.uk/id/local-authority/38,Oxfordshire County Council,SCS Other Cost Centres,Home Support trading account for PBs,Other Agency and Contracted Services,57300,Home Support (Ext) OS&HCD,05/09/2012,7000437632,1227.47,Carewatch Care Services
http://statistics.data.gov.uk/id/local-authority/38,Oxfordshire County Council,SCS Other Cost Centres,Home Support trading account for PBs,Other Agency and Contracted Services,57300,Home Support (Ext) OS&HCD,19/09/2012,7000443749,11443.78,Carewatch Care Services
http://statistics.data.gov.uk/id/local-authority/38,Oxfordshire County Council,SCS Pooled Budgets,OP Pool Continuing Care Home Support,Other Agency and Contracted Services,57302,Home Support (Ext) Continuing Care,10/09/2012,3350227218,800,Mumby's Homecare Support Ltd
http://statistics.data.gov.uk/id/local-authority/38,Oxfordshire County Council,SCS Pooled Budgets,OP Pool Continuing Care Home Support,Other Agency and Contracted Services,57302,Home Support (Ext) Continuing Care,10/09/2012,3350227219,800,Mumby's Homecare Support Ltd
http://statistics.data.gov.uk/id/local-authority/38,Oxfordshire County Council,SCS Pooled Budgets,OP Pool Continuing Care Home Support,Other Agency and Contracted Services,57302,Home Support (Ext) Continuing Care,10/09/2012,3350227220,800,Mumby's Homecare Support Ltd
http://statistics.data.gov.uk/id/local-authority/38,Oxfordshire County Council,SCS Pooled Budgets,OP Pool Continuing Care Home Support,Other Agency and Contracted Services,57302,Home Support (Ext) Continuing Care,14/09/2012,3350227319,800,Mumby's Homecare Support Ltd
http://statistics.data.gov.uk/id/local-authority/38,Oxfordshire County Council,SCS Pooled Budgets,OP Pool Continuing Care Home Support,Other Agency and Contracted Services,57302,Home Support (Ext) Continuing Care,14/09/2012,3350227320,800,Mumby's Homecare Support Ltd
http://statistics.data.gov.uk/id/local-authority/38,Oxfordshire County Council,SCS Pooled Budgets,OP Pool Continuing Care Home Support,Other Agency and Contracted Services,57302,Home Support (Ext) Continuing Care,14/09/2012,3350227321,800,Mumby's Homecare Support Ltd
http://statistics.data.gov.uk/id/local-authority/38,Oxfordshire County Council,SCS Pooled Budgets,OP Pool Continuing Care Home Support,Other Agency and Contracted Services,57302,Home Support (Ext) Continuing Care,17/09/2012,3350227400,800,Mumby's Homecare Support Ltd
http://statistics.data.gov.uk/id/local-authority/38,Oxfordshire County Council,SCS Pooled Budgets,OP Pool Continuing Care Home Support,Other Agency and Contracted Services,57302,Home Support (Ext) Continuing Care,17/09/2012,3350227401,800,Mumby's Homecare Support Ltd
http://statistics.data.gov.uk/id/local-authority/38,Oxfordshire County Council,SCS Pooled Budgets,OP Pool Continuing Care Home Support,Other Agency and Contracted Services,57302,Home Support (Ext) Continuing Care,19/09/2012,3350227402,800,Mumby's Homecare Support Ltd
http://statistics.data.gov.uk/id/local-authority/38,Oxfordshire County Council,SCS Other Cost Centres,Control Account Trojan Residential Care,Balance Sheet General,B2040,ABACUS Accounts Payable Control A/c,13/09/2012,7000439897,13698.98,Action on Hearing Loss
http://statistics.data.gov.uk/id/local-authority/38,Oxfordshire County Council,SCS Other Cost Centres,Home Support trading account for PBs,Other Agency and Contracted Services,57300,Home Support (Ext) OS&HCD,05/09/2012,7000437163,-2403.14,Care UK Homecare Ltd
http://statistics.data.gov.uk/id/local-authority/38,Oxfordshire County Council,SCS Other Cost Centres,Home Support trading account for PBs,Other Agency and Contracted Services,57300,Home Support (Ext) OS&HCD,05/09/2012,7000437630,7799.3,Care UK Homecare Ltd
http://statistics.data.gov.uk/id/local-authority/38,Oxfordshire County Council,SCS Other Cost Centres,Home Support trading account for PBs,Other Agency and Contracted Services,57300,Home Support (Ext) OS&HCD,19/09/2012,7000443747,27278.55,Care UK Homecare Ltd
http://statistics.data.gov.uk/id/local-authority/38,Oxfordshire County Council,SCS Other Cost Centres,Control Account Trojan Residential Care,Balance Sheet General,B2040,ABACUS Accounts Payable Control A/c,13/09/2012,7000439987,1200,Douglas House
http://statistics.data.gov.uk/id/local-authority/38,Oxfordshire County Council,SCS Other Cost Centres,Control Account Trojan Residential Care,Balance Sheet General,B2040,ABACUS Accounts Payable Control A/c,13/09/2012,7000440285,12136.46,St Andrew's Residential Care Home
http://statistics.data.gov.uk/id/local-authority/38,Oxfordshire County Council,SCS Other Cost Centres,Home Support trading account for PBs,Other Agency and Contracted Services,57300,Home Support (Ext) OS&HCD,05/09/2012,7000437643,5048.81,Heart to Heart Care Ltd
http://statistics.data.gov.uk/id/local-authority/38,Oxfordshire County Council,SCS Other Cost Centres,Home Support trading account for PBs,Other Agency and Contracted Services,57300,Home Support (Ext) OS&HCD,19/09/2012,7000443760,52103.33,Heart to Heart Care Ltd
http://statistics.data.gov.uk/id/local-authority/38,Oxfordshire County Council,Highways & Transport,Grass Cutting Districts/Parishes,Private Contractors,56400,Major Contracts,27/09/2012,3301604231,1066.8,Ambrosden Parish Council
http://statistics.data.gov.uk/id/local-authority/38,Oxfordshire County Council,Children's Social Care,Agency Residential - Disabilities,Other Agency and Contracted Services,57801,Independent Fostering Agencies,28/09/2012,3301604185,3584.1,FOSTERPLUS LTD
http://statistics.data.gov.uk/id/local-authority/38,Oxfordshire County Council,Children's Social Care,Agency Residential - Disabilities,Other Agency and Contracted Services,57801,Independent Fostering Agencies,28/09/2012,3301604186,4818.02,FOSTERPLUS LTD
http://statistics.data.gov.uk/id/local-authority/38,Oxfordshire County Council,SCS Other Cost Centres,Control Account Trojan Residential Care,Balance Sheet General,B2040,ABACUS Accounts Payable Control A/c,13/09/2012,7000440019,3928.59,Glasallt Fawr
http://statistics.data.gov.uk/id/local-authority/38,Oxfordshire County Council,Education & Early Intervention,Leading the EYFS (Q&I),Expenses,46403,Course / Tuition Fee,26/09/2012,3301604206,5000,St John's Pre-School
http://statistics.data.gov.uk/id/local-authority/38,Oxfordshire County Council,Highways & Transport,Localities,Private Contractors,56400,Major Contracts,21/09/2012,3301595941,2100,Westcotec Ltd
http://statistics.data.gov.uk/id/local-authority/38,Oxfordshire County Council,Highways & Transport,Localities,Private Contractors,56400,Major Contracts,21/09/2012,3301595942,2100,Westcotec Ltd
http://statistics.data.gov.uk/id/local-authority/38,Oxfordshire County Council,Highways & Transport,Localities,Services,44500,Other Hired & Contract Services,06/09/2012,3301593825,1600,Carterton Town Council
http://statistics.data.gov.uk/id/local-authority/38,Oxfordshire County Council,SCS Other Cost Centres,Control Account Trojan Residential Care,Balance Sheet General,B2040,ABACUS Accounts Payable Control A/c,13/09/2012,7000439963,110432.77,Cherwood House Care Centre
http://statistics.data.gov.uk/id/local-authority/38,Oxfordshire County Council,SCS Other Cost Centres,Home Support trading account for PBs,Other Agency and Contracted Services,57300,Home Support (Ext) OS&HCD,05/09/2012,7000437644,7630.7,Home Helpers Care Ltd
http://statistics.data.gov.uk/id/local-authority/38,Oxfordshire County Council,SCS Other Cost Centres,Home Support trading account for PBs,Other Agency and Contracted Services,57300,Home Support (Ext) OS&HCD,19/09/2012,7000443761,18630.33,Home Helpers Care Ltd
http://statistics.data.gov.uk/id/local-authority/38,Oxfordshire County Council,Social & Community Services,"LD Day Services, Greenwood Centre",Contract Hire/Leasing,33300,Transport (General),06/09/2012,7000437801,908,Prestige Cars
http://statistics.data.gov.uk/id/local-authority/38,Oxfordshire County Council,SCS Other Cost Centres,Control Account Trojan Residential Care,Balance Sheet General,B2040,ABACUS Accounts Payable Control A/c,13/09/2012,7000439999,7479.64,Fairfield Residential Home
http://statistics.data.gov.uk/id/local-authority/38,Oxfordshire County Council,SCS Other Cost Centres,Control Account Trojan Residential Care,Balance Sheet General,B2040,ABACUS Accounts Payable Control A/c,13/09/2012,7000440202,12889.67,SEEABILITY
http://statistics.data.gov.uk/id/local-authority/38,Oxfordshire County Council,SCS Other Cost Centres,Control Account Trojan Residential Care,Balance Sheet General,B2040,ABACUS Accounts Payable Control A/c,13/09/2012,7000440001,3901.97,Father Hudson's Society
http://statistics.data.gov.uk/id/local-authority/38,Oxfordshire County Council,SCS Other Cost Centres,Control Account Trojan Residential Care,Balance Sheet General,B2040,ABACUS Accounts Payable Control A/c,13/09/2012,7000440278,15324.36,SOUTHDOWN LTD
http://statistics.data.gov.uk/id/local-authority/38,Oxfordshire County Council,STD Insurance,Motor Fleet,Motor Insurance Fund Rev AC,Z5151,Motor IF Own Damage,14/09/2012,3301600467,595.94,Bicester Bodyshop
http://statistics.data.gov.uk/id/local-authority/38,Oxfordshire County Council,Social & Community Services,Community Support Budget - City East,Other Agency and Contracted Services,57300,Home Support (Ext) OS&HCD,05/09/2012,3301593739,880,Robert & Doris Watts
http://statistics.data.gov.uk/id/local-authority/38,Oxfordshire County Council,Social & Community Services,Community Support Budget - City East,Other Agency and Contracted Services,57300,Home Support (Ext) OS&HCD,05/09/2012,3301593740,880,Robert & Doris Watts
http://statistics.data.gov.uk/id/local-authority/38,Oxfordshire County Council,SCS Other Cost Centres,Control Account Trojan Residential Care,Balance Sheet General,B2040,ABACUS Accounts Payable Control A/c,13/09/2012,7000439969,7819.28,Robert & Doris Watts
http://statistics.data.gov.uk/id/local-authority/38,Oxfordshire County Council,SCS Other Cost Centres,Control Account Trojan Residential Care,Balance Sheet General,B2040,ABACUS Accounts Payable Control A/c,13/09/2012,7000439985,47821.3,Robert & Doris Watts
http://statistics.data.gov.uk/id/local-authority/38,Oxfordshire County Council,SCS Other Cost Centres,Control Account Trojan Residential Care,Balance Sheet General,B2040,ABACUS Accounts Payable Control A/c,13/09/2012,7000440192,47205.53,Robert & Doris Watts
http://statistics.data.gov.uk/id/local-authority/38,Oxfordshire County Council,Education & Early Intervention,Abingdon SEN Trans,Contract Hire/Leasing,33101,Home to School Trans,19/09/2012,7000444218,508,Mr K Booker
http://statistics.data.gov.uk/id/local-authority/38,Oxfordshire County Council,Education & Early Intervention,Oxford Sth SEN Trans,Contract Hire/Leasing,33101,Home to School Trans,19/09/2012,7000444219,1125,Mr K Booker
http://statistics.data.gov.uk/id/local-authority/38,Oxfordshire County Council,Education & Early Intervention,Oxford Nth SEN Trans,Contract Hire/Leasing,33101,Home to School Trans,19/09/2012,7000444220,1645.29,Mr K Booker
http://statistics.data.gov.uk/id/local-authority/38,Oxfordshire County Council,SCS Other Cost Centres,Control Account Trojan Residential Care,Balance Sheet General,B2040,ABACUS Accounts Payable Control A/c,13/09/2012,7000440355,3942.86,Trevi House Ltd
http://statistics.data.gov.uk/id/local-authority/38,Oxfordshire County Council,SCS Other Cost Centres,Control Account Trojan Residential Care,Balance Sheet General,B2040,ABACUS Accounts Payable Control A/c,13/09/2012,7000440177,32351.23,PURLEY PARK TRUST LTD
http://statistics.data.gov.uk/id/local-authority/38,Oxfordshire County Council,SCS Other Cost Centres,Control Account Trojan Residential Care,Balance Sheet General,B2040,ABACUS Accounts Payable Control A/c,13/09/2012,7000440012,95155.37,FREELAND HOUSE
http://statistics.data.gov.uk/id/local-authority/38,Oxfordshire County Council,SCS Other Cost Centres,Control Account Trojan Residential Care,Balance Sheet General,B2040,ABACUS Accounts Payable Control A/c,13/09/2012,7000440363,66725.61,Wardington House Nursing Home
http://statistics.data.gov.uk/id/local-authority/38,Oxfordshire County Council,SCS Other Cost Centres,Home Support trading account for PBs,Other Agency and Contracted Services,57300,Home Support (Ext) OS&HCD,05/09/2012,7000437645,983.65,Kcare Nursing Agency
http://statistics.data.gov.uk/id/local-authority/38,Oxfordshire County Council,Social & Community Services,Community Support Budget - City East,Other Agency and Contracted Services,57300,Home Support (Ext) OS&HCD,10/09/2012,3301597280,3861,Kcare Nursing Agency
http://statistics.data.gov.uk/id/local-authority/38,Oxfordshire County Council,SCS Other Cost Centres,Home Support trading account for PBs,Other Agency and Contracted Services,57300,Home Support (Ext) OS&HCD,19/09/2012,7000443762,11911.04,Kcare Nursing Agency
http://statistics.data.gov.uk/id/local-authority/38,Oxfordshire County Council,SCS Other Cost Centres,Control Account Trojan Residential Care,Balance Sheet General,B2040,ABACUS Accounts Payable Control A/c,24/09/2012,7000444849,8505.6,Kcare Nursing Agency
http://statistics.data.gov.uk/id/local-authority/38,Oxfordshire County Council,SCS Pooled Budgets,OP Pool Continuing Care NH Spot over 65s,Other Employee Expenses,19999,Other Misc Employee Expenses,10/09/2012,3301597450,55994,Oxfordshire Primary Care Trust 5QE
http://statistics.data.gov.uk/id/local-authority/38,Oxfordshire County Council,Social & Community Services,OH Staffing Adults of Working Age,Voluntary Associations,55405,Contribution to External Health Pooled Budgets,18/09/2012,3301601608,458237.75,Oxfordshire Primary Care Trust 5QE
http://statistics.data.gov.uk/id/local-authority/38,Oxfordshire County Council,SCS Other Cost Centres,Control Account Trojan Residential Care,Balance Sheet General,B2040,ABACUS Accounts Payable Control A/c,13/09/2012,7000440058,2155.2,Key2 Futures Ltd
http://statistics.data.gov.uk/id/local-authority/38,Oxfordshire County Council,Highways & Transport,Grass Cutting Districts/Parishes,Private Contractors,56400,Major Contracts,14/09/2012,3301600441,2886.2,Wheatley Parish Council
http://statistics.data.gov.uk/id/local-authority/38,Oxfordshire County Council,SCS Other Cost Centres,Control Account Trojan Residential Care,Balance Sheet General,B2040,ABACUS Accounts Payable Control A/c,13/09/2012,7000440017,7005.21,GCH (St Katherine's) Ltd
http://statistics.data.gov.uk/id/local-authority/38,Oxfordshire County Council,SCS Other Cost Centres,Control Account Trojan Residential Care,Balance Sheet General,B2040,ABACUS Accounts Payable Control A/c,13/09/2012,7000440018,73502.28,GCH (St Katherine's) Ltd
http://statistics.data.gov.uk/id/local-authority/38,Oxfordshire County Council,Education & Early Intervention,Out of County,Contract Hire/Leasing,33101,Home to School Trans,07/09/2012,7000438496,780,Chiltern Taxis
http://statistics.data.gov.uk/id/local-authority/38,Oxfordshire County Council,SCS Other Cost Centres,Control Account Trojan Residential Care,Balance Sheet General,B2040,ABACUS Accounts Payable Control A/c,13/09/2012,7000440195,25655.15,Rosebank Care Home
http://statistics.data.gov.uk/id/local-authority/38,Oxfordshire County Council,SCS Other Cost Centres,Control Account Trojan Residential Care,Balance Sheet General,B2040,ABACUS Accounts Payable Control A/c,13/09/2012,7000440277,5696.48,Sotwell Hill House
http://statistics.data.gov.uk/id/local-authority/38,Oxfordshire County Council,SCS Pooled Budgets,OP Pool Fast Track,Other Agency and Contracted Services,57304,Home Support (Ext) Palliative Care,03/09/2012,3350227008,663.04,1 to 1 Care
http://statistics.data.gov.uk/id/local-authority/38,Oxfordshire County Council,SCS Other Cost Centres,Home Support trading account for PBs,Other Agency and Contracted Services,57300,Home Support (Ext) OS&HCD,05/09/2012,7000437624,13512.77,1 to 1 Care
http://statistics.data.gov.uk/id/local-authority/38,Oxfordshire County Council,SCS Pooled Budgets,OP Pool Continuing Care Home Support,Other Agency and Contracted Services,57302,Home Support (Ext) Continuing Care,06/09/2012,3350227162,730.62,1 to 1 Care
http://statistics.data.gov.uk/id/local-authority/38,Oxfordshire County Council,SCS Pooled Budgets,OP Pool Continuing Care Home Support,Other Agency and Contracted Services,57302,Home Support (Ext) Continuing Care,06/09/2012,3350227163,730.62,1 to 1 Care
http://statistics.data.gov.uk/id/local-authority/38,Oxfordshire County Council,SCS Pooled Budgets,OP Pool Continuing Care Home Support,Other Agency and Contracted Services,57302,Home Support (Ext) Continuing Care,06/09/2012,3350227174,635.75,1 to 1 Care
http://statistics.data.gov.uk/id/local-authority/38,Oxfordshire County Council,SCS Pooled Budgets,OP Pool Continuing Care Home Support,Other Agency and Contracted Services,57302,Home Support (Ext) Continuing Care,10/09/2012,3350227221,785.63,1 to 1 Care
http://statistics.data.gov.uk/id/local-authority/38,Oxfordshire County Council,SCS Pooled Budgets,OP Pool Continuing Care Home Support,Other Agency and Contracted Services,57302,Home Support (Ext) Continuing Care,10/09/2012,3350227222,785.63,1 to 1 Care
http://statistics.data.gov.uk/id/local-authority/38,Oxfordshire County Council,SCS Pooled Budgets,OP Pool Continuing Care Home Support,Other Agency and Contracted Services,57302,Home Support (Ext) Continuing Care,10/09/2012,3350227223,785.63,1 to 1 Care
http://statistics.data.gov.uk/id/local-authority/38,Oxfordshire County Council,SCS Pooled Budgets,OP Pool Continuing Care Home Support,Other Agency and Contracted Services,57302,Home Support (Ext) Continuing Care,10/09/2012,3350227226,730.62,1 to 1 Care
http://statistics.data.gov.uk/id/local-authority/38,Oxfordshire County Council,SCS Pooled Budgets,OP Pool Fast Track,Other Agency and Contracted Services,57304,Home Support (Ext) Palliative Care,10/09/2012,3350227237,622.45,1 to 1 Care
http://statistics.data.gov.uk/id/local-authority/38,Oxfordshire County Council,SCS Pooled Budgets,OP Pool Continuing Care Home Support,Other Agency and Contracted Services,57302,Home Support (Ext) Continuing Care,14/09/2012,3350227324,785.63,1 to 1 Care
http://statistics.data.gov.uk/id/local-authority/38,Oxfordshire County Council,SCS Pooled Budgets,OP Pool Continuing Care Home Support,Other Agency and Contracted Services,57302,Home Support (Ext) Continuing Care,14/09/2012,3350227329,730.62,1 to 1 Care
http://statistics.data.gov.uk/id/local-authority/38,Oxfordshire County Council,SCS Pooled Budgets,OP Pool Fast Track,Other Agency and Contracted Services,57304,Home Support (Ext) Palliative Care,17/09/2012,3350227283,663.04,1 to 1 Care
http://statistics.data.gov.uk/id/local-authority/38,Oxfordshire County Council,SCS Pooled Budgets,OP Pool Continuing Care Home Support,Other Agency and Contracted Services,57302,Home Support (Ext) Continuing Care,17/09/2012,3350227309,892.98,1 to 1 Care
http://statistics.data.gov.uk/id/local-authority/38,Oxfordshire County Council,SCS Pooled Budgets,OP Pool Continuing Care Home Support,Other Agency and Contracted Services,57302,Home Support (Ext) Continuing Care,17/09/2012,3350227398,785.63,1 to 1 Care
http://statistics.data.gov.uk/id/local-authority/38,Oxfordshire County Council,SCS Pooled Budgets,OP Pool Continuing Care Home Support,Other Agency and Contracted Services,57302,Home Support (Ext) Continuing Care,17/09/2012,3350227399,820.87,1 to 1 Care
http://statistics.data.gov.uk/id/local-authority/38,Oxfordshire County Council,SCS Other Cost Centres,Home Support trading account for PBs,Other Agency and Contracted Services,57300,Home Support (Ext) OS&HCD,19/09/2012,7000443741,8500.43,1 to 1 Care
http://statistics.data.gov.uk/id/local-authority/38,Oxfordshire County Council,SCS Pooled Budgets,OP Pool Fast Track,Other Agency and Contracted Services,57304,Home Support (Ext) Palliative Care,24/09/2012,3350227495,635.98,1 to 1 Care
http://statistics.data.gov.uk/id/local-authority/38,Oxfordshire County Council,Education & Early Intervention,Leading the EYFS (Q&I),Expenses,46403,Course / Tuition Fee,21/09/2012,3301603261,5000,The Oxford Nursery Ltd
http://statistics.data.gov.uk/id/local-authority/38,Oxfordshire County Council,Children's Social Care,Aim Higher Funding,Contract Hire/Leasing,33300,Transport (General),07/09/2012,7000438484,588,001 Taxis & Minibuses
http://statistics.data.gov.uk/id/local-authority/38,Oxfordshire County Council,Children's Social Care,Aim Higher Funding,Contract Hire/Leasing,33300,Transport (General),07/09/2012,7000438485,512,001 Taxis & Minibuses
http://statistics.data.gov.uk/id/local-authority/38,Oxfordshire County Council,Law & Governance Services,Pegasus Theatre,Grants and Subscriptions,47100,Grants to Voluntary,26/09/2012,3301604600,34133,Pegasus Theatre Trust Ltd
http://statistics.data.gov.uk/id/local-authority/38,Oxfordshire County Council,Education & Early Intervention,Special Misc,Public Transport,34101,Pupils Season Ticket,12/09/2012,7000439445,620,First Great Western Ltd
http://statistics.data.gov.uk/id/local-authority/38,Oxfordshire County Council,SCS Other Cost Centres,Home Support trading account for PBs,Other Agency and Contracted Services,57300,Home Support (Ext) OS&HCD,05/09/2012,7000437639,1301.7,Elite Care Agency
http://statistics.data.gov.uk/id/local-authority/38,Oxfordshire County Council,SCS Other Cost Centres,Home Support trading account for PBs,Other Agency and Contracted Services,57300,Home Support (Ext) OS&HCD,19/09/2012,7000443756,3844.23,Elite Care Agency
http://statistics.data.gov.uk/id/local-authority/38,Oxfordshire County Council,Children's Social Care,Aim Higher Funding,Voluntary Associations,55402,Service Agreements - Family Support,05/09/2012,3301595105,3400,Adventure Plus
http://statistics.data.gov.uk/id/local-authority/38,Oxfordshire County Council,Social & Community Services,SJC Training,Training Expenses,19990,Other Training Expenses,27/09/2012,3301605745,550,OXFORD BROOKES UNIVERSITY
http://statistics.data.gov.uk/id/local-authority/38,Oxfordshire County Council,SCS Other Cost Centres,Control Account Trojan Residential Care,Balance Sheet General,B2040,ABACUS Accounts Payable Control A/c,13/09/2012,7000440336,19303.87,The Old Prebendal House
http://statistics.data.gov.uk/id/local-authority/38,Oxfordshire County Council,SCS Other Cost Centres,Control Account Trojan Residential Care,Balance Sheet General,B2040,ABACUS Accounts Payable Control A/c,13/09/2012,7000440367,3707.19,Westbury House Nursing Home
http://statistics.data.gov.uk/id/local-authority/38,Oxfordshire County Council,SCS Other Cost Centres,Control Account Trojan Residential Care,Balance Sheet General,B2040,ABACUS Accounts Payable Control A/c,13/09/2012,7000440166,29646.26,Oxford Beaumont
http://statistics.data.gov.uk/id/local-authority/38,Oxfordshire County Council,SCS Other Cost Centres,Control Account Trojan Residential Care,Balance Sheet General,B2040,ABACUS Accounts Payable Control A/c,13/09/2012,7000440376,70135.38,Winterbrook Care Home Ltd t/a
http://statistics.data.gov.uk/id/local-authority/38,Oxfordshire County Council,SCS Other Cost Centres,Control Account Trojan Residential Care,Balance Sheet General,B2040,ABACUS Accounts Payable Control A/c,13/09/2012,7000440377,1920.47,Wylesfield R/H - BUPA Care Ser
http://statistics.data.gov.uk/id/local-authority/38,Oxfordshire County Council,SCS Other Cost Centres,Control Account Trojan Residential Care,Balance Sheet General,B2040,ABACUS Accounts Payable Control A/c,13/09/2012,7000439911,2101.84,Sanctuary Care
http://statistics.data.gov.uk/id/local-authority/38,Oxfordshire County Council,SCS Other Cost Centres,Control Account Trojan Residential Care,Balance Sheet General,B2040,ABACUS Accounts Payable Control A/c,13/09/2012,7000440038,2238.69,Sanctuary Care
http://statistics.data.gov.uk/id/local-authority/38,Oxfordshire County Council,SCS Other Cost Centres,Control Account Trojan Residential Care,Balance Sheet General,B2040,ABACUS Accounts Payable Control A/c,13/09/2012,7000440362,109315.58,Sanctuary Care
http://statistics.data.gov.uk/id/local-authority/38,Oxfordshire County Council,SCS Other Cost Centres,Control Account Trojan Residential Care,Balance Sheet General,B2040,ABACUS Accounts Payable Control A/c,13/09/2012,7000440365,112648.82,Sanctuary Care
http://statistics.data.gov.uk/id/local-authority/38,Oxfordshire County Council,SCS Other Cost Centres,Control Account Trojan Residential Care,Balance Sheet General,B2040,ABACUS Accounts Payable Control A/c,13/09/2012,7000440378,75125.8,Sanctuary Care
http://statistics.data.gov.uk/id/local-authority/38,Oxfordshire County Council,SCS Other Cost Centres,Control Account Trojan Residential Care,Balance Sheet General,B2040,ABACUS Accounts Payable Control A/c,13/09/2012,7000440011,1020.86,Francis House
http://statistics.data.gov.uk/id/local-authority/38,Oxfordshire County Council,SCS Other Cost Centres,Control Account Trojan Residential Care,Balance Sheet General,B2040,ABACUS Accounts Payable Control A/c,13/09/2012,7000440013,4189.2,Freeways Trust
http://statistics.data.gov.uk/id/local-authority/38,Oxfordshire County Council,SCS Other Cost Centres,Control Account Trojan Residential Care,Balance Sheet General,B2040,ABACUS Accounts Payable Control A/c,13/09/2012,7000440014,857.14,Freeways Trust
http://statistics.data.gov.uk/id/local-authority/38,Oxfordshire County Council,SCS Other Cost Centres,Control Account Trojan Residential Care,Balance Sheet General,B2040,ABACUS Accounts Payable Control A/c,13/09/2012,7000439912,6801.47,Aspects and Milestones Trust
http://statistics.data.gov.uk/id/local-authority/38,Oxfordshire County Council,SCS Other Cost Centres,Control Account Trojan Residential Care,Balance Sheet General,B2040,ABACUS Accounts Payable Control A/c,13/09/2012,7000440015,5522.27,Galanos House
http://statistics.data.gov.uk/id/local-authority/38,Oxfordshire County Council,SCS Other Cost Centres,Control Account Trojan Residential Care,Balance Sheet General,B2040,ABACUS Accounts Payable Control A/c,13/09/2012,7000440021,77562.92,Glebefields Ltd
http://statistics.data.gov.uk/id/local-authority/38,Oxfordshire County Council,SCS Other Cost Centres,Control Account Trojan Residential Care,Balance Sheet General,B2040,ABACUS Accounts Payable Control A/c,13/09/2012,7000440030,111178.63,Green Gates NH (BUPA)
http://statistics.data.gov.uk/id/local-authority/38,Oxfordshire County Council,SCS Other Cost Centres,Control Account Trojan Residential Care,Balance Sheet General,B2040,ABACUS Accounts Payable Control A/c,13/09/2012,7000440031,19059.32,Green Pastures Christian NH
http://statistics.data.gov.uk/id/local-authority/38,Oxfordshire County Council,SCS Other Cost Centres,Control Account Trojan Residential Care,Balance Sheet General,B2040,ABACUS Accounts Payable Control A/c,13/09/2012,7000440102,210405.15,Mencap Contracts
http://statistics.data.gov.uk/id/local-authority/38,Oxfordshire County Council,SCS Other Cost Centres,Control Account Trojan Residential Care,Balance Sheet General,B2040,ABACUS Accounts Payable Control A/c,28/09/2012,7000447407,2592,Mencap Contracts
http://statistics.data.gov.uk/id/local-authority/38,Oxfordshire County Council,SCS Other Cost Centres,Control Account Trojan Residential Care,Balance Sheet General,B2040,ABACUS Accounts Payable Control A/c,13/09/2012,7000440203,2653.07,SELF UNLIMITED
http://statistics.data.gov.uk/id/local-authority/38,Oxfordshire County Council,SCS Other Cost Centres,Control Account Trojan Residential Care,Balance Sheet General,B2040,ABACUS Accounts Payable Control A/c,13/09/2012,7000440204,1917.21,SELF UNLIMITED
http://statistics.data.gov.uk/id/local-authority/38,Oxfordshire County Council,SCS Other Cost Centres,Control Account Trojan Residential Care,Balance Sheet General,B2040,ABACUS Accounts Payable Control A/c,13/09/2012,7000440205,1917.21,SELF UNLIMITED
http://statistics.data.gov.uk/id/local-authority/38,Oxfordshire County Council,SCS Other Cost Centres,Control Account Trojan Residential Care,Balance Sheet General,B2040,ABACUS Accounts Payable Control A/c,13/09/2012,7000440033,14211.43,Guardian Care
http://statistics.data.gov.uk/id/local-authority/38,Oxfordshire County Council,SCS Other Cost Centres,Control Account Trojan Residential Care,Balance Sheet General,B2040,ABACUS Accounts Payable Control A/c,13/09/2012,7000440041,902.83,Heathfield Residential Home
http://statistics.data.gov.uk/id/local-authority/38,Oxfordshire County Council,SCS Other Cost Centres,Control Account Trojan Residential Care,Balance Sheet General,B2040,ABACUS Accounts Payable Control A/c,13/09/2012,7000440103,24541.87,Merryfield Nursing Home
http://statistics.data.gov.uk/id/local-authority/38,Oxfordshire County Council,SCS Other Cost Centres,Control Account Trojan Residential Care,Balance Sheet General,B2040,ABACUS Accounts Payable Control A/c,13/09/2012,7000440371,12330.99,Michael Wheatley Cons.Limited
http://statistics.data.gov.uk/id/local-authority/38,Oxfordshire County Council,SCS Other Cost Centres,Control Account Trojan Residential Care,Balance Sheet General,B2040,ABACUS Accounts Payable Control A/c,13/09/2012,7000439952,67083.44,Chacombe Park Care Home
http://statistics.data.gov.uk/id/local-authority/38,Oxfordshire County Council,SCS Other Cost Centres,Control Account Trojan Residential Care,Balance Sheet General,B2040,ABACUS Accounts Payable Control A/c,13/09/2012,7000440104,83710.02,Middletown Grange Care Home
http://statistics.data.gov.uk/id/local-authority/38,Oxfordshire County Council,SCS Other Cost Centres,Control Account Trojan Residential Care,Balance Sheet General,B2040,ABACUS Accounts Payable Control A/c,21/09/2012,7000444388,4123.24,Middletown Grange Care Home
http://statistics.data.gov.uk/id/local-authority/38,Oxfordshire County Council,SCS Other Cost Centres,Control Account Trojan Residential Care,Balance Sheet General,B2040,ABACUS Accounts Payable Control A/c,13/09/2012,7000440040,69952.04,Heathfield House Nursing Home
http://statistics.data.gov.uk/id/local-authority/38,Oxfordshire County Council,SCS Other Cost Centres,Control Account Trojan Residential Care,Balance Sheet General,B2040,ABACUS Accounts Payable Control A/c,13/09/2012,7000440042,13060.5,Hempton Field Nursing Home
http://statistics.data.gov.uk/id/local-authority/38,Oxfordshire County Council,SCS Other Cost Centres,Control Account Trojan Residential Care,Balance Sheet General,B2040,ABACUS Accounts Payable Control A/c,13/09/2012,7000440043,18311.7,Heron Care Ltd.
http://statistics.data.gov.uk/id/local-authority/38,Oxfordshire County Council,SCS Other Cost Centres,Control Account Trojan Residential Care,Balance Sheet General,B2040,ABACUS Accounts Payable Control A/c,13/09/2012,7000439953,17513.36,Chalfont Lodge Care Centre
http://statistics.data.gov.uk/id/local-authority/38,Oxfordshire County Council,SCS Other Cost Centres,Control Account Trojan Residential Care,Balance Sheet General,B2040,ABACUS Accounts Payable Control A/c,13/09/2012,7000439958,8349.57,Regal Care Homes Ltd - In Administr
http://statistics.data.gov.uk/id/local-authority/38,Oxfordshire County Council,SCS Other Cost Centres,Control Account Trojan Residential Care,Balance Sheet General,B2040,ABACUS Accounts Payable Control A/c,13/09/2012,7000439961,6209.27,Cherry Trees Care Home
http://statistics.data.gov.uk/id/local-authority/38,Oxfordshire County Council,SCS Other Cost Centres,Control Account Trojan Residential Care,Balance Sheet General,B2040,ABACUS Accounts Payable Control A/c,13/09/2012,7000439962,4387.72,Chervil Cottage
http://statistics.data.gov.uk/id/local-authority/38,Oxfordshire County Council,SCS Other Cost Centres,Control Account Trojan Residential Care,Balance Sheet General,B2040,ABACUS Accounts Payable Control A/c,13/09/2012,7000439968,22080,Christchurch Court Ltd
http://statistics.data.gov.uk/id/local-authority/38,Oxfordshire County Council,SCS Other Cost Centres,Control Account Trojan Residential Care,Balance Sheet General,B2040,ABACUS Accounts Payable Control A/c,13/09/2012,7000439970,16905.84,Cleeve Lodge Residential Home
http://statistics.data.gov.uk/id/local-authority/38,Oxfordshire County Council,SCS Other Cost Centres,Control Account Trojan Residential Care,Balance Sheet General,B2040,ABACUS Accounts Payable Control A/c,13/09/2012,7000439972,1753.59,Coble House Nursing Home
http://statistics.data.gov.uk/id/local-authority/38,Oxfordshire County Council,SCS Other Cost Centres,Control Account Trojan Residential Care,Balance Sheet General,B2040,ABACUS Accounts Payable Control A/c,13/09/2012,7000439974,4653.26,Conquest Care Homes
http://statistics.data.gov.uk/id/local-authority/38,Oxfordshire County Council,SCS Other Cost Centres,Control Account Trojan Residential Care,Balance Sheet General,B2040,ABACUS Accounts Payable Control A/c,13/09/2012,7000440044,297650.18,HF TRUST Ltd
http://statistics.data.gov.uk/id/local-authority/38,Oxfordshire County Council,SCS Other Cost Centres,Control Account Trojan Residential Care,Balance Sheet General,B2040,ABACUS Accounts Payable Control A/c,13/09/2012,7000440050,4674.09,Honeybourne House (Clarkson)
http://statistics.data.gov.uk/id/local-authority/38,Oxfordshire County Council,SCS Other Cost Centres,Control Account Trojan Residential Care,Balance Sheet General,B2040,ABACUS Accounts Payable Control A/c,13/09/2012,7000440161,50031.89,Orders of St John
http://statistics.data.gov.uk/id/local-authority/38,Oxfordshire County Council,SCS Other Cost Centres,Control Account Trojan Residential Care,Balance Sheet General,B2040,ABACUS Accounts Payable Control A/c,13/09/2012,7000440162,76965.31,Orders of St John
http://statistics.data.gov.uk/id/local-authority/38,Oxfordshire County Council,SCS Other Cost Centres,Control Account Trojan Residential Care,Balance Sheet General,B2040,ABACUS Accounts Payable Control A/c,13/09/2012,7000440052,48582.9,Huntercombe Hall Ltd
http://statistics.data.gov.uk/id/local-authority/38,Oxfordshire County Council,SCS Other Cost Centres,Control Account Trojan Residential Care,Balance Sheet General,B2040,ABACUS Accounts Payable Control A/c,13/09/2012,7000440054,6035.91,Iver House Ltd
http://statistics.data.gov.uk/id/local-authority/38,Oxfordshire County Council,SCS Other Cost Centres,Control Account Trojan Residential Care,Balance Sheet General,B2040,ABACUS Accounts Payable Control A/c,13/09/2012,7000440163,3394.15,Overslade House
http://statistics.data.gov.uk/id/local-authority/38,Oxfordshire County Council,SCS Other Cost Centres,Control Account Trojan Residential Care,Balance Sheet General,B2040,ABACUS Accounts Payable Control A/c,13/09/2012,7000440164,11646.64,Oxenford House
http://statistics.data.gov.uk/id/local-authority/38,Oxfordshire County Council,SCS Other Cost Centres,Control Account Trojan Residential Care,Balance Sheet General,B2040,ABACUS Accounts Payable Control A/c,13/09/2012,7000440167,2236.71,Oxford Group Home Organ
http://statistics.data.gov.uk/id/local-authority/38,Oxfordshire County Council,SCS Other Cost Centres,Control Account Trojan Residential Care,Balance Sheet General,B2040,ABACUS Accounts Payable Control A/c,13/09/2012,7000440186,20437.75,Oxford Group Home Organ
http://statistics.data.gov.uk/id/local-authority/38,Oxfordshire County Council,SCS Other Cost Centres,Control Account Trojan Residential Care,Balance Sheet General,B2040,ABACUS Accounts Payable Control A/c,13/09/2012,7000440055,4189.37,Jasmine House
http://statistics.data.gov.uk/id/local-authority/38,Oxfordshire County Council,SCS Other Cost Centres,Control Account Trojan Residential Care,Balance Sheet General,B2040,ABACUS Accounts Payable Control A/c,13/09/2012,7000440060,2330.74,Kingsmead Nursing Home
http://statistics.data.gov.uk/id/local-authority/38,Oxfordshire County Council,SCS Other Cost Centres,Control Account Trojan Residential Care,Balance Sheet General,B2040,ABACUS Accounts Payable Control A/c,13/09/2012,7000440062,2809.6,Kirlena House
http://statistics.data.gov.uk/id/local-authority/38,Oxfordshire County Council,SCS Other Cost Centres,Control Account Trojan Residential Care,Balance Sheet General,B2040,ABACUS Accounts Payable Control A/c,13/09/2012,7000439976,94389.3,Coxwell Hall & Mews Nursing Home
http://statistics.data.gov.uk/id/local-authority/38,Oxfordshire County Council,SCS Other Cost Centres,Control Account Trojan Residential Care,Balance Sheet General,B2040,ABACUS Accounts Payable Control A/c,13/09/2012,7000439977,11933.4,Craegmoor Health
http://statistics.data.gov.uk/id/local-authority/38,Oxfordshire County Council,SCS Other Cost Centres,Control Account Trojan Residential Care,Balance Sheet General,B2040,ABACUS Accounts Payable Control A/c,13/09/2012,7000439978,16657.6,Culworth House
http://statistics.data.gov.uk/id/local-authority/38,Oxfordshire County Council,SCS Other Cost Centres,Control Account Trojan Residential Care,Balance Sheet General,B2040,ABACUS Accounts Payable Control A/c,13/09/2012,7000439981,27966.91,David Lewis Centre Ltd
http://statistics.data.gov.uk/id/local-authority/38,Oxfordshire County Council,SCS Other Cost Centres,Control Account Trojan Residential Care,Balance Sheet General,B2040,ABACUS Accounts Payable Control A/c,13/09/2012,7000439982,1992.64,Dean Park Residential Home
http://statistics.data.gov.uk/id/local-authority/38,Oxfordshire County Council,SCS Other Cost Centres,Control Account Trojan Residential Care,Balance Sheet General,B2040,ABACUS Accounts Payable Control A/c,13/09/2012,7000440066,2328.17,Lady Nuffield Residential Home
http://statistics.data.gov.uk/id/local-authority/38,Oxfordshire County Council,SCS Other Cost Centres,Control Account Trojan Residential Care,Balance Sheet General,B2040,ABACUS Accounts Payable Control A/c,13/09/2012,7000440069,46829.85,Lashbrook House Nursing Home
http://statistics.data.gov.uk/id/local-authority/38,Oxfordshire County Council,SCS Other Cost Centres,Home Support trading account for PBs,Other Agency and Contracted Services,57300,Home Support (Ext) OS&HCD,05/09/2012,7000437646,2584.84,Leonard Cheshire Disability
http://statistics.data.gov.uk/id/local-authority/38,Oxfordshire County Council,SCS Other Cost Centres,Control Account Trojan Residential Care,Balance Sheet General,B2040,ABACUS Accounts Payable Control A/c,13/09/2012,7000440071,81106.2,Leonard Cheshire Disability
http://statistics.data.gov.uk/id/local-authority/38,Oxfordshire County Council,SCS Other Cost Centres,Control Account Trojan Residential Care,Balance Sheet General,B2040,ABACUS Accounts Payable Control A/c,13/09/2012,7000440072,5743.54,Leonard Cheshire Disability
http://statistics.data.gov.uk/id/local-authority/38,Oxfordshire County Council,SCS Other Cost Centres,Control Account Trojan Residential Care,Balance Sheet General,B2040,ABACUS Accounts Payable Control A/c,13/09/2012,7000440073,2328.43,Leonard Cheshire Disability
http://statistics.data.gov.uk/id/local-authority/38,Oxfordshire County Council,SCS Other Cost Centres,Control Account Trojan Residential Care,Balance Sheet General,B2040,ABACUS Accounts Payable Control A/c,13/09/2012,7000440074,7625.87,Leonard Cheshire Disability
http://statistics.data.gov.uk/id/local-authority/38,Oxfordshire County Council,SCS Other Cost Centres,Control Account Trojan Residential Care,Balance Sheet General,B2040,ABACUS Accounts Payable Control A/c,13/09/2012,7000440076,73142.27,Leonard Cheshire Disability
http://statistics.data.gov.uk/id/local-authority/38,Oxfordshire County Council,SCS Other Cost Centres,Home Support trading account for PBs,Other Agency and Contracted Services,57300,Home Support (Ext) OS&HCD,19/09/2012,7000443763,19284.49,Leonard Cheshire Disability
http://statistics.data.gov.uk/id/local-authority/38,Oxfordshire County Council,SCS Other Cost Centres,Control Account Trojan Residential Care,Balance Sheet General,B2040,ABACUS Accounts Payable Control A/c,13/09/2012,7000439989,5142.86,Dunraven Lodge/House
http://statistics.data.gov.uk/id/local-authority/38,Oxfordshire County Council,SCS Other Cost Centres,Control Account Trojan Residential Care,Balance Sheet General,B2040,ABACUS Accounts Payable Control A/c,13/09/2012,7000439990,10534.29,Dysons Wood House ( Reading)
http://statistics.data.gov.uk/id/local-authority/38,Oxfordshire County Council,SCS Other Cost Centres,Control Account Trojan Residential Care,Balance Sheet General,B2040,ABACUS Accounts Payable Control A/c,13/09/2012,7000439991,18864.72,Eastfield- House RH(Pangbourne)
http://statistics.data.gov.uk/id/local-authority/38,Oxfordshire County Council,SCS Other Cost Centres,Control Account Trojan Residential Care,Balance Sheet General,B2040,ABACUS Accounts Payable Control A/c,13/09/2012,7000439992,1379.53,Eden House
http://statistics.data.gov.uk/id/local-authority/38,Oxfordshire County Council,SCS Other Cost Centres,Control Account Trojan Residential Care,Balance Sheet General,B2040,ABACUS Accounts Payable Control A/c,13/09/2012,7000439993,9111.42,Eden House
http://statistics.data.gov.uk/id/local-authority/38,Oxfordshire County Council,SCS Other Cost Centres,Control Account Trojan Residential Care,Balance Sheet General,B2040,ABACUS Accounts Payable Control A/c,13/09/2012,7000439996,26696.36,Enstone House
http://statistics.data.gov.uk/id/local-authority/38,Oxfordshire County Council,SCS Other Cost Centres,Control Account Trojan Residential Care,Balance Sheet General,B2040,ABACUS Accounts Payable Control A/c,13/09/2012,7000439997,4916.74,Evergreen
http://statistics.data.gov.uk/id/local-authority/38,Oxfordshire County Council,SCS Other Cost Centres,Control Account Trojan Residential Care,Balance Sheet General,B2040,ABACUS Accounts Payable Control A/c,13/09/2012,7000440000,6819.6,Fairholme House
http://statistics.data.gov.uk/id/local-authority/38,Oxfordshire County Council,SCS Other Cost Centres,Control Account Trojan Residential Care,Balance Sheet General,B2040,ABACUS Accounts Payable Control A/c,19/09/2012,7000444221,12352.35,Fairholme House
http://statistics.data.gov.uk/id/local-authority/38,Oxfordshire County Council,SCS Other Cost Centres,Control Account Trojan Residential Care,Balance Sheet General,B2040,ABACUS Accounts Payable Control A/c,27/09/2012,7000447224,1900.94,Fairholme House
http://statistics.data.gov.uk/id/local-authority/38,Oxfordshire County Council,SCS Other Cost Centres,Control Account Trojan Residential Care,Balance Sheet General,B2040,ABACUS Accounts Payable Control A/c,13/09/2012,7000440294,1756.54,St Ronans Nursing and
http://statistics.data.gov.uk/id/local-authority/38,Oxfordshire County Council,SCS Other Cost Centres,Control Account Trojan Residential Care,Balance Sheet General,B2040,ABACUS Accounts Payable Control A/c,13/09/2012,7000440296,87867.26,Stepping Stones (Glos)
http://statistics.data.gov.uk/id/local-authority/38,Oxfordshire County Council,SCS Other Cost Centres,Control Account Trojan Residential Care,Balance Sheet General,B2040,ABACUS Accounts Payable Control A/c,13/09/2012,7000440298,31702.37,Stroud Court Community Trust
http://statistics.data.gov.uk/id/local-authority/38,Oxfordshire County Council,SCS Other Cost Centres,Control Account Trojan Residential Care,Balance Sheet General,B2040,ABACUS Accounts Payable Control A/c,13/09/2012,7000440316,10464.09,Enham
http://statistics.data.gov.uk/id/local-authority/38,Oxfordshire County Council,SCS Other Cost Centres,Control Account Trojan Residential Care,Balance Sheet General,B2040,ABACUS Accounts Payable Control A/c,13/09/2012,7000440317,1690.89,The Frances Taylor Foundation
http://statistics.data.gov.uk/id/local-authority/38,Oxfordshire County Council,SCS Other Cost Centres,Control Account Trojan Residential Care,Balance Sheet General,B2040,ABACUS Accounts Payable Control A/c,13/09/2012,7000440078,1539.9,Lindum House Residential Care Home
http://statistics.data.gov.uk/id/local-authority/38,Oxfordshire County Council,SCS Other Cost Centres,Control Account Trojan Residential Care,Balance Sheet General,B2040,ABACUS Accounts Payable Control A/c,13/09/2012,7000439894,39453.98,Abbey Crest Nursing Home
http://statistics.data.gov.uk/id/local-authority/38,Oxfordshire County Council,SCS Other Cost Centres,Control Account Trojan Residential Care,Balance Sheet General,B2040,ABACUS Accounts Payable Control A/c,13/09/2012,7000440319,18723.74,The Grange Residential Home
http://statistics.data.gov.uk/id/local-authority/38,Oxfordshire County Council,SCS Other Cost Centres,Control Account Trojan Residential Care,Balance Sheet General,B2040,ABACUS Accounts Payable Control A/c,13/09/2012,7000440080,61926.49,Longlands Nursing Home
http://statistics.data.gov.uk/id/local-authority/38,Oxfordshire County Council,SCS Other Cost Centres,Control Account Trojan Residential Care,Balance Sheet General,B2040,ABACUS Accounts Payable Control A/c,13/09/2012,7000440085,4060.37,Lyndhurst Residential Care Home
http://statistics.data.gov.uk/id/local-authority/38,Oxfordshire County Council,SCS Other Cost Centres,Control Account Trojan Residential Care,Balance Sheet General,B2040,ABACUS Accounts Payable Control A/c,13/09/2012,7000440086,3904.93,Macintyre Care - 1 Bartlett Close
http://statistics.data.gov.uk/id/local-authority/38,Oxfordshire County Council,SCS Other Cost Centres,Control Account Trojan Residential Care,Balance Sheet General,B2040,ABACUS Accounts Payable Control A/c,13/09/2012,7000440087,3227.31,Macintyre Care - 1 Bartlett Close
http://statistics.data.gov.uk/id/local-authority/38,Oxfordshire County Council,SCS Other Cost Centres,Control Account Trojan Residential Care,Balance Sheet General,B2040,ABACUS Accounts Payable Control A/c,13/09/2012,7000440088,7546.7,Macintyre Care - 1 Bartlett Close
http://statistics.data.gov.uk/id/local-authority/38,Oxfordshire County Council,SCS Other Cost Centres,Control Account Trojan Residential Care,Balance Sheet General,B2040,ABACUS Accounts Payable Control A/c,13/09/2012,7000440089,6281.28,Macintyre Care - 1 Bartlett Close
http://statistics.data.gov.uk/id/local-authority/38,Oxfordshire County Council,SCS Other Cost Centres,Control Account Trojan Residential Care,Balance Sheet General,B2040,ABACUS Accounts Payable Control A/c,13/09/2012,7000440090,4619.14,Macintyre Care - 1 Bartlett Close
http://statistics.data.gov.uk/id/local-authority/38,Oxfordshire County Council,SCS Other Cost Centres,Control Account Trojan Residential Care,Balance Sheet General,B2040,ABACUS Accounts Payable Control A/c,13/09/2012,7000440091,3443.74,Macintyre Care - 1 Bartlett Close
http://statistics.data.gov.uk/id/local-authority/38,Oxfordshire County Council,SCS Other Cost Centres,Control Account Trojan Residential Care,Balance Sheet General,B2040,ABACUS Accounts Payable Control A/c,13/09/2012,7000440092,14383.54,Macintyre Care - 1 Bartlett Close
http://statistics.data.gov.uk/id/local-authority/38,Oxfordshire County Council,SCS Other Cost Centres,Control Account Trojan Residential Care,Balance Sheet General,B2040,ABACUS Accounts Payable Control A/c,13/09/2012,7000440306,100687.43,The Albany Care Home
http://statistics.data.gov.uk/id/local-authority/38,Oxfordshire County Council,SCS Other Cost Centres,Control Account Trojan Residential Care,Balance Sheet General,B2040,ABACUS Accounts Payable Control A/c,13/09/2012,7000440312,21901.93,The Close Residential Home
http://statistics.data.gov.uk/id/local-authority/38,Oxfordshire County Council,SCS Other Cost Centres,Control Account Trojan Residential Care,Balance Sheet General,B2040,ABACUS Accounts Payable Control A/c,13/09/2012,7000440314,15553.03,The Cotswold Home
http://statistics.data.gov.uk/id/local-authority/38,Oxfordshire County Council,SCS Other Cost Centres,Control Account Trojan Residential Care,Balance Sheet General,B2040,ABACUS Accounts Payable Control A/c,13/09/2012,7000440323,174464.72,The Kingwood Trust (Contract)
http://statistics.data.gov.uk/id/local-authority/38,Oxfordshire County Council,SCS Other Cost Centres,Control Account Trojan Residential Care,Balance Sheet General,B2040,ABACUS Accounts Payable Control A/c,13/09/2012,7000440324,6857.14,The Kingwood Trust (Rustcote Ave)
http://statistics.data.gov.uk/id/local-authority/38,Oxfordshire County Council,SCS Other Cost Centres,Control Account Trojan Residential Care,Balance Sheet General,B2040,ABACUS Accounts Payable Control A/c,13/09/2012,7000440217,2755.32,REDACTED PERSONAL DATA
http://statistics.data.gov.uk/id/local-authority/38,Oxfordshire County Council,SCS Other Cost Centres,Control Account Trojan Residential Care,Balance Sheet General,B2040,ABACUS Accounts Payable Control A/c,13/09/2012,7000440093,1064.53,Madeline Mckenna Court
http://statistics.data.gov.uk/id/local-authority/38,Oxfordshire County Council,SCS Other Cost Centres,Control Account Trojan Residential Care,Balance Sheet General,B2040,ABACUS Accounts Payable Control A/c,13/09/2012,7000439925,11220.68,PJ Care Ltd
http://statistics.data.gov.uk/id/local-authority/38,Oxfordshire County Council,SCS Other Cost Centres,Control Account Trojan Residential Care,Balance Sheet General,B2040,ABACUS Accounts Payable Control A/c,13/09/2012,7000440094,30880.4,PJ Care Ltd
http://statistics.data.gov.uk/id/local-authority/38,Oxfordshire County Council,SCS Other Cost Centres,Control Account Trojan Residential Care,Balance Sheet General,B2040,ABACUS Accounts Payable Control A/c,13/09/2012,7000440325,14599.33,The Kingwood Trust (White Barn)
http://statistics.data.gov.uk/id/local-authority/38,Oxfordshire County Council,SCS Other Cost Centres,Control Account Trojan Residential Care,Balance Sheet General,B2040,ABACUS Accounts Payable Control A/c,13/09/2012,7000440218,3661.7,REDACTED PERSONAL DATA
http://statistics.data.gov.uk/id/local-authority/38,Oxfordshire County Council,SCS Other Cost Centres,Control Account Trojan Residential Care,Balance Sheet General,B2040,ABACUS Accounts Payable Control A/c,13/09/2012,7000440326,42370.91,The Langston
http://statistics.data.gov.uk/id/local-authority/38,Oxfordshire County Council,SCS Other Cost Centres,Control Account Trojan Residential Care,Balance Sheet General,B2040,ABACUS Accounts Payable Control A/c,13/09/2012,7000440327,1230.3,The Lantern Community
http://statistics.data.gov.uk/id/local-authority/38,Oxfordshire County Council,SCS Other Cost Centres,Control Account Trojan Residential Care,Balance Sheet General,B2040,ABACUS Accounts Payable Control A/c,13/09/2012,7000440095,187257.06,Manor House NH (Merton) Ltd.
http://statistics.data.gov.uk/id/local-authority/38,Oxfordshire County Council,SCS Other Cost Centres,Control Account Trojan Residential Care,Balance Sheet General,B2040,ABACUS Accounts Payable Control A/c,13/09/2012,7000440096,2795.16,Manor House Nursing Home RNCC
http://statistics.data.gov.uk/id/local-authority/38,Oxfordshire County Council,SCS Other Cost Centres,Control Account Trojan Residential Care,Balance Sheet General,B2040,ABACUS Accounts Payable Control A/c,13/09/2012,7000440097,7012.54,Maria Skobtsova House Ltd.
http://statistics.data.gov.uk/id/local-authority/38,Oxfordshire County Council,SCS Other Cost Centres,Control Account Trojan Residential Care,Balance Sheet General,B2040,ABACUS Accounts Payable Control A/c,13/09/2012,7000440099,6944.27,Selwyn Care Ltd (Matson House)
http://statistics.data.gov.uk/id/local-authority/38,Oxfordshire County Council,SCS Other Cost Centres,Control Account Trojan Residential Care,Balance Sheet General,B2040,ABACUS Accounts Payable Control A/c,13/09/2012,7000440318,63903.24,The Grange Care Centre
http://statistics.data.gov.uk/id/local-authority/38,Oxfordshire County Council,SCS Other Cost Centres,Control Account Trojan Residential Care,Balance Sheet General,B2040,ABACUS Accounts Payable Control A/c,13/09/2012,7000439915,1692.64,Badgeworth Court Care Home
http://statistics.data.gov.uk/id/local-authority/38,Oxfordshire County Council,SCS Other Cost Centres,Control Account Trojan Residential Care,Balance Sheet General,B2040,ABACUS Accounts Payable Control A/c,13/09/2012,7000440101,7271.96,Mencap
http://statistics.data.gov.uk/id/local-authority/38,Oxfordshire County Council,SCS Other Cost Centres,Control Account Trojan Residential Care,Balance Sheet General,B2040,ABACUS Accounts Payable Control A/c,13/09/2012,7000440331,2837.79,The Lodge Trust
http://statistics.data.gov.uk/id/local-authority/38,Oxfordshire County Council,SCS Other Cost Centres,Control Account Trojan Residential Care,Balance Sheet General,B2040,ABACUS Accounts Payable Control A/c,13/09/2012,7000440332,1490.74,The Manor Farm Household
http://statistics.data.gov.uk/id/local-authority/38,Oxfordshire County Council,SCS Other Cost Centres,Control Account Trojan Residential Care,Balance Sheet General,B2040,ABACUS Accounts Payable Control A/c,13/09/2012,7000440333,4814.01,The Meath
http://statistics.data.gov.uk/id/local-authority/38,Oxfordshire County Council,SCS Other Cost Centres,Control Account Trojan Residential Care,Balance Sheet General,B2040,ABACUS Accounts Payable Control A/c,13/09/2012,7000440334,3724.76,The Mount Nursing &
http://statistics.data.gov.uk/id/local-authority/38,Oxfordshire County Council,SCS Other Cost Centres,Control Account Trojan Residential Care,Balance Sheet General,B2040,ABACUS Accounts Payable Control A/c,13/09/2012,7000439916,33493.71,Beacher Hall Nursing Centre
http://statistics.data.gov.uk/id/local-authority/38,Oxfordshire County Council,SCS Other Cost Centres,Control Account Trojan Residential Care,Balance Sheet General,B2040,ABACUS Accounts Payable Control A/c,13/09/2012,7000440335,16288.5,Home from Home Care Ltd
http://statistics.data.gov.uk/id/local-authority/38,Oxfordshire County Council,SCS Other Cost Centres,Control Account Trojan Residential Care,Balance Sheet General,B2040,ABACUS Accounts Payable Control A/c,13/09/2012,7000440226,1536.84,REDACTED PERSONAL DATA
http://statistics.data.gov.uk/id/local-authority/38,Oxfordshire County Council,SCS Other Cost Centres,Control Account Trojan Residential Care,Balance Sheet General,B2040,ABACUS Accounts Payable Control A/c,13/09/2012,7000440337,7281.43,The Old Rectory (Trowbridge)
http://statistics.data.gov.uk/id/local-authority/38,Oxfordshire County Council,SCS Other Cost Centres,Control Account Trojan Residential Care,Balance Sheet General,B2040,ABACUS Accounts Payable Control A/c,13/09/2012,7000440227,696.46,REDACTED PERSONAL DATA
http://statistics.data.gov.uk/id/local-authority/38,Oxfordshire County Council,SCS Other Cost Centres,Control Account Trojan Residential Care,Balance Sheet General,B2040,ABACUS Accounts Payable Control A/c,13/09/2012,7000439919,23878.71,Beech Haven Care Home
http://statistics.data.gov.uk/id/local-authority/38,Oxfordshire County Council,SCS Other Cost Centres,Control Account Trojan Residential Care,Balance Sheet General,B2040,ABACUS Accounts Payable Control A/c,13/09/2012,7000440229,1722.13,REDACTED PERSONAL DATA
http://statistics.data.gov.uk/id/local-authority/38,Oxfordshire County Council,SCS Other Cost Centres,Control Account Trojan Residential Care,Balance Sheet General,B2040,ABACUS Accounts Payable Control A/c,13/09/2012,7000440338,39060.57,The Old Vicarage
http://statistics.data.gov.uk/id/local-authority/38,Oxfordshire County Council,SCS Other Cost Centres,Control Account Trojan Residential Care,Balance Sheet General,B2040,ABACUS Accounts Payable Control A/c,13/09/2012,7000440230,5137.49,REDACTED PERSONAL DATA
http://statistics.data.gov.uk/id/local-authority/38,Oxfordshire County Council,SCS Other Cost Centres,Control Account Trojan Residential Care,Balance Sheet General,B2040,ABACUS Accounts Payable Control A/c,13/09/2012,7000440232,1722.13,REDACTED PERSONAL DATA
http://statistics.data.gov.uk/id/local-authority/38,Oxfordshire County Council,SCS Other Cost Centres,Control Account Trojan Residential Care,Balance Sheet General,B2040,ABACUS Accounts Payable Control A/c,13/09/2012,7000440341,2374.16,The Red House N H (Syresham)
http://statistics.data.gov.uk/id/local-authority/38,Oxfordshire County Council,SCS Other Cost Centres,Control Account Trojan Residential Care,Balance Sheet General,B2040,ABACUS Accounts Payable Control A/c,13/09/2012,7000440147,34401.14,Orders of St John
http://statistics.data.gov.uk/id/local-authority/38,Oxfordshire County Council,SCS Other Cost Centres,Control Account Trojan Residential Care,Balance Sheet General,B2040,ABACUS Accounts Payable Control A/c,13/09/2012,7000440146,61453.02,Orders of St John
http://statistics.data.gov.uk/id/local-authority/38,Oxfordshire County Council,SCS Other Cost Centres,Control Account Trojan Residential Care,Balance Sheet General,B2040,ABACUS Accounts Payable Control A/c,13/09/2012,7000440345,38116.44,The Triangle Nursing Home
http://statistics.data.gov.uk/id/local-authority/38,Oxfordshire County Council,SCS Other Cost Centres,Control Account Trojan Residential Care,Balance Sheet General,B2040,ABACUS Accounts Payable Control A/c,13/09/2012,7000439893,20231.44,2 Care
http://statistics.data.gov.uk/id/local-authority/38,Oxfordshire County Council,SCS Other Cost Centres,Control Account Trojan Residential Care,Balance Sheet General,B2040,ABACUS Accounts Payable Control A/c,13/09/2012,7000440351,3023.19,Thornbury House Residential
http://statistics.data.gov.uk/id/local-authority/38,Oxfordshire County Council,SCS Other Cost Centres,Control Account Trojan Residential Care,Balance Sheet General,B2040,ABACUS Accounts Payable Control A/c,13/09/2012,7000440148,38297.49,Orders of St John
http://statistics.data.gov.uk/id/local-authority/38,Oxfordshire County Council,SCS Other Cost Centres,Control Account Trojan Residential Care,Balance Sheet General,B2040,ABACUS Accounts Payable Control A/c,13/09/2012,7000440150,33906.06,Orders of St John
http://statistics.data.gov.uk/id/local-authority/38,Oxfordshire County Council,SCS Other Cost Centres,Control Account Trojan Residential Care,Balance Sheet General,B2040,ABACUS Accounts Payable Control A/c,13/09/2012,7000440152,106087,Orders of St John
http://statistics.data.gov.uk/id/local-authority/38,Oxfordshire County Council,SCS Other Cost Centres,Control Account Trojan Residential Care,Balance Sheet General,B2040,ABACUS Accounts Payable Control A/c,13/09/2012,7000440236,817.55,REDACTED PERSONAL DATA
http://statistics.data.gov.uk/id/local-authority/38,Oxfordshire County Council,SCS Other Cost Centres,Control Account Trojan Residential Care,Balance Sheet General,B2040,ABACUS Accounts Payable Control A/c,17/09/2012,7000443450,2288.37,REDACTED PERSONAL DATA
http://statistics.data.gov.uk/id/local-authority/38,Oxfordshire County Council,SCS Other Cost Centres,Control Account Trojan Residential Care,Balance Sheet General,B2040,ABACUS Accounts Payable Control A/c,13/09/2012,7000440353,12746.36,TRACS Ltd
http://statistics.data.gov.uk/id/local-authority/38,Oxfordshire County Council,SCS Other Cost Centres,Control Account Trojan Residential Care,Balance Sheet General,B2040,ABACUS Accounts Payable Control A/c,13/09/2012,7000440237,835.46,REDACTED PERSONAL DATA
http://statistics.data.gov.uk/id/local-authority/38,Oxfordshire County Council,SCS Other Cost Centres,Control Account Trojan Residential Care,Balance Sheet General,B2040,ABACUS Accounts Payable Control A/c,13/09/2012,7000440240,2755.32,REDACTED PERSONAL DATA
http://statistics.data.gov.uk/id/local-authority/38,Oxfordshire County Council,SCS Other Cost Centres,Control Account Trojan Residential Care,Balance Sheet General,B2040,ABACUS Accounts Payable Control A/c,13/09/2012,7000440153,85721.66,Orders of St John
http://statistics.data.gov.uk/id/local-authority/38,Oxfordshire County Council,SCS Other Cost Centres,Control Account Trojan Residential Care,Balance Sheet General,B2040,ABACUS Accounts Payable Control A/c,13/09/2012,7000440154,57405.4,Orders of St John
http://statistics.data.gov.uk/id/local-authority/38,Oxfordshire County Council,SCS Other Cost Centres,Control Account Trojan Residential Care,Balance Sheet General,B2040,ABACUS Accounts Payable Control A/c,13/09/2012,7000440155,55026.7,Orders of St John
http://statistics.data.gov.uk/id/local-authority/38,Oxfordshire County Council,SCS Other Cost Centres,Control Account Trojan Residential Care,Balance Sheet General,B2040,ABACUS Accounts Payable Control A/c,13/09/2012,7000440125,42431.4,Orders of St John
http://statistics.data.gov.uk/id/local-authority/38,Oxfordshire County Council,SCS Other Cost Centres,Control Account Trojan Residential Care,Balance Sheet General,B2040,ABACUS Accounts Payable Control A/c,13/09/2012,7000440145,283282.52,Orders of St John
http://statistics.data.gov.uk/id/local-authority/38,Oxfordshire County Council,SCS Other Cost Centres,Control Account Trojan Residential Care,Balance Sheet General,B2040,ABACUS Accounts Payable Control A/c,13/09/2012,7000440245,1919.38,REDACTED PERSONAL DATA
http://statistics.data.gov.uk/id/local-authority/38,Oxfordshire County Council,SCS Other Cost Centres,Control Account Trojan Residential Care,Balance Sheet General,B2040,ABACUS Accounts Payable Control A/c,13/09/2012,7000440360,2906.53,Valued Lives
http://statistics.data.gov.uk/id/local-authority/38,Oxfordshire County Council,SCS Other Cost Centres,Control Account Trojan Residential Care,Balance Sheet General,B2040,ABACUS Accounts Payable Control A/c,13/09/2012,7000440156,49428.73,Orders of St John
http://statistics.data.gov.uk/id/local-authority/38,Oxfordshire County Council,SCS Other Cost Centres,Control Account Trojan Residential Care,Balance Sheet General,B2040,ABACUS Accounts Payable Control A/c,13/09/2012,7000440157,67877.15,Orders of St John
http://statistics.data.gov.uk/id/local-authority/38,Oxfordshire County Council,SCS Other Cost Centres,Control Account Trojan Residential Care,Balance Sheet General,B2040,ABACUS Accounts Payable Control A/c,13/09/2012,7000440158,38811.76,Orders of St John
http://statistics.data.gov.uk/id/local-authority/38,Oxfordshire County Council,SCS Other Cost Centres,Control Account Trojan Residential Care,Balance Sheet General,B2040,ABACUS Accounts Payable Control A/c,13/09/2012,7000440151,50633.27,Orders of St John
http://statistics.data.gov.uk/id/local-authority/38,Oxfordshire County Council,SCS Other Cost Centres,Control Account Trojan Residential Care,Balance Sheet General,B2040,ABACUS Accounts Payable Control A/c,13/09/2012,7000440159,60833.61,OSJ Contract - Stirlings
http://statistics.data.gov.uk/id/local-authority/38,Oxfordshire County Council,SCS Other Cost Centres,Control Account Trojan Residential Care,Balance Sheet General,B2040,ABACUS Accounts Payable Control A/c,13/09/2012,7000440160,107229.63,Orders of St John
http://statistics.data.gov.uk/id/local-authority/38,Oxfordshire County Council,SCS Other Cost Centres,Control Account Trojan Residential Care,Balance Sheet General,B2040,ABACUS Accounts Payable Control A/c,13/09/2012,7000440250,3214.54,REDACTED PERSONAL DATA
http://statistics.data.gov.uk/id/local-authority/38,Oxfordshire County Council,SCS Other Cost Centres,Control Account Trojan Residential Care,Balance Sheet General,B2040,ABACUS Accounts Payable Control A/c,13/09/2012,7000440343,45898.99,The Ridings (Anchor Trust)
http://statistics.data.gov.uk/id/local-authority/38,Oxfordshire County Council,SCS Other Cost Centres,Control Account Trojan Residential Care,Balance Sheet General,B2040,ABACUS Accounts Payable Control A/c,13/09/2012,7000440251,1262.91,REDACTED PERSONAL DATA
http://statistics.data.gov.uk/id/local-authority/38,Oxfordshire County Council,SCS Other Cost Centres,Control Account Trojan Residential Care,Balance Sheet General,B2040,ABACUS Accounts Payable Control A/c,13/09/2012,7000440004,53269.33,Ferendune Court (Anchor Trust)
http://statistics.data.gov.uk/id/local-authority/38,Oxfordshire County Council,SCS Other Cost Centres,Control Account Trojan Residential Care,Balance Sheet General,B2040,ABACUS Accounts Payable Control A/c,13/09/2012,7000440005,75021.6,Fewcott Healthcare Ltd
http://statistics.data.gov.uk/id/local-authority/38,Oxfordshire County Council,SCS Other Cost Centres,Control Account Trojan Residential Care,Balance Sheet General,B2040,ABACUS Accounts Payable Control A/c,13/09/2012,7000440006,5030.85,Fewcott Healthcare Ltd
http://statistics.data.gov.uk/id/local-authority/38,Oxfordshire County Council,SCS Other Cost Centres,Control Account Trojan Residential Care,Balance Sheet General,B2040,ABACUS Accounts Payable Control A/c,13/09/2012,7000439932,4494,Broadreach
http://statistics.data.gov.uk/id/local-authority/38,Oxfordshire County Council,SCS Other Cost Centres,Control Account Trojan Residential Care,Balance Sheet General,B2040,ABACUS Accounts Payable Control A/c,13/09/2012,7000439934,8357.14,Brookdale Care
http://statistics.data.gov.uk/id/local-authority/38,Oxfordshire County Council,SCS Other Cost Centres,Control Account Trojan Residential Care,Balance Sheet General,B2040,ABACUS Accounts Payable Control A/c,13/09/2012,7000440056,9484.84,Brookdale Care
http://statistics.data.gov.uk/id/local-authority/38,Oxfordshire County Council,SCS Other Cost Centres,Control Account Trojan Residential Care,Balance Sheet General,B2040,ABACUS Accounts Payable Control A/c,13/09/2012,7000440010,10681.63,Framland
http://statistics.data.gov.uk/id/local-authority/38,Oxfordshire County Council,SCS Other Cost Centres,Control Account Trojan Residential Care,Balance Sheet General,B2040,ABACUS Accounts Payable Control A/c,13/09/2012,7000440361,136423.29,Voyage
http://statistics.data.gov.uk/id/local-authority/38,Oxfordshire County Council,SCS Other Cost Centres,Control Account Trojan Residential Care,Balance Sheet General,B2040,ABACUS Accounts Payable Control A/c,13/09/2012,7000440254,1492.41,REDACTED PERSONAL DATA
http://statistics.data.gov.uk/id/local-authority/38,Oxfordshire County Council,SCS Other Cost Centres,Control Account Trojan Residential Care,Balance Sheet General,B2040,ABACUS Accounts Payable Control A/c,13/09/2012,7000440255,2984.82,REDACTED PERSONAL DATA
http://statistics.data.gov.uk/id/local-authority/38,Oxfordshire County Council,SCS Other Cost Centres,Control Account Trojan Residential Care,Balance Sheet General,B2040,ABACUS Accounts Payable Control A/c,13/09/2012,7000440106,65731.26,Mill House Nursing Home
http://statistics.data.gov.uk/id/local-authority/38,Oxfordshire County Council,SCS Other Cost Centres,Control Account Trojan Residential Care,Balance Sheet General,B2040,ABACUS Accounts Payable Control A/c,13/09/2012,7000440109,27099.45,Mon Choisy
http://statistics.data.gov.uk/id/local-authority/38,Oxfordshire County Council,SCS Other Cost Centres,Control Account Trojan Residential Care,Balance Sheet General,B2040,ABACUS Accounts Payable Control A/c,13/09/2012,7000440258,1492.41,REDACTED PERSONAL DATA
http://statistics.data.gov.uk/id/local-authority/38,Oxfordshire County Council,SCS Other Cost Centres,Control Account Trojan Residential Care,Balance Sheet General,B2040,ABACUS Accounts Payable Control A/c,13/09/2012,7000439937,90344.76,Brooklands One Ltd
http://statistics.data.gov.uk/id/local-authority/38,Oxfordshire County Council,SCS Other Cost Centres,Control Account Trojan Residential Care,Balance Sheet General,B2040,ABACUS Accounts Payable Control A/c,13/09/2012,7000439938,115685.23,Brooklands Two Ltd
http://statistics.data.gov.uk/id/local-authority/38,Oxfordshire County Council,SCS Other Cost Centres,Control Account Trojan Residential Care,Balance Sheet General,B2040,ABACUS Accounts Payable Control A/c,13/09/2012,7000440116,12274.8,National Society for Epilepsy
http://statistics.data.gov.uk/id/local-authority/38,Oxfordshire County Council,SCS Other Cost Centres,Control Account Trojan Residential Care,Balance Sheet General,B2040,ABACUS Accounts Payable Control A/c,13/09/2012,7000440264,1262.91,REDACTED PERSONAL DATA
http://statistics.data.gov.uk/id/local-authority/38,Oxfordshire County Council,SCS Other Cost Centres,Control Account Trojan Residential Care,Balance Sheet General,B2040,ABACUS Accounts Payable Control A/c,13/09/2012,7000440266,2463.12,REDACTED PERSONAL DATA
http://statistics.data.gov.uk/id/local-authority/38,Oxfordshire County Council,SCS Other Cost Centres,Control Account Trojan Residential Care,Balance Sheet General,B2040,ABACUS Accounts Payable Control A/c,13/09/2012,7000440118,20826.73,Crispin Homes Ltd t/a Newland House
http://statistics.data.gov.uk/id/local-authority/38,Oxfordshire County Council,SCS Other Cost Centres,Control Account Trojan Residential Care,Balance Sheet General,B2040,ABACUS Accounts Payable Control A/c,19/09/2012,7000443708,12800,Crispin Homes Ltd t/a Newland House
http://statistics.data.gov.uk/id/local-authority/38,Oxfordshire County Council,SCS Other Cost Centres,Home Support trading account for PBs,Other Agency and Contracted Services,57300,Home Support (Ext) OS&HCD,05/09/2012,7000437627,11370.32,Amber Healthcare Personnel Ltd
http://statistics.data.gov.uk/id/local-authority/38,Oxfordshire County Council,SCS Other Cost Centres,Home Support trading account for PBs,Other Agency and Contracted Services,57300,Home Support (Ext) OS&HCD,19/09/2012,7000443744,27701.45,Amber Healthcare Personnel Ltd
http://statistics.data.gov.uk/id/local-authority/38,Oxfordshire County Council,Children's Social Care,Service Manager - Disabilities,Other Agency and Contracted Services,57300,Home Support (Ext) OS&HCD,25/09/2012,3301604269,7556.78,Amber Healthcare Personnel Ltd
http://statistics.data.gov.uk/id/local-authority/38,Oxfordshire County Council,SCS Other Cost Centres,Control Account Trojan Residential Care,Balance Sheet General,B2040,ABACUS Accounts Payable Control A/c,13/09/2012,7000439906,23969.69,Ascot Nursing Home
http://statistics.data.gov.uk/id/local-authority/38,Oxfordshire County Council,SCS Other Cost Centres,Control Account Trojan Residential Care,Balance Sheet General,B2040,ABACUS Accounts Payable Control A/c,13/09/2012,7000440119,4251.34,Nottingham Regional Society for Adu
http://statistics.data.gov.uk/id/local-authority/38,Oxfordshire County Council,SCS Other Cost Centres,Control Account Trojan Residential Care,Balance Sheet General,B2040,ABACUS Accounts Payable Control A/c,13/09/2012,7000440120,3063.43,Oak House
http://statistics.data.gov.uk/id/local-authority/38,Oxfordshire County Council,SCS Other Cost Centres,Control Account Trojan Residential Care,Balance Sheet General,B2040,ABACUS Accounts Payable Control A/c,13/09/2012,7000440121,21946.75,Oaken Holt Nursing Home
http://statistics.data.gov.uk/id/local-authority/38,Oxfordshire County Council,SCS Other Cost Centres,Control Account Trojan Residential Care,Balance Sheet General,B2040,ABACUS Accounts Payable Control A/c,13/09/2012,7000440287,1611.21,St Brelades
http://statistics.data.gov.uk/id/local-authority/38,Oxfordshire County Council,SCS Other Cost Centres,Control Account Trojan Residential Care,Balance Sheet General,B2040,ABACUS Accounts Payable Control A/c,13/09/2012,7000440184,4896.26,Residential Community Care Ltd
http://statistics.data.gov.uk/id/local-authority/38,Oxfordshire County Council,SCS Other Cost Centres,Control Account Trojan Residential Care,Balance Sheet General,B2040,ABACUS Accounts Payable Control A/c,13/09/2012,7000440187,41271.73,Richardson Partnership
http://statistics.data.gov.uk/id/local-authority/38,Oxfordshire County Council,SCS Other Cost Centres,Control Account Trojan Residential Care,Balance Sheet General,B2040,ABACUS Accounts Payable Control A/c,13/09/2012,7000440290,21793.88,St John's Residential Home
http://statistics.data.gov.uk/id/local-authority/38,Oxfordshire County Council,SCS Other Cost Centres,Control Account Trojan Residential Care,Balance Sheet General,B2040,ABACUS Accounts Payable Control A/c,13/09/2012,7000440291,1395.64,St Jude's Residential Care
http://statistics.data.gov.uk/id/local-authority/38,Oxfordshire County Council,SCS Other Cost Centres,Control Account Trojan Residential Care,Balance Sheet General,B2040,ABACUS Accounts Payable Control A/c,13/09/2012,7000437059,-5227.27,St Lukes Nursing Home (Oxford)
http://statistics.data.gov.uk/id/local-authority/38,Oxfordshire County Council,SCS Other Cost Centres,Control Account Trojan Residential Care,Balance Sheet General,B2040,ABACUS Accounts Payable Control A/c,13/09/2012,7000440292,38061.94,St Lukes Nursing Home (Oxford)
http://statistics.data.gov.uk/id/local-authority/38,Oxfordshire County Council,SCS Other Cost Centres,Control Account Trojan Residential Care,Balance Sheet General,B2040,ABACUS Accounts Payable Control A/c,13/09/2012,7000440288,3323.44,St Elizabeths Centre
http://statistics.data.gov.uk/id/local-authority/38,Oxfordshire County Council,SCS Other Cost Centres,Control Account Trojan Residential Care,Balance Sheet General,B2040,ABACUS Accounts Payable Control A/c,13/09/2012,7000440276,4473.99,Solor Care Ltd
http://statistics.data.gov.uk/id/local-authority/38,Oxfordshire County Council,SCS Other Cost Centres,Control Account Trojan Residential Care,Balance Sheet General,B2040,ABACUS Accounts Payable Control A/c,13/09/2012,7000440196,13139.97,Rushcourt Nursing Home
http://statistics.data.gov.uk/id/local-authority/38,Oxfordshire County Council,SCS Other Cost Centres,Control Account Trojan Residential Care,Balance Sheet General,B2040,ABACUS Accounts Payable Control A/c,13/09/2012,7000440197,12092.14,Ryde House
http://statistics.data.gov.uk/id/local-authority/38,Oxfordshire County Council,SCS Other Cost Centres,Control Account Trojan Residential Care,Balance Sheet General,B2040,ABACUS Accounts Payable Control A/c,13/09/2012,7000440191,5571.91,Riverview Care Centre
http://statistics.data.gov.uk/id/local-authority/38,Oxfordshire County Council,SCS Other Cost Centres,Control Account Trojan Residential Care,Balance Sheet General,B2040,ABACUS Accounts Payable Control A/c,13/09/2012,7000439940,5210.01,Bryn-y-Wawr
http://statistics.data.gov.uk/id/local-authority/38,Oxfordshire County Council,SCS Other Cost Centres,Control Account Trojan Residential Care,Balance Sheet General,B2040,ABACUS Accounts Payable Control A/c,13/09/2012,7000440183,5042.87,Regard Partnership
http://statistics.data.gov.uk/id/local-authority/38,Oxfordshire County Council,SCS Other Cost Centres,Control Account Trojan Residential Care,Balance Sheet General,B2040,ABACUS Accounts Payable Control A/c,13/09/2012,7000440178,6703.16,Putney House Ltd
http://statistics.data.gov.uk/id/local-authority/38,Oxfordshire County Council,Children's Social Care,Disabilities Team North/City,Contract Hire/Leasing,33300,Transport (General),06/09/2012,7000437739,425,Mills Transport Ltd
http://statistics.data.gov.uk/id/local-authority/38,Oxfordshire County Council,Social & Community Services,Young People,Other Agency and Contracted Services,57352,Monthly,28/09/2012,7000448189,13573,Banbury Homes
http://statistics.data.gov.uk/id/local-authority/38,Oxfordshire County Council,Social & Community Services,Teenage Parents,Other Agency and Contracted Services,57352,Monthly,28/09/2012,7000448190,14414.66,Banbury Homes
http://statistics.data.gov.uk/id/local-authority/38,Oxfordshire County Council,Social & Community Services,People with Drug Problems,Other Agency and Contracted Services,57352,Monthly,28/09/2012,7000447563,2250.41,CONNECTION
http://statistics.data.gov.uk/id/local-authority/38,Oxfordshire County Council,Social & Community Services,Generic Services,Other Agency and Contracted Services,57352,Monthly,28/09/2012,7000447564,70674.83,CONNECTION
http://statistics.data.gov.uk/id/local-authority/38,Oxfordshire County Council,Social & Community Services,Young People,Other Agency and Contracted Services,57352,Monthly,28/09/2012,7000447779,15486.17,Guinness Trustees Ltd
http://statistics.data.gov.uk/id/local-authority/38,Oxfordshire County Council,SCS Pooled Budgets,Extra Care Housing -South,Other Agency and Contracted Services,57150,Extra Care Housing Personal Care Charges,03/09/2012,3301593900,1625,Housing 21
http://statistics.data.gov.uk/id/local-authority/38,Oxfordshire County Council,Social & Community Services,Older People (Non Alert & Alarms),Other Agency and Contracted Services,57352,Monthly,28/09/2012,7000448081,4118.96,OXFORD CITY COUNCIL
http://statistics.data.gov.uk/id/local-authority/38,Oxfordshire County Council,Social & Community Services,Homeless People,Other Agency and Contracted Services,57352,Monthly,28/09/2012,7000448082,24754.33,Oxford Homeless Pathways
http://statistics.data.gov.uk/id/local-authority/38,Oxfordshire County Council,Social & Community Services,Homeless People,Other Agency and Contracted Services,57352,Monthly,28/09/2012,7000448083,57416.66,Oxford Homeless Pathways
http://statistics.data.gov.uk/id/local-authority/38,Oxfordshire County Council,Social & Community Services,Teenage Parents,Other Agency and Contracted Services,57352,Monthly,28/09/2012,7000447806,2924.58,Stonham
http://statistics.data.gov.uk/id/local-authority/38,Oxfordshire County Council,Social & Community Services,Teenage Parents,Other Agency and Contracted Services,57352,Monthly,28/09/2012,7000447807,4469.33,Stonham
http://statistics.data.gov.uk/id/local-authority/38,Oxfordshire County Council,Social & Community Services,Young People,Other Agency and Contracted Services,57352,Monthly,28/09/2012,7000447808,6973.91,Stonham
http://statistics.data.gov.uk/id/local-authority/38,Oxfordshire County Council,Social & Community Services,Young People,Other Agency and Contracted Services,57352,Monthly,28/09/2012,7000447809,8175.58,Stonham
http://statistics.data.gov.uk/id/local-authority/38,Oxfordshire County Council,Social & Community Services,Young People,Other Agency and Contracted Services,57352,Monthly,28/09/2012,7000447810,8228.33,Stonham
http://statistics.data.gov.uk/id/local-authority/38,Oxfordshire County Council,Social & Community Services,Teenage Parents,Other Agency and Contracted Services,57352,Monthly,28/09/2012,7000447811,12642.83,Stonham
http://statistics.data.gov.uk/id/local-authority/38,Oxfordshire County Council,Social & Community Services,Generic Services,Other Agency and Contracted Services,57352,Monthly,28/09/2012,7000447812,70527.33,Stonham
http://statistics.data.gov.uk/id/local-authority/38,Oxfordshire County Council,SCS Other Cost Centres,Control Account Trojan Residential Care,Balance Sheet General,B2040,ABACUS Accounts Payable Control A/c,13/09/2012,7000440299,189156.45,Acre Housing
http://statistics.data.gov.uk/id/local-authority/38,Oxfordshire County Council,Education & Early Intervention,Chillout Fund,Grants and Subscriptions,47100,Grants to Voluntary,18/09/2012,3301597482,3000,Path Hill Outdoors
http://statistics.data.gov.uk/id/local-authority/38,Oxfordshire County Council,SCS Other Cost Centres,Control Account Trojan Residential Care,Balance Sheet General,B2040,ABACUS Accounts Payable Control A/c,13/09/2012,7000440007,2785.71,Fitzwarren House EMI HOme
http://statistics.data.gov.uk/id/local-authority/38,Oxfordshire County Council,SCS Other Cost Centres,Control Account Trojan Residential Care,Balance Sheet General,B2040,ABACUS Accounts Payable Control A/c,13/09/2012,7000440222,2985.04,REDACTED PERSONAL DATA
http://statistics.data.gov.uk/id/local-authority/38,Oxfordshire County Council,SCS Other Cost Centres,Control Account Trojan Residential Care,Balance Sheet General,B2040,ABACUS Accounts Payable Control A/c,13/09/2012,7000440248,1860.86,REDACTED PERSONAL DATA
http://statistics.data.gov.uk/id/local-authority/38,Oxfordshire County Council,SCS Other Cost Centres,Control Account Trojan Residential Care,Balance Sheet General,B2040,ABACUS Accounts Payable Control A/c,13/09/2012,7000440275,4714.29,Solden Hill House Ltd
http://statistics.data.gov.uk/id/local-authority/38,Oxfordshire County Council,SCS Other Cost Centres,Control Account Trojan Residential Care,Balance Sheet General,B2040,ABACUS Accounts Payable Control A/c,13/09/2012,7000440169,4709.23,Paradise House Association
http://statistics.data.gov.uk/id/local-authority/38,Oxfordshire County Council,SCS Other Cost Centres,Control Account Trojan Residential Care,Balance Sheet General,B2040,ABACUS Accounts Payable Control A/c,13/09/2012,7000440305,3726.88,Thamesfield Nursing Home
http://statistics.data.gov.uk/id/local-authority/38,Oxfordshire County Council,SCS Other Cost Centres,Control Account Trojan Residential Care,Balance Sheet General,B2040,ABACUS Accounts Payable Control A/c,13/09/2012,7000440129,17283.72,OSJ - Chilterns
http://statistics.data.gov.uk/id/local-authority/38,Oxfordshire County Council,SCS Other Cost Centres,Control Account Trojan Residential Care,Balance Sheet General,B2040,ABACUS Accounts Payable Control A/c,13/09/2012,7000440131,6004.28,OSJ  - Glebe House
http://statistics.data.gov.uk/id/local-authority/38,Oxfordshire County Council,SCS Other Cost Centres,Control Account Trojan Residential Care,Balance Sheet General,B2040,ABACUS Accounts Payable Control A/c,13/09/2012,7000440133,11770.09,OSJ - Lake House
http://statistics.data.gov.uk/id/local-authority/38,Oxfordshire County Council,SCS Other Cost Centres,Control Account Trojan Residential Care,Balance Sheet General,B2040,ABACUS Accounts Payable Control A/c,13/09/2012,7000440135,24010.17,OSJ - Lincoln House
http://statistics.data.gov.uk/id/local-authority/38,Oxfordshire County Council,SCS Other Cost Centres,Control Account Trojan Residential Care,Balance Sheet General,B2040,ABACUS Accounts Payable Control A/c,13/09/2012,7000440136,6102.85,OSJ  - Longlands
http://statistics.data.gov.uk/id/local-authority/38,Oxfordshire County Council,SCS Other Cost Centres,Control Account Trojan Residential Care,Balance Sheet General,B2040,ABACUS Accounts Payable Control A/c,13/09/2012,7000440137,1554.43,OSJ - Madley Park House
http://statistics.data.gov.uk/id/local-authority/38,Oxfordshire County Council,SCS Other Cost Centres,Control Account Trojan Residential Care,Balance Sheet General,B2040,ABACUS Accounts Payable Control A/c,13/09/2012,7000440138,17825.25,OSJ - Marston Court
http://statistics.data.gov.uk/id/local-authority/38,Oxfordshire County Council,SCS Other Cost Centres,Control Account Trojan Residential Care,Balance Sheet General,B2040,ABACUS Accounts Payable Control A/c,13/09/2012,7000440139,20390.79,OSJ - Meadowcroft
http://statistics.data.gov.uk/id/local-authority/38,Oxfordshire County Council,SCS Other Cost Centres,Control Account Trojan Residential Care,Balance Sheet General,B2040,ABACUS Accounts Payable Control A/c,13/09/2012,7000440140,5854.28,OSJ - Spencer Court
http://statistics.data.gov.uk/id/local-authority/38,Oxfordshire County Council,SCS Other Cost Centres,Control Account Trojan Residential Care,Balance Sheet General,B2040,ABACUS Accounts Payable Control A/c,13/09/2012,7000440134,12068.29,OSJ  - St. Edburg's House
http://statistics.data.gov.uk/id/local-authority/38,Oxfordshire County Council,SCS Other Cost Centres,Control Account Trojan Residential Care,Balance Sheet General,B2040,ABACUS Accounts Payable Control A/c,13/09/2012,7000440141,5832.86,OSJ - Stirlings
http://statistics.data.gov.uk/id/local-authority/38,Oxfordshire County Council,SCS Other Cost Centres,Control Account Trojan Residential Care,Balance Sheet General,B2040,ABACUS Accounts Payable Control A/c,13/09/2012,7000440142,15181.66,OSJ  - The Meadows
http://statistics.data.gov.uk/id/local-authority/38,Oxfordshire County Council,SCS Other Cost Centres,Control Account Trojan Residential Care,Balance Sheet General,B2040,ABACUS Accounts Payable Control A/c,13/09/2012,7000440143,48989.15,OSJ  - Townsend House
http://statistics.data.gov.uk/id/local-authority/38,Oxfordshire County Council,SCS Other Cost Centres,Control Account Trojan Residential Care,Balance Sheet General,B2040,ABACUS Accounts Payable Control A/c,13/09/2012,7000440144,62086.94,OSJ -  Westgate House
http://statistics.data.gov.uk/id/local-authority/38,Oxfordshire County Council,SCS Other Cost Centres,Control Account Trojan Residential Care,Balance Sheet General,B2040,ABACUS Accounts Payable Control A/c,13/09/2012,7000440070,35888.89,Leafield Rest Home
http://statistics.data.gov.uk/id/local-authority/38,Oxfordshire County Council,SCS Other Cost Centres,Control Account Trojan Residential Care,Balance Sheet General,B2040,ABACUS Accounts Payable Control A/c,13/09/2012,7000440347,2250.86,White Lodge Care Home
http://statistics.data.gov.uk/id/local-authority/38,Oxfordshire County Council,SCS Other Cost Centres,Control Account Trojan Residential Care,Balance Sheet General,B2040,ABACUS Accounts Payable Control A/c,13/09/2012,7000440300,2307.63,Summer Lane Care Home Ltd
http://statistics.data.gov.uk/id/local-authority/38,Oxfordshire County Council,SCS Pooled Budgets,Other Services,Voluntary Associations,55400,Service Agreements-A,12/09/2012,3301598668,58384.88,A4e Ltd
http://statistics.data.gov.uk/id/local-authority/38,Oxfordshire County Council,SCS Other Cost Centres,Control Account Trojan Residential Care,Balance Sheet General,B2040,ABACUS Accounts Payable Control A/c,13/09/2012,7000440059,1901.87,Kings Court Care Centre
http://statistics.data.gov.uk/id/local-authority/38,Oxfordshire County Council,Social & Community Services,Adult Social Care Locality Team - Vale,Contract Hire/Leasing,33300,Transport (General),19/09/2012,7000444237,487.88,V Cars Ltd
http://statistics.data.gov.uk/id/local-authority/38,Oxfordshire County Council,SCS Other Cost Centres,Home Support trading account for PBs,Other Agency and Contracted Services,57300,Home Support (Ext) OS&HCD,05/09/2012,7000437653,16739.27,Primary Healthcare
http://statistics.data.gov.uk/id/local-authority/38,Oxfordshire County Council,SCS Other Cost Centres,Home Support trading account for PBs,Other Agency and Contracted Services,57300,Home Support (Ext) OS&HCD,19/09/2012,7000443770,24138.96,Primary Healthcare
http://statistics.data.gov.uk/id/local-authority/38,Oxfordshire County Council,SCS Other Cost Centres,Control Account Trojan Residential Care,Balance Sheet General,B2040,ABACUS Accounts Payable Control A/c,13/09/2012,7000440313,2998.5,The Coombe House
http://statistics.data.gov.uk/id/local-authority/38,Oxfordshire County Council,SCS Other Cost Centres,Control Account Trojan Residential Care,Balance Sheet General,B2040,ABACUS Accounts Payable Control A/c,13/09/2012,7000439924,5717.83,Purbeck Care Ltd
http://statistics.data.gov.uk/id/local-authority/38,Oxfordshire County Council,SCS Other Cost Centres,Control Account Trojan Residential Care,Balance Sheet General,B2040,ABACUS Accounts Payable Control A/c,13/09/2012,7000440175,11521.84,Progress Adult Services Ltd
http://statistics.data.gov.uk/id/local-authority/38,Oxfordshire County Council,SCS Other Cost Centres,Control Account Trojan Residential Care,Balance Sheet General,B2040,ABACUS Accounts Payable Control A/c,13/09/2012,7000440320,167815.99,Four Seasons (Headington) Ltd
http://statistics.data.gov.uk/id/local-authority/38,Oxfordshire County Council,SCS Other Cost Centres,Control Account Trojan Residential Care,Balance Sheet General,B2040,ABACUS Accounts Payable Control A/c,13/09/2012,7000440107,1589.27,Miranda - Quality Care (Wiltshire)
http://statistics.data.gov.uk/id/local-authority/38,Oxfordshire County Council,SCS Other Cost Centres,Control Account Trojan Residential Care,Balance Sheet General,B2040,ABACUS Accounts Payable Control A/c,13/09/2012,7000439941,15399.73,Cambian Autism Services Ltd
http://statistics.data.gov.uk/id/local-authority/38,Oxfordshire County Council,SCS Other Cost Centres,Control Account Trojan Residential Care,Balance Sheet General,B2040,ABACUS Accounts Payable Control A/c,13/09/2012,7000440172,20662.76,Pfera Hall Ltd
http://statistics.data.gov.uk/id/local-authority/38,Oxfordshire County Council,SCS Other Cost Centres,Control Account Trojan Residential Care,Balance Sheet General,B2040,ABACUS Accounts Payable Control A/c,13/09/2012,7000439960,3342.86,Cherry Tree Nursing Home
http://statistics.data.gov.uk/id/local-authority/38,Oxfordshire County Council,Education & Early Intervention,Special Misc,Public Transport,34101,Pupils Season Ticket,21/09/2012,7000444456,1413.6,Chiltern Railway Company Limited
http://statistics.data.gov.uk/id/local-authority/38,Oxfordshire County Council,Education & Early Intervention,Mainstream Misc,Public Transport,34101,Pupils Season Ticket,21/09/2012,7000444457,1235.4,Chiltern Railway Company Limited
http://statistics.data.gov.uk/id/local-authority/38,Oxfordshire County Council,Education & Early Intervention,Children Centres (N),Grants and Subscriptions,47150,Grants to Individuals,05/09/2012,3301595395,900,Sunrise Multicultural Project
http://statistics.data.gov.uk/id/local-authority/38,Oxfordshire County Council,SCS Other Cost Centres,Control Account Trojan Residential Care,Balance Sheet General,B2040,ABACUS Accounts Payable Control A/c,13/09/2012,7000440075,3769.29,Leonard Cheshire Disability
http://statistics.data.gov.uk/id/local-authority/38,Oxfordshire County Council,SCS Other Cost Centres,Control Account Trojan Residential Care,Balance Sheet General,B2040,ABACUS Accounts Payable Control A/c,13/09/2012,7000440117,46952.31,The Nelson Trust
http://statistics.data.gov.uk/id/local-authority/38,Oxfordshire County Council,SCS Other Cost Centres,Control Account Trojan Residential Care,Balance Sheet General,B2040,ABACUS Accounts Payable Control A/c,13/09/2012,7000440063,4030.24,Ashamber Homes Limited
http://statistics.data.gov.uk/id/local-authority/38,Oxfordshire County Council,SCS Other Cost Centres,Home Support trading account for PBs,Other Agency and Contracted Services,57300,Home Support (Ext) OS&HCD,05/09/2012,7000437656,3491.3,Risborough Carers Ltd
http://statistics.data.gov.uk/id/local-authority/38,Oxfordshire County Council,SCS Other Cost Centres,Home Support trading account for PBs,Other Agency and Contracted Services,57300,Home Support (Ext) OS&HCD,19/09/2012,7000443773,12611.53,Risborough Carers Ltd
http://statistics.data.gov.uk/id/local-authority/38,Oxfordshire County Council,SCS Other Cost Centres,Control Account Trojan Residential Care,Balance Sheet General,B2040,ABACUS Accounts Payable Control A/c,13/09/2012,7000440349,7092.86,Exalon Care Ltd
http://statistics.data.gov.uk/id/local-authority/38,Oxfordshire County Council,Highways & Transport,Localities,"Equipment, Furniture and Materials",40101,Furniture & Equipment,04/09/2012,3301593490,2600,Cropredy Parish Council
http://statistics.data.gov.uk/id/local-authority/38,Oxfordshire County Council,SCS Other Cost Centres,Control Account Trojan Residential Care,Balance Sheet General,B2040,ABACUS Accounts Payable Control A/c,13/09/2012,7000439928,3565.03,Brackley Fields Care Ltd
http://statistics.data.gov.uk/id/local-authority/38,Oxfordshire County Council,SCS Other Cost Centres,Control Account Trojan Residential Care,Balance Sheet General,B2040,ABACUS Accounts Payable Control A/c,13/09/2012,7000439973,2204.53,Colbury House Nursing Home
http://statistics.data.gov.uk/id/local-authority/38,Oxfordshire County Council,Children's Social Care,Aim Higher Funding,Contract Hire/Leasing,33300,Transport (General),07/09/2012,7000438515,490,Abingdon Taxis
http://statistics.data.gov.uk/id/local-authority/38,Oxfordshire County Council,Social & Community Services,"LD Day Services, Abingdon Day Servs",Contract Hire/Leasing,33103,Transport to Centres,17/09/2012,7000443347,719.18,Abingdon Taxis
http://statistics.data.gov.uk/id/local-authority/38,Oxfordshire County Council,Social & Community Services,"LD Day Services, Abingdon Day Servs",Contract Hire/Leasing,33103,Transport to Centres,17/09/2012,7000443348,1438.36,Abingdon Taxis
http://statistics.data.gov.uk/id/local-authority/38,Oxfordshire County Council,SCS Other Cost Centres,Control Account Trojan Residential Care,Balance Sheet General,B2040,ABACUS Accounts Payable Control A/c,13/09/2012,7000440293,16401.8,St. Lukes Oxford - Free Nursing
http://statistics.data.gov.uk/id/local-authority/38,Oxfordshire County Council,SCS Other Cost Centres,Control Account Trojan Residential Care,Balance Sheet General,B2040,ABACUS Accounts Payable Control A/c,13/09/2012,7000439965,3705.64,Chiltern View Brendoncare Home
http://statistics.data.gov.uk/id/local-authority/38,Oxfordshire County Council,SCS Other Cost Centres,Control Account Trojan Residential Care,Balance Sheet General,B2040,ABACUS Accounts Payable Control A/c,13/09/2012,7000439975,3476.36,Coombe Lodge
http://statistics.data.gov.uk/id/local-authority/38,Oxfordshire County Council,SCS Other Cost Centres,Home Support trading account for PBs,Other Agency and Contracted Services,57300,Home Support (Ext) OS&HCD,05/09/2012,7000437629,14368.61,Bright Yellow Group Plc
http://statistics.data.gov.uk/id/local-authority/38,Oxfordshire County Council,SCS Other Cost Centres,Home Support trading account for PBs,Other Agency and Contracted Services,57300,Home Support (Ext) OS&HCD,19/09/2012,7000443746,41010.91,Bright Yellow Group Plc
http://statistics.data.gov.uk/id/local-authority/38,Oxfordshire County Council,SCS Other Cost Centres,Control Account Trojan Residential Care,Balance Sheet General,B2040,ABACUS Accounts Payable Control A/c,13/09/2012,7000440307,2921.49,Brancaster Care Homes Ltd
http://statistics.data.gov.uk/id/local-authority/38,Oxfordshire County Council,SCS Other Cost Centres,Home Support trading account for PBs,Other Agency and Contracted Services,57300,Home Support (Ext) OS&HCD,05/09/2012,7000437654,6478.58,Radis Community Care
http://statistics.data.gov.uk/id/local-authority/38,Oxfordshire County Council,SCS Pooled Budgets,PD Pool Continuing Care Home Support,Other Agency and Contracted Services,57302,Home Support (Ext) Continuing Care,14/09/2012,3350227318,996.92,Radis Community Care
http://statistics.data.gov.uk/id/local-authority/38,Oxfordshire County Council,SCS Other Cost Centres,Home Support trading account for PBs,Other Agency and Contracted Services,57300,Home Support (Ext) OS&HCD,19/09/2012,7000443771,10548.83,Radis Community Care
http://statistics.data.gov.uk/id/local-authority/38,Oxfordshire County Council,SCS Pooled Budgets,PD Pool Continuing Care Home Support,Other Agency and Contracted Services,57302,Home Support (Ext) Continuing Care,26/09/2012,3301604668,3424.42,Radis Community Care
http://statistics.data.gov.uk/id/local-authority/38,Oxfordshire County Council,SCS Other Cost Centres,Control Account Trojan Residential Care,Balance Sheet General,B2040,ABACUS Accounts Payable Control A/c,13/09/2012,7000439901,34968.57,Allambie Court
http://statistics.data.gov.uk/id/local-authority/38,Oxfordshire County Council,SCS Other Cost Centres,Home Support trading account for PBs,Other Agency and Contracted Services,57300,Home Support (Ext) OS&HCD,05/09/2012,7000437647,2366.07,Mears
http://statistics.data.gov.uk/id/local-authority/38,Oxfordshire County Council,SCS Other Cost Centres,Home Support trading account for PBs,Other Agency and Contracted Services,57300,Home Support (Ext) OS&HCD,19/09/2012,7000443764,19812.88,Mears
http://statistics.data.gov.uk/id/local-authority/38,Oxfordshire County Council,SCS Other Cost Centres,Control Account Trojan Residential Care,Balance Sheet General,B2040,ABACUS Accounts Payable Control A/c,13/09/2012,7000440357,35104.59,Truecare Group Ltd
http://statistics.data.gov.uk/id/local-authority/38,Oxfordshire County Council,SCS Other Cost Centres,Control Account Trojan Residential Care,Balance Sheet General,B2040,ABACUS Accounts Payable Control A/c,13/09/2012,7000439950,1921.54,Runwood Homes plc
http://statistics.data.gov.uk/id/local-authority/38,Oxfordshire County Council,SCS Other Cost Centres,Control Account Trojan Residential Care,Balance Sheet General,B2040,ABACUS Accounts Payable Control A/c,13/09/2012,7000439895,102872.18,Carebase (Abingdon) Limited
http://statistics.data.gov.uk/id/local-authority/38,Oxfordshire County Council,SCS Other Cost Centres,Control Account Trojan Residential Care,Balance Sheet General,B2040,ABACUS Accounts Payable Control A/c,13/09/2012,7000440302,1738.8,Sunningdale Lodge
http://statistics.data.gov.uk/id/local-authority/38,Oxfordshire County Council,SCS Other Cost Centres,Control Account Trojan Residential Care,Balance Sheet General,B2040,ABACUS Accounts Payable Control A/c,13/09/2012,7000440344,1889.31,Rochmills Ltd
http://statistics.data.gov.uk/id/local-authority/38,Oxfordshire County Council,Education & Early Intervention,Leading the EYFS (Q&I),Grants and Subscriptions,47100,Grants to Voluntary,24/09/2012,3301600293,3332,Shepherds Hill Pre-school
http://statistics.data.gov.uk/id/local-authority/38,Oxfordshire County Council,Education & Early Intervention,Leading the EYFS (Q&I),Expenses,46403,Course / Tuition Fee,26/09/2012,3301600550,1780,Shepherds Hill Pre-school
http://statistics.data.gov.uk/id/local-authority/38,Oxfordshire County Council,SCS Other Cost Centres,Control Account Trojan Residential Care,Balance Sheet General,B2040,ABACUS Accounts Payable Control A/c,13/09/2012,7000440149,98163.32,Orders of St John
http://statistics.data.gov.uk/id/local-authority/38,Oxfordshire County Council,SCS Other Cost Centres,Control Account Trojan Residential Care,Balance Sheet General,B2040,ABACUS Accounts Payable Control A/c,13/09/2012,7000440132,18964.67,OSJ - Isis Centre
http://statistics.data.gov.uk/id/local-authority/38,Oxfordshire County Council,Social & Community Services,Community Support Budget - City East,Other Agency and Contracted Services,57300,Home Support (Ext) OS&HCD,07/09/2012,3301593771,1500,Brook House Residential
http://statistics.data.gov.uk/id/local-authority/38,Oxfordshire County Council,SCS Other Cost Centres,Control Account Trojan Residential Care,Balance Sheet General,B2040,ABACUS Accounts Payable Control A/c,13/09/2012,7000439933,9843.53,Brook House Residential
http://statistics.data.gov.uk/id/local-authority/38,Oxfordshire County Council,SCS Other Cost Centres,Control Account Trojan Residential Care,Balance Sheet General,B2040,ABACUS Accounts Payable Control A/c,13/09/2012,7000440035,7501.11,Westgate Healthcare Ltd
http://statistics.data.gov.uk/id/local-authority/38,Oxfordshire County Council,SCS Other Cost Centres,Control Account Trojan Residential Care,Balance Sheet General,B2040,ABACUS Accounts Payable Control A/c,13/09/2012,7000440048,2700,Holmleigh Care Homes Ltd
http://statistics.data.gov.uk/id/local-authority/38,Oxfordshire County Council,SCS Pooled Budgets,OP Pool Continuing Care Home Support,Other Agency and Contracted Services,57302,Home Support (Ext) Continuing Care,07/09/2012,3350227161,1480,European Nursing Agency Ltd
http://statistics.data.gov.uk/id/local-authority/38,Oxfordshire County Council,SCS Pooled Budgets,PD Pool Continuing Care Home Support,Other Agency and Contracted Services,57302,Home Support (Ext) Continuing Care,10/09/2012,3350227216,757.5,European Nursing Agency Ltd
http://statistics.data.gov.uk/id/local-authority/38,Oxfordshire County Council,SCS Pooled Budgets,PD Pool Continuing Care Home Support,Other Agency and Contracted Services,57302,Home Support (Ext) Continuing Care,10/09/2012,3350227217,757.5,European Nursing Agency Ltd
http://statistics.data.gov.uk/id/local-authority/38,Oxfordshire County Council,SCS Pooled Budgets,PD Pool Continuing Care Home Support,Other Agency and Contracted Services,57302,Home Support (Ext) Continuing Care,13/09/2012,3350227215,757.5,European Nursing Agency Ltd
http://statistics.data.gov.uk/id/local-authority/38,Oxfordshire County Council,SCS Pooled Budgets,PD Pool Continuing Care Home Support,Other Agency and Contracted Services,57302,Home Support (Ext) Continuing Care,21/09/2012,3350227214,757.5,European Nursing Agency Ltd
http://statistics.data.gov.uk/id/local-authority/38,Oxfordshire County Council,SCS Pooled Budgets,OP Pool Continuing Care Home Support,Other Agency and Contracted Services,57302,Home Support (Ext) Continuing Care,21/09/2012,3350227224,1480,European Nursing Agency Ltd
http://statistics.data.gov.uk/id/local-authority/38,Oxfordshire County Council,SCS Pooled Budgets,PD Pool Continuing Care Home Support,Other Agency and Contracted Services,57302,Home Support (Ext) Continuing Care,28/09/2012,3350227311,804.16,European Nursing Agency Ltd
http://statistics.data.gov.uk/id/local-authority/38,Oxfordshire County Council,SCS Other Cost Centres,Control Account Trojan Residential Care,Balance Sheet General,B2040,ABACUS Accounts Payable Control A/c,13/09/2012,7000440067,1871.57,Lakeside Care Centre
http://statistics.data.gov.uk/id/local-authority/38,Oxfordshire County Council,Education & Early Intervention,Leading the EYFS (Q&I),Expenses,46403,Course / Tuition Fee,27/09/2012,3301601273,2000,Acre End Pre-School
http://statistics.data.gov.uk/id/local-authority/38,Oxfordshire County Council,SCS Other Cost Centres,Control Account Trojan Residential Care,Balance Sheet General,B2040,ABACUS Accounts Payable Control A/c,13/09/2012,7000440174,3202.41,Princess Lodge Care Centre
http://statistics.data.gov.uk/id/local-authority/38,Oxfordshire County Council,SCS Other Cost Centres,Control Account Trojan Residential Care,Balance Sheet General,B2040,ABACUS Accounts Payable Control A/c,13/09/2012,7000440308,2284.03,The Brunfoot Coach House
http://statistics.data.gov.uk/id/local-authority/38,Oxfordshire County Council,SCS Other Cost Centres,Control Account Trojan Residential Care,Balance Sheet General,B2040,ABACUS Accounts Payable Control A/c,13/09/2012,7000439930,2871.99,Bradbury House Organisation
http://statistics.data.gov.uk/id/local-authority/38,Oxfordshire County Council,SCS Other Cost Centres,Control Account Trojan Residential Care,Balance Sheet General,B2040,ABACUS Accounts Payable Control A/c,13/09/2012,7000439954,2340.3,Chalgrove Care Home Ltd
http://statistics.data.gov.uk/id/local-authority/38,Oxfordshire County Council,Highways & Transport,Thornhill P & R,WATER,25200,Metered Water,17/09/2012,7000443375,560.6,Thames Water Utilities Ltd
http://statistics.data.gov.uk/id/local-authority/38,Oxfordshire County Council,Growth & Infrastructure,Corporate Landlord Utility Costs,WATER,25200,Metered Water,17/09/2012,7000443394,507.85,Thames Water Utilities Ltd
http://statistics.data.gov.uk/id/local-authority/38,Oxfordshire County Council,Growth & Infrastructure,Corporate Landlord Utility Costs,WATER,25200,Metered Water,17/09/2012,7000443395,588.41,Thames Water Utilities Ltd
http://statistics.data.gov.uk/id/local-authority/38,Oxfordshire County Council,Growth & Infrastructure,Corporate Landlord Utility Costs,WATER,25200,Metered Water,17/09/2012,7000443401,841.73,Thames Water Utilities Ltd
http://statistics.data.gov.uk/id/local-authority/38,Oxfordshire County Council,Growth & Infrastructure,Corporate Landlord Utility Costs,WATER,25200,Metered Water,17/09/2012,7000443409,-850.92,Thames Water Utilities Ltd
http://statistics.data.gov.uk/id/local-authority/38,Oxfordshire County Council,Growth & Infrastructure,Corporate Landlord Utility Costs,Energy Costs,23200,Gas,06/09/2012,7000437875,4381.24,British Gas Business (Invoices A***
http://statistics.data.gov.uk/id/local-authority/38,Oxfordshire County Council,Growth & Infrastructure,Corporate Landlord Utility Costs,Energy Costs,23200,Gas,06/09/2012,7000437923,926.63,British Gas Business (Invoices A***
http://statistics.data.gov.uk/id/local-authority/38,Oxfordshire County Council,Growth & Infrastructure,Corporate Landlord Utility Costs,Energy Costs,23200,Gas,06/09/2012,7000437928,449.97,British Gas Business (Invoices A***
http://statistics.data.gov.uk/id/local-authority/38,Oxfordshire County Council,Growth & Infrastructure,Corporate Landlord Utility Costs,Energy Costs,23200,Gas,06/09/2012,7000437930,1153.23,British Gas Business (Invoices A***
http://statistics.data.gov.uk/id/local-authority/38,Oxfordshire County Council,Growth & Infrastructure,Corporate Landlord Utility Costs,Energy Costs,23200,Gas,06/09/2012,7000437938,752.89,British Gas Business (Invoices A***
http://statistics.data.gov.uk/id/local-authority/38,Oxfordshire County Council,Growth & Infrastructure,Corporate Landlord Utility Costs,Energy Costs,23200,Gas,06/09/2012,7000437947,658.81,British Gas Business (Invoices A***
http://statistics.data.gov.uk/id/local-authority/38,Oxfordshire County Council,SCS Other Cost Centres,Control Account Trojan Residential Care,Balance Sheet General,B2040,ABACUS Accounts Payable Control A/c,13/09/2012,7000440083,3323.96,Royal Masonic
http://statistics.data.gov.uk/id/local-authority/38,Oxfordshire County Council,SCS Other Cost Centres,Control Account Trojan Residential Care,Balance Sheet General,B2040,ABACUS Accounts Payable Control A/c,13/09/2012,7000440295,16301,Stanley House Nursing Home
http://statistics.data.gov.uk/id/local-authority/38,Oxfordshire County Council,SCS Other Cost Centres,Control Account Trojan Residential Care,Balance Sheet General,B2040,ABACUS Accounts Payable Control A/c,13/09/2012,7000440127,28700.15,Orchard End Ltd
http://statistics.data.gov.uk/id/local-authority/38,Oxfordshire County Council,SCS Other Cost Centres,Control Account Trojan Residential Care,Balance Sheet General,B2040,ABACUS Accounts Payable Control A/c,13/09/2012,7000440262,1262.91,REDACTED PERSONAL DATA
http://statistics.data.gov.uk/id/local-authority/38,Oxfordshire County Council,Education & Early Intervention,Zone 2 - East,Contract Hire/Leasing,33101,Home to School Trans,19/09/2012,7000444217,1226.34,Cherwell Valley Coaches
http://statistics.data.gov.uk/id/local-authority/38,Oxfordshire County Council,SCS Other Cost Centres,Control Account Trojan Residential Care,Balance Sheet General,B2040,ABACUS Accounts Payable Control A/c,13/09/2012,7000440126,8826,One Step(Support)T/A One Step at a
http://statistics.data.gov.uk/id/local-authority/38,Oxfordshire County Council,SCS Other Cost Centres,Control Account Trojan Residential Care,Balance Sheet General,B2040,ABACUS Accounts Payable Control A/c,13/09/2012,7000439947,31028.58,Castlebeck Care (Teesdale) Ltd
http://statistics.data.gov.uk/id/local-authority/38,Oxfordshire County Council,SCS Other Cost Centres,Control Account Trojan Residential Care,Balance Sheet General,B2040,ABACUS Accounts Payable Control A/c,13/09/2012,7000439948,9963.26,Castlebeck Care (Teesdale) Ltd
http://statistics.data.gov.uk/id/local-authority/38,Oxfordshire County Council,SCS Other Cost Centres,Control Account Trojan Residential Care,Balance Sheet General,B2040,ABACUS Accounts Payable Control A/c,13/09/2012,7000440049,38074.75,Holt Farm Care Ltd
http://statistics.data.gov.uk/id/local-authority/38,Oxfordshire County Council,SCS Other Cost Centres,Control Account Trojan Residential Care,Balance Sheet General,B2040,ABACUS Accounts Payable Control A/c,13/09/2012,7000439913,2093.06,Auchlocan - Lower Johnshill
http://statistics.data.gov.uk/id/local-authority/38,Oxfordshire County Council,SCS Other Cost Centres,Home Support trading account for PBs,Other Agency and Contracted Services,57300,Home Support (Ext) OS&HCD,05/09/2012,7000437659,1769.31,Total Homecare Solutions Ltd
http://statistics.data.gov.uk/id/local-authority/38,Oxfordshire County Council,SCS Other Cost Centres,Home Support trading account for PBs,Other Agency and Contracted Services,57300,Home Support (Ext) OS&HCD,19/09/2012,7000443777,12890.76,Total Homecare Solutions Ltd
http://statistics.data.gov.uk/id/local-authority/38,Oxfordshire County Council,SCS Other Cost Centres,Home Support trading account for PBs,Other Agency and Contracted Services,57300,Home Support (Ext) OS&HCD,05/09/2012,7000437625,2085.06,Nestor Primecare Services Ltd.
http://statistics.data.gov.uk/id/local-authority/38,Oxfordshire County Council,SCS Other Cost Centres,Home Support trading account for PBs,Other Agency and Contracted Services,57300,Home Support (Ext) OS&HCD,19/09/2012,7000443742,12688.6,Nestor Primecare Services Ltd.
http://statistics.data.gov.uk/id/local-authority/38,Oxfordshire County Council,SCS Other Cost Centres,Control Account Trojan Residential Care,Balance Sheet General,B2040,ABACUS Accounts Payable Control A/c,13/09/2012,7000440084,5007.38,LUFTON MANOR COLLEGE
http://statistics.data.gov.uk/id/local-authority/38,Oxfordshire County Council,SCS Other Cost Centres,Control Account Trojan Residential Care,Balance Sheet General,B2040,ABACUS Accounts Payable Control A/c,13/09/2012,7000440235,2152.67,REDACTED PERSONAL DATA
http://statistics.data.gov.uk/id/local-authority/38,Oxfordshire County Council,Education & Early Intervention,Zone 5 - South,Contract Hire/Leasing,33101,Home to School Trans,19/09/2012,7000444211,2730.75,W Zaman T/A Vale Travel.
http://statistics.data.gov.uk/id/local-authority/38,Oxfordshire County Council,Education & Early Intervention,Zone 5 - South,Contract Hire/Leasing,33101,Home to School Trans,19/09/2012,7000444212,2697.75,W Zaman T/A Vale Travel.
http://statistics.data.gov.uk/id/local-authority/38,Oxfordshire County Council,Education & Early Intervention,Zone 5 - South,Contract Hire/Leasing,33101,Home to School Trans,19/09/2012,7000444213,2535,W Zaman T/A Vale Travel.
http://statistics.data.gov.uk/id/local-authority/38,Oxfordshire County Council,Education & Early Intervention,Zone 5 - South,Contract Hire/Leasing,33101,Home to School Trans,19/09/2012,7000444214,2912.8,W Zaman T/A Vale Travel.
http://statistics.data.gov.uk/id/local-authority/38,Oxfordshire County Council,Education & Early Intervention,Zone 5 - South,Contract Hire/Leasing,33101,Home to School Trans,19/09/2012,7000444215,2877.6,W Zaman T/A Vale Travel.
http://statistics.data.gov.uk/id/local-authority/38,Oxfordshire County Council,Education & Early Intervention,Zone 5 - South,Contract Hire/Leasing,33101,Home to School Trans,19/09/2012,7000444216,2704,W Zaman T/A Vale Travel.
http://statistics.data.gov.uk/id/local-authority/38,Oxfordshire County Council,Highways & Transport,Rising Bollards,Private Contractors,56400,Major Contracts,13/09/2012,3301600066,578.45,ADT Fire & Security PLC
http://statistics.data.gov.uk/id/local-authority/38,Oxfordshire County Council,Schools,Thame Sports/Arts Ce,Joint Authorities,53100,Internal Recharge Joint Use Provision,20/09/2012,3350227474,457.5,Axis Elevators Ltd
http://statistics.data.gov.uk/id/local-authority/38,Oxfordshire County Council,SCS Other Cost Centres,Home Support trading account for PBs,Other Agency and Contracted Services,57300,Home Support (Ext) OS&HCD,05/09/2012,7000437193,-765.86,Delight Care Ltd
http://statistics.data.gov.uk/id/local-authority/38,Oxfordshire County Council,SCS Other Cost Centres,Home Support trading account for PBs,Other Agency and Contracted Services,57300,Home Support (Ext) OS&HCD,05/09/2012,7000437194,-675.76,Delight Care Ltd
http://statistics.data.gov.uk/id/local-authority/38,Oxfordshire County Council,SCS Other Cost Centres,Home Support trading account for PBs,Other Agency and Contracted Services,57300,Home Support (Ext) OS&HCD,05/09/2012,7000437638,6841.93,Delight Care Ltd
http://statistics.data.gov.uk/id/local-authority/38,Oxfordshire County Council,SCS Pooled Budgets,OP Pool Fast Track,Other Agency and Contracted Services,57304,Home Support (Ext) Palliative Care,10/09/2012,3350227236,2399.68,Delight Care Ltd
http://statistics.data.gov.uk/id/local-authority/38,Oxfordshire County Council,SCS Other Cost Centres,Home Support trading account for PBs,Other Agency and Contracted Services,57300,Home Support (Ext) OS&HCD,19/09/2012,7000443755,17826.04,Delight Care Ltd
http://statistics.data.gov.uk/id/local-authority/38,Oxfordshire County Council,SCS Pooled Budgets,OP Pool Fast Track,Other Agency and Contracted Services,57304,Home Support (Ext) Palliative Care,28/09/2012,3350227605,899.48,Delight Care Ltd
http://statistics.data.gov.uk/id/local-authority/38,Oxfordshire County Council,SCS Pooled Budgets,OP Pool Fast Track,Other Agency and Contracted Services,57304,Home Support (Ext) Palliative Care,28/09/2012,3350227606,847.31,Delight Care Ltd
http://statistics.data.gov.uk/id/local-authority/38,Oxfordshire County Council,Growth & Infrastructure,Corporate Properties,Total Responsive R&M,21108,Heating (Urgent),03/09/2012,3350226865,1008.27,Europa Nationwide Technical
http://statistics.data.gov.uk/id/local-authority/38,Oxfordshire County Council,Growth & Infrastructure,Corporate Properties,Total Responsive R&M,21108,Heating (Urgent),03/09/2012,3350226958,578.42,Europa Nationwide Technical
http://statistics.data.gov.uk/id/local-authority/38,Oxfordshire County Council,Growth & Infrastructure,Corporate Properties,Total Responsive R&M,21109,Ventilation (Urgent),03/09/2012,3350226962,1219.44,Europa Nationwide Technical
http://statistics.data.gov.uk/id/local-authority/38,Oxfordshire County Council,Schools,Burford School & Community College,Total Responsive R&M,21112,H&C Water (Urg),05/09/2012,3350227143,18345.13,Europa Nationwide Technical
http://statistics.data.gov.uk/id/local-authority/38,Oxfordshire County Council,Growth & Infrastructure,Corporate Properties,Total Responsive R&M,21108,Heating (Urgent),05/09/2012,3350227145,550,Europa Nationwide Technical
http://statistics.data.gov.uk/id/local-authority/38,Oxfordshire County Council,Growth & Infrastructure,Corporate Properties,Total Responsive R&M,21108,Heating (Urgent),24/09/2012,3350227526,16000,Europa Nationwide Technical
http://statistics.data.gov.uk/id/local-authority/38,Oxfordshire County Council,Schools,Windale Primary School  Oxford,Total Responsive R&M,21108,Heating (Urgent),24/09/2012,3350227534,2500,Europa Nationwide Technical
http://statistics.data.gov.uk/id/local-authority/38,Oxfordshire County Council,Schools,Hornton Primary School  Warriner,Total Responsive R&M,21110,Power (Urgent),24/09/2012,3350227537,1124.81,Europa Nationwide Technical
http://statistics.data.gov.uk/id/local-authority/38,Oxfordshire County Council,Growth & Infrastructure,Corporate Properties,Total Responsive R&M,21110,Power (Urgent),24/09/2012,3350227541,1509.18,Europa Nationwide Technical
http://statistics.data.gov.uk/id/local-authority/38,Oxfordshire County Council,Growth & Infrastructure,Corporate Properties,Total Responsive R&M,21112,H&C Water (Urg),26/09/2012,3350227383,501.8,Europa Nationwide Technical
http://statistics.data.gov.uk/id/local-authority/38,Oxfordshire County Council,Growth & Infrastructure,Corporate Properties,Total Responsive R&M,21113,Drainage (Urgent),26/09/2012,3350227384,716.13,Europa Nationwide Technical
http://statistics.data.gov.uk/id/local-authority/38,Oxfordshire County Council,Growth & Infrastructure,Corporate Properties,Total Responsive R&M,21108,Heating (Urgent),26/09/2012,3350227387,2115.52,Europa Nationwide Technical
http://statistics.data.gov.uk/id/local-authority/38,Oxfordshire County Council,Growth & Infrastructure,Corporate Properties,Total Responsive R&M,21112,H&C Water (Urg),26/09/2012,3350227388,1688.96,Europa Nationwide Technical
http://statistics.data.gov.uk/id/local-authority/38,Oxfordshire County Council,Schools,Woodeaton Manor School  Woodeaton,Grounds Maintenance,22207,Health & Safety,18/09/2012,3350227415,515.6,Scion Technical Services Ltd
http://statistics.data.gov.uk/id/local-authority/38,Oxfordshire County Council,Schools,St. Birinus Boys School  Didcot,Building Maintenance,21017,Servicing - Electrical (Planned),24/09/2012,3350227500,988.09,Scion Technical Services Ltd
http://statistics.data.gov.uk/id/local-authority/38,Oxfordshire County Council,SCS Other Cost Centres,Control Account Trojan Residential Care,Balance Sheet General,B2040,ABACUS Accounts Payable Control A/c,13/09/2012,7000440025,6457.71,The Salvation Army
http://statistics.data.gov.uk/id/local-authority/38,Oxfordshire County Council,SCS Other Cost Centres,Control Account Trojan Residential Care,Balance Sheet General,B2040,ABACUS Accounts Payable Control A/c,13/09/2012,7000440170,1604.49,Pengwern College - MENCAP
http://statistics.data.gov.uk/id/local-authority/38,Oxfordshire County Council,SCS Other Cost Centres,Control Account Trojan Residential Care,Balance Sheet General,B2040,ABACUS Accounts Payable Control A/c,13/09/2012,7000439983,683.83,Derwen College
http://statistics.data.gov.uk/id/local-authority/38,Oxfordshire County Council,Growth & Infrastructure,Corporate Properties,Grounds Maintenance,22207,Health & Safety,20/09/2012,3350227470,2200,Eurolag Group Ltd
http://statistics.data.gov.uk/id/local-authority/38,Oxfordshire County Council,Growth & Infrastructure,Corporate Properties,Grounds Maintenance,22207,Health & Safety,20/09/2012,3350227471,2500,Eurolag Group Ltd
http://statistics.data.gov.uk/id/local-authority/38,Oxfordshire County Council,Schools,Larkrise Primary School  Oxford,Grounds Maintenance,22207,Health & Safety,27/09/2012,3350227590,50000,Eurolag Group Ltd
http://statistics.data.gov.uk/id/local-authority/38,Oxfordshire County Council,SCS Other Cost Centres,Control Account Trojan Residential Care,Balance Sheet General,B2040,ABACUS Accounts Payable Control A/c,13/09/2012,7000439986,3245.79,DORLANDS
http://statistics.data.gov.uk/id/local-authority/38,Oxfordshire County Council,SCS Other Cost Centres,Control Account Trojan Residential Care,Balance Sheet General,B2040,ABACUS Accounts Payable Control A/c,13/09/2012,7000440034,1536.64,Hall Steads Nursing Home
http://statistics.data.gov.uk/id/local-authority/38,Oxfordshire County Council,SCS Other Cost Centres,Control Account Trojan Residential Care,Balance Sheet General,B2040,ABACUS Accounts Payable Control A/c,13/09/2012,7000440181,56332.58,REAL LIFE OPTIONS
http://statistics.data.gov.uk/id/local-authority/38,Oxfordshire County Council,SCS Other Cost Centres,Control Account Trojan Residential Care,Balance Sheet General,B2040,ABACUS Accounts Payable Control A/c,13/09/2012,7000439920,1544.61,Beechcroft Retirement Home
http://statistics.data.gov.uk/id/local-authority/38,Oxfordshire County Council,SCS Other Cost Centres,Control Account Trojan Residential Care,Balance Sheet General,B2040,ABACUS Accounts Payable Control A/c,13/09/2012,7000440242,4477.45,REDACTED PERSONAL DATA
http://statistics.data.gov.uk/id/local-authority/38,Oxfordshire County Council,Growth & Infrastructure,Corporate Landlord Utility Costs,Energy Costs,23100,Electricity,03/09/2012,3301594033,639.01,Npower Ltd
http://statistics.data.gov.uk/id/local-authority/38,Oxfordshire County Council,Growth & Infrastructure,Corporate Landlord Utility Costs,Energy Costs,23100,Electricity,03/09/2012,3301594045,-639.01,Npower Ltd
http://statistics.data.gov.uk/id/local-authority/38,Oxfordshire County Council,Growth & Infrastructure,Corporate Landlord Utility Costs,Energy Costs,23100,Electricity,03/09/2012,3301594032,3102.29,Npower Ltd
http://statistics.data.gov.uk/id/local-authority/38,Oxfordshire County Council,Growth & Infrastructure,Corporate Landlord Utility Costs,Energy Costs,23100,Electricity,03/09/2012,3301594047,-3102.29,Npower Ltd
http://statistics.data.gov.uk/id/local-authority/38,Oxfordshire County Council,Growth & Infrastructure,Corporate Landlord Utility Costs,Energy Costs,23100,Electricity,03/09/2012,3301594031,3980.17,Npower Ltd
http://statistics.data.gov.uk/id/local-authority/38,Oxfordshire County Council,Growth & Infrastructure,Corporate Landlord Utility Costs,Energy Costs,23100,Electricity,03/09/2012,3301594049,-3980.17,Npower Ltd
http://statistics.data.gov.uk/id/local-authority/38,Oxfordshire County Council,Growth & Infrastructure,Corporate Landlord Utility Costs,Energy Costs,23100,Electricity,03/09/2012,3301594030,9144.55,Npower Ltd
http://statistics.data.gov.uk/id/local-authority/38,Oxfordshire County Council,Growth & Infrastructure,Corporate Landlord Utility Costs,Energy Costs,23100,Electricity,03/09/2012,3301594052,-9144.55,Npower Ltd
http://statistics.data.gov.uk/id/local-authority/38,Oxfordshire County Council,Growth & Infrastructure,Corporate Landlord Utility Costs,Energy Costs,23100,Electricity,03/09/2012,3301594029,3303.87,Npower Ltd
http://statistics.data.gov.uk/id/local-authority/38,Oxfordshire County Council,Growth & Infrastructure,Corporate Landlord Utility Costs,Energy Costs,23100,Electricity,03/09/2012,3301594053,-3303.87,Npower Ltd
http://statistics.data.gov.uk/id/local-authority/38,Oxfordshire County Council,Growth & Infrastructure,Corporate Landlord Utility Costs,Energy Costs,23100,Electricity,03/09/2012,3301594028,8030.67,Npower Ltd
http://statistics.data.gov.uk/id/local-authority/38,Oxfordshire County Council,Growth & Infrastructure,Corporate Landlord Utility Costs,Energy Costs,23100,Electricity,03/09/2012,3301594054,-8030.67,Npower Ltd
http://statistics.data.gov.uk/id/local-authority/38,Oxfordshire County Council,Growth & Infrastructure,Corporate Landlord Utility Costs,Energy Costs,23100,Electricity,03/09/2012,3301594026,5507.45,Npower Ltd
http://statistics.data.gov.uk/id/local-authority/38,Oxfordshire County Council,Growth & Infrastructure,Corporate Landlord Utility Costs,Energy Costs,23100,Electricity,03/09/2012,3301594056,-5507.45,Npower Ltd
http://statistics.data.gov.uk/id/local-authority/38,Oxfordshire County Council,Growth & Infrastructure,Corporate Landlord Utility Costs,Energy Costs,23100,Electricity,03/09/2012,3301594025,2142.94,Npower Ltd
http://statistics.data.gov.uk/id/local-authority/38,Oxfordshire County Council,Growth & Infrastructure,Corporate Landlord Utility Costs,Energy Costs,23100,Electricity,03/09/2012,3301594057,-2142.94,Npower Ltd
http://statistics.data.gov.uk/id/local-authority/38,Oxfordshire County Council,Growth & Infrastructure,Corporate Landlord Utility Costs,Energy Costs,23100,Electricity,03/09/2012,7000436570,2142.94,Npower Ltd
http://statistics.data.gov.uk/id/local-authority/38,Oxfordshire County Council,Growth & Infrastructure,Corporate Landlord Utility Costs,Energy Costs,23100,Electricity,03/09/2012,7000436571,5507.45,Npower Ltd
http://statistics.data.gov.uk/id/local-authority/38,Oxfordshire County Council,Growth & Infrastructure,Corporate Landlord Utility Costs,Energy Costs,23100,Electricity,03/09/2012,7000436572,8030.67,Npower Ltd
http://statistics.data.gov.uk/id/local-authority/38,Oxfordshire County Council,Growth & Infrastructure,Corporate Landlord Utility Costs,Energy Costs,23100,Electricity,03/09/2012,7000436573,3303.87,Npower Ltd
http://statistics.data.gov.uk/id/local-authority/38,Oxfordshire County Council,Growth & Infrastructure,Corporate Landlord Utility Costs,Energy Costs,23100,Electricity,03/09/2012,7000436574,9144.55,Npower Ltd
http://statistics.data.gov.uk/id/local-authority/38,Oxfordshire County Council,Growth & Infrastructure,Corporate Landlord Utility Costs,Energy Costs,23100,Electricity,03/09/2012,7000436575,3980.17,Npower Ltd
http://statistics.data.gov.uk/id/local-authority/38,Oxfordshire County Council,Growth & Infrastructure,Corporate Landlord Utility Costs,Energy Costs,23100,Electricity,03/09/2012,7000436576,3102.29,Npower Ltd
http://statistics.data.gov.uk/id/local-authority/38,Oxfordshire County Council,Growth & Infrastructure,Corporate Landlord Utility Costs,Energy Costs,23100,Electricity,03/09/2012,7000436577,639.01,Npower Ltd
http://statistics.data.gov.uk/id/local-authority/38,Oxfordshire County Council,Growth & Infrastructure,Witney Resource Centre,Energy Costs,23100,Electricity,14/09/2012,7000442989,601.84,Npower Ltd
http://statistics.data.gov.uk/id/local-authority/38,Oxfordshire County Council,Growth & Infrastructure,Corporate Landlord Utility Costs,Energy Costs,23100,Electricity,14/09/2012,7000442990,705.28,Npower Ltd
http://statistics.data.gov.uk/id/local-authority/38,Oxfordshire County Council,Education & Early Intervention,East St Ctr-Premises,Energy Costs,23100,Electricity,14/09/2012,7000443008,473.7,Npower Ltd
http://statistics.data.gov.uk/id/local-authority/38,Oxfordshire County Council,Education & Early Intervention,East St Ctr-Premises,Energy Costs,23100,Electricity,14/09/2012,7000443009,489.49,Npower Ltd
http://statistics.data.gov.uk/id/local-authority/38,Oxfordshire County Council,Education & Early Intervention,East St Ctr-Premises,Energy Costs,23100,Electricity,14/09/2012,7000443010,504.66,Npower Ltd
http://statistics.data.gov.uk/id/local-authority/38,Oxfordshire County Council,Highways & Transport,Bridges General,Energy Costs,23100,Electricity,14/09/2012,7000443012,936.21,Npower Ltd
http://statistics.data.gov.uk/id/local-authority/38,Oxfordshire County Council,Social & Community Services,Redlands and St Johns DTS,Energy Costs,23100,Electricity,14/09/2012,7000443016,518.74,Npower Ltd
http://statistics.data.gov.uk/id/local-authority/38,Oxfordshire County Council,Growth & Infrastructure,Corporate Landlord Utility Costs,Energy Costs,23100,Electricity,14/09/2012,7000443018,507.38,Npower Ltd
http://statistics.data.gov.uk/id/local-authority/38,Oxfordshire County Council,Growth & Infrastructure,Corporate Landlord Utility Costs,Energy Costs,23100,Electricity,14/09/2012,7000443019,490.92,Npower Ltd
http://statistics.data.gov.uk/id/local-authority/38,Oxfordshire County Council,Growth & Infrastructure,Corporate Landlord Utility Costs,Energy Costs,23100,Electricity,14/09/2012,7000443020,507.38,Npower Ltd
http://statistics.data.gov.uk/id/local-authority/38,Oxfordshire County Council,Growth & Infrastructure,Corporate Landlord Utility Costs,Energy Costs,23100,Electricity,14/09/2012,7000443021,490.92,Npower Ltd
http://statistics.data.gov.uk/id/local-authority/38,Oxfordshire County Council,Growth & Infrastructure,Corporate Landlord Utility Costs,Energy Costs,23100,Electricity,14/09/2012,7000443022,497.54,Npower Ltd
http://statistics.data.gov.uk/id/local-authority/38,Oxfordshire County Council,Growth & Infrastructure,Corporate Landlord Utility Costs,Energy Costs,23100,Electricity,14/09/2012,7000443036,1345.33,Npower Ltd
http://statistics.data.gov.uk/id/local-authority/38,Oxfordshire County Council,Highways & Transport,Highways General,Energy Costs,23100,Electricity,14/09/2012,7000443037,530.09,Npower Ltd
http://statistics.data.gov.uk/id/local-authority/38,Oxfordshire County Council,Growth & Infrastructure,Corporate Landlord Utility Costs,Energy Costs,23100,Electricity,14/09/2012,7000443042,915.1,Npower Ltd
http://statistics.data.gov.uk/id/local-authority/38,Oxfordshire County Council,Growth & Infrastructure,Corporate Landlord Utility Costs,Energy Costs,23100,Electricity,14/09/2012,7000443050,1056.8,Npower Ltd
http://statistics.data.gov.uk/id/local-authority/38,Oxfordshire County Council,Quality & Compliance,The Harlow Centre,Energy Costs,23100,Electricity,14/09/2012,7000443058,603.13,Npower Ltd
http://statistics.data.gov.uk/id/local-authority/38,Oxfordshire County Council,Growth & Infrastructure,Corporate Landlord Utility Costs,Energy Costs,23100,Electricity,14/09/2012,7000443063,1253.22,Npower Ltd
http://statistics.data.gov.uk/id/local-authority/38,Oxfordshire County Council,Growth & Infrastructure,Corporate Landlord Utility Costs,Energy Costs,23100,Electricity,14/09/2012,7000443066,1227.72,Npower Ltd
http://statistics.data.gov.uk/id/local-authority/38,Oxfordshire County Council,Growth & Infrastructure,Corporate Landlord Utility Costs,Energy Costs,23100,Electricity,14/09/2012,7000443085,461.85,Npower Ltd
http://statistics.data.gov.uk/id/local-authority/38,Oxfordshire County Council,Growth & Infrastructure,Corporate Landlord Utility Costs,Energy Costs,23100,Electricity,14/09/2012,7000443087,416.77,Npower Ltd
http://statistics.data.gov.uk/id/local-authority/38,Oxfordshire County Council,Growth & Infrastructure,Corporate Landlord Utility Costs,Energy Costs,23100,Electricity,14/09/2012,7000443121,489.38,Npower Ltd
http://statistics.data.gov.uk/id/local-authority/38,Oxfordshire County Council,Schools,Abbey Sch Swim Pool,Energy Costs,23100,Electricity,14/09/2012,7000443127,1628.49,Npower Ltd
http://statistics.data.gov.uk/id/local-authority/38,Oxfordshire County Council,Schools,B/B-Leys Swim Pool,Energy Costs,23100,Electricity,14/09/2012,7000443137,641.89,Npower Ltd
http://statistics.data.gov.uk/id/local-authority/38,Oxfordshire County Council,Growth & Infrastructure,Surplus Property,Energy Costs,23100,Electricity,14/09/2012,7000443174,1159.43,Npower Ltd
http://statistics.data.gov.uk/id/local-authority/38,Oxfordshire County Council,Growth & Infrastructure,Corporate Landlord Utility Costs,Energy Costs,23100,Electricity,14/09/2012,7000443175,433.62,Npower Ltd
http://statistics.data.gov.uk/id/local-authority/38,Oxfordshire County Council,Growth & Infrastructure,Corporate Landlord Utility Costs,Energy Costs,23100,Electricity,14/09/2012,7000443194,478.62,Npower Ltd
http://statistics.data.gov.uk/id/local-authority/38,Oxfordshire County Council,Growth & Infrastructure,Corporate Landlord Utility Costs,Energy Costs,23100,Electricity,14/09/2012,7000443196,1007.97,Npower Ltd
http://statistics.data.gov.uk/id/local-authority/38,Oxfordshire County Council,Highways & Transport,Thornhill P & R,Energy Costs,23100,Electricity,14/09/2012,7000443197,882.74,Npower Ltd
http://statistics.data.gov.uk/id/local-authority/38,Oxfordshire County Council,Highways & Transport,Water Eaton P & R (North Oxford),Energy Costs,23100,Electricity,14/09/2012,7000443198,947.73,Npower Ltd
http://statistics.data.gov.uk/id/local-authority/38,Oxfordshire County Council,Growth & Infrastructure,Corporate Landlord Utility Costs,Energy Costs,23100,Electricity,14/09/2012,7000443199,1378.3,Npower Ltd
http://statistics.data.gov.uk/id/local-authority/38,Oxfordshire County Council,Growth & Infrastructure,Corporate Landlord Utility Costs,Energy Costs,23100,Electricity,14/09/2012,7000443200,827.24,Npower Ltd
http://statistics.data.gov.uk/id/local-authority/38,Oxfordshire County Council,Growth & Infrastructure,Corporate Landlord Utility Costs,Energy Costs,23100,Electricity,14/09/2012,7000443201,719.18,Npower Ltd
http://statistics.data.gov.uk/id/local-authority/38,Oxfordshire County Council,Growth & Infrastructure,Corporate Landlord Utility Costs,Energy Costs,23100,Electricity,14/09/2012,7000443203,418.16,Npower Ltd
http://statistics.data.gov.uk/id/local-authority/38,Oxfordshire County Council,Growth & Infrastructure,Corporate Landlord Utility Costs,Energy Costs,23100,Electricity,14/09/2012,7000443204,594.69,Npower Ltd
http://statistics.data.gov.uk/id/local-authority/38,Oxfordshire County Council,Education & Early Intervention,Kilvrough Manor,Energy Costs,23100,Electricity,14/09/2012,7000443226,469.23,Npower Ltd
http://statistics.data.gov.uk/id/local-authority/38,Oxfordshire County Council,Growth & Infrastructure,Corporate Landlord Utility Costs,Energy Costs,23100,Electricity,14/09/2012,7000443228,3338.23,Npower Ltd
http://statistics.data.gov.uk/id/local-authority/38,Oxfordshire County Council,Growth & Infrastructure,Corporate Landlord Utility Costs,Energy Costs,23100,Electricity,14/09/2012,7000443234,2237.82,Npower Ltd
http://statistics.data.gov.uk/id/local-authority/38,Oxfordshire County Council,Growth & Infrastructure,Corporate Landlord Utility Costs,Energy Costs,23100,Electricity,14/09/2012,7000443236,676.37,Npower Ltd
http://statistics.data.gov.uk/id/local-authority/38,Oxfordshire County Council,Growth & Infrastructure,Corporate Landlord Utility Costs,Energy Costs,23100,Electricity,14/09/2012,7000443239,511.44,Npower Ltd
http://statistics.data.gov.uk/id/local-authority/38,Oxfordshire County Council,Growth & Infrastructure,Corporate Landlord Utility Costs,Energy Costs,23100,Electricity,14/09/2012,7000443241,472.49,Npower Ltd
http://statistics.data.gov.uk/id/local-authority/38,Oxfordshire County Council,Growth & Infrastructure,Corporate Landlord Utility Costs,Energy Costs,23100,Electricity,14/09/2012,7000443254,479.63,Npower Ltd
http://statistics.data.gov.uk/id/local-authority/38,Oxfordshire County Council,Education & Early Intervention,East St Ctr-Premises,Energy Costs,23100,Electricity,14/09/2012,7000443257,-644.65,Npower Ltd
http://statistics.data.gov.uk/id/local-authority/38,Oxfordshire County Council,Education & Early Intervention,East St Ctr-Premises,Energy Costs,23100,Electricity,14/09/2012,7000443258,-666.15,Npower Ltd
http://statistics.data.gov.uk/id/local-authority/38,Oxfordshire County Council,Education & Early Intervention,East St Ctr-Premises,Energy Costs,23100,Electricity,14/09/2012,7000443259,-686.78,Npower Ltd
http://statistics.data.gov.uk/id/local-authority/38,Oxfordshire County Council,Growth & Infrastructure,Corporate Landlord Utility Costs,Energy Costs,23100,Electricity,14/09/2012,7000443260,-697.74,Npower Ltd
http://statistics.data.gov.uk/id/local-authority/38,Oxfordshire County Council,Growth & Infrastructure,Corporate Landlord Utility Costs,Energy Costs,23100,Electricity,14/09/2012,7000443261,-702.24,Npower Ltd
http://statistics.data.gov.uk/id/local-authority/38,Oxfordshire County Council,Growth & Infrastructure,Corporate Landlord Utility Costs,Energy Costs,23100,Electricity,14/09/2012,7000443262,-725.75,Npower Ltd
http://statistics.data.gov.uk/id/local-authority/38,Oxfordshire County Council,Growth & Infrastructure,Corporate Landlord Utility Costs,Energy Costs,23100,Electricity,14/09/2012,7000443263,-702.24,Npower Ltd
http://statistics.data.gov.uk/id/local-authority/38,Oxfordshire County Council,Highways & Transport,Electrical Energy,Private Contractors,56700,Electrical Main Energy,27/09/2012,3301601457,22828.21,Npower Ltd
http://statistics.data.gov.uk/id/local-authority/38,Oxfordshire County Council,Highways & Transport,Electrical Energy,Private Contractors,56700,Electrical Main Energy,27/09/2012,3301603158,148474.77,Npower Ltd
http://statistics.data.gov.uk/id/local-authority/38,Oxfordshire County Council,Highways & Transport,Public Transport Development Plan,Private Contractors,56700,Electrical Main Energy,27/09/2012,3301603158,447.72,Npower Ltd
http://statistics.data.gov.uk/id/local-authority/38,Oxfordshire County Council,Highways & Transport,Electrical Energy,Private Contractors,56700,Electrical Main Energy,27/09/2012,3301603159,5162.88,Npower Ltd
http://statistics.data.gov.uk/id/local-authority/38,Oxfordshire County Council,Growth & Infrastructure,Corporate Landlord Utility Costs,Energy Costs,23100,Electricity,28/09/2012,7000446477,2533.1,Npower Ltd
http://statistics.data.gov.uk/id/local-authority/38,Oxfordshire County Council,Growth & Infrastructure,Corporate Landlord Utility Costs,Energy Costs,23100,Electricity,28/09/2012,7000446478,5850.66,Npower Ltd
http://statistics.data.gov.uk/id/local-authority/38,Oxfordshire County Council,Growth & Infrastructure,Corporate Landlord Utility Costs,Energy Costs,23100,Electricity,28/09/2012,7000446479,8038.81,Npower Ltd
http://statistics.data.gov.uk/id/local-authority/38,Oxfordshire County Council,Growth & Infrastructure,Corporate Landlord Utility Costs,Energy Costs,23100,Electricity,28/09/2012,7000446480,3618.05,Npower Ltd
http://statistics.data.gov.uk/id/local-authority/38,Oxfordshire County Council,Growth & Infrastructure,Corporate Landlord Utility Costs,Energy Costs,23100,Electricity,28/09/2012,7000446481,9144.74,Npower Ltd
http://statistics.data.gov.uk/id/local-authority/38,Oxfordshire County Council,Growth & Infrastructure,Corporate Landlord Utility Costs,Energy Costs,23100,Electricity,28/09/2012,7000446482,3864.47,Npower Ltd
http://statistics.data.gov.uk/id/local-authority/38,Oxfordshire County Council,Growth & Infrastructure,Corporate Landlord Utility Costs,Energy Costs,23100,Electricity,28/09/2012,7000446483,3141.93,Npower Ltd
http://statistics.data.gov.uk/id/local-authority/38,Oxfordshire County Council,Growth & Infrastructure,Corporate Landlord Utility Costs,Energy Costs,23100,Electricity,28/09/2012,7000446484,654.14,Npower Ltd
http://statistics.data.gov.uk/id/local-authority/38,Oxfordshire County Council,SCS Other Cost Centres,Control Account Trojan Residential Care,Balance Sheet General,B2040,ABACUS Accounts Payable Control A/c,13/09/2012,7000440003,10916.87,Featherton House
http://statistics.data.gov.uk/id/local-authority/38,Oxfordshire County Council,Children's Social Care,Aim Higher Funding,Voluntary Associations,55402,Service Agreements - Family Support,26/09/2012,3350227551,2000,OxFSN
http://statistics.data.gov.uk/id/local-authority/38,Oxfordshire County Council,SCS Other Cost Centres,Control Account Trojan Residential Care,Balance Sheet General,B2040,ABACUS Accounts Payable Control A/c,13/09/2012,7000439946,1514.92,Castle Keep Nursing Home
http://statistics.data.gov.uk/id/local-authority/38,Oxfordshire County Council,SCS Other Cost Centres,Control Account Trojan Residential Care,Balance Sheet General,B2040,ABACUS Accounts Payable Control A/c,13/09/2012,7000440065,2469.85,Laburnum Court Care Home
http://statistics.data.gov.uk/id/local-authority/38,Oxfordshire County Council,Education & Early Intervention,Banbury SEN Trans,Contract Hire/Leasing,33101,Home to School Trans,03/09/2012,7000436566,653.85,Quality Care & Travel
http://statistics.data.gov.uk/id/local-authority/38,Oxfordshire County Council,SCS Other Cost Centres,Control Account Trojan Residential Care,Balance Sheet General,B2040,ABACUS Accounts Payable Control A/c,13/09/2012,7000440028,1429.37,Golden Slumbers Ltd -
http://statistics.data.gov.uk/id/local-authority/38,Oxfordshire County Council,SCS Other Cost Centres,Control Account Trojan Residential Care,Balance Sheet General,B2040,ABACUS Accounts Payable Control A/c,13/09/2012,7000439917,1460.14,Beech Court Care Centre
http://statistics.data.gov.uk/id/local-authority/38,Oxfordshire County Council,SCS Other Cost Centres,Control Account Trojan Residential Care,Balance Sheet General,B2040,ABACUS Accounts Payable Control A/c,13/09/2012,7000440081,7833.3,Lonsdale Midland Ltd
http://statistics.data.gov.uk/id/local-authority/38,Oxfordshire County Council,SCS Other Cost Centres,Control Account Trojan Residential Care,Balance Sheet General,B2040,ABACUS Accounts Payable Control A/c,13/09/2012,7000440171,10688.57,Penhurst School
http://statistics.data.gov.uk/id/local-authority/38,Oxfordshire County Council,SCS Other Cost Centres,Control Account Trojan Residential Care,Balance Sheet General,B2040,ABACUS Accounts Payable Control A/c,13/09/2012,7000440267,3648.26,REDACTED PERSONAL DATA
http://statistics.data.gov.uk/id/local-authority/38,Oxfordshire County Council,SCS Other Cost Centres,Control Account Trojan Residential Care,Balance Sheet General,B2040,ABACUS Accounts Payable Control A/c,13/09/2012,7000440077,2207.14,LIME TREE COURT
http://statistics.data.gov.uk/id/local-authority/38,Oxfordshire County Council,SCS Other Cost Centres,Control Account Trojan Residential Care,Balance Sheet General,B2040,ABACUS Accounts Payable Control A/c,13/09/2012,7000440182,1899.86,RED HOUSE NURSING HOME
http://statistics.data.gov.uk/id/local-authority/38,Oxfordshire County Council,SCS Other Cost Centres,Control Account Trojan Residential Care,Balance Sheet General,B2040,ABACUS Accounts Payable Control A/c,13/09/2012,7000439966,2079,CHILWORTH HOUSE RESIDENTIAL HOME
http://statistics.data.gov.uk/id/local-authority/38,Oxfordshire County Council,SCS Other Cost Centres,Control Account Trojan Residential Care,Balance Sheet General,B2040,ABACUS Accounts Payable Control A/c,13/09/2012,7000440342,2452.16,The Rhallt Care Home
http://statistics.data.gov.uk/id/local-authority/38,Oxfordshire County Council,SCS Other Cost Centres,Control Account Trojan Residential Care,Balance Sheet General,B2040,ABACUS Accounts Payable Control A/c,13/09/2012,7000440053,7920,Inspiration Care
http://statistics.data.gov.uk/id/local-authority/38,Oxfordshire County Council,SCS Other Cost Centres,Control Account Trojan Residential Care,Balance Sheet General,B2040,ABACUS Accounts Payable Control A/c,13/09/2012,7000440280,1783.37,Southlands
http://statistics.data.gov.uk/id/local-authority/38,Oxfordshire County Council,Children's Social Care,Aim Higher Funding,Contract Hire/Leasing,33300,Transport (General),07/09/2012,7000438511,2100,Tex Coaches
http://statistics.data.gov.uk/id/local-authority/38,Oxfordshire County Council,Education & Early Intervention,Zone 1 - North,Contract Hire/Leasing,33101,Home to School Trans,19/09/2012,7000443721,871.75,Tex Coaches
http://statistics.data.gov.uk/id/local-authority/38,Oxfordshire County Council,Education & Early Intervention,Zone 1 - North,Contract Hire/Leasing,33101,Home to School Trans,19/09/2012,7000443722,871.75,Tex Coaches
http://statistics.data.gov.uk/id/local-authority/38,Oxfordshire County Council,Education & Early Intervention,Zone 1 - North,Contract Hire/Leasing,33101,Home to School Trans,19/09/2012,7000443723,871.75,Tex Coaches
http://statistics.data.gov.uk/id/local-authority/38,Oxfordshire County Council,Education & Early Intervention,Zone 1 - North,Contract Hire/Leasing,33101,Home to School Trans,19/09/2012,7000443726,523.05,Tex Coaches
http://statistics.data.gov.uk/id/local-authority/38,Oxfordshire County Council,Education & Early Intervention,Zone 1 - North,Contract Hire/Leasing,33101,Home to School Trans,19/09/2012,7000443727,523.05,Tex Coaches
http://statistics.data.gov.uk/id/local-authority/38,Oxfordshire County Council,Education & Early Intervention,Zone 1 - North,Contract Hire/Leasing,33101,Home to School Trans,19/09/2012,7000443728,523.05,Tex Coaches
http://statistics.data.gov.uk/id/local-authority/38,Oxfordshire County Council,Education & Early Intervention,Zone 1 - North,Contract Hire/Leasing,33101,Home to School Trans,25/09/2012,7000446470,871.75,Tex Coaches
http://statistics.data.gov.uk/id/local-authority/38,Oxfordshire County Council,Education & Early Intervention,Zone 1 - North,Contract Hire/Leasing,33101,Home to School Trans,25/09/2012,7000446471,871.75,Tex Coaches
http://statistics.data.gov.uk/id/local-authority/38,Oxfordshire County Council,Education & Early Intervention,Zone 1 - North,Contract Hire/Leasing,33101,Home to School Trans,25/09/2012,7000446472,871.75,Tex Coaches
http://statistics.data.gov.uk/id/local-authority/38,Oxfordshire County Council,SCS Other Cost Centres,Control Account Trojan Residential Care,Balance Sheet General,B2040,ABACUS Accounts Payable Control A/c,13/09/2012,7000439964,1889.31,Chichester Court Care Home
http://statistics.data.gov.uk/id/local-authority/38,Oxfordshire County Council,SCS Pooled Budgets,LD Team budget (CMPB) - City,Contract Hire/Leasing,33300,Transport (General),18/09/2012,7000443700,645,Metro Taxis Oxford
http://statistics.data.gov.uk/id/local-authority/38,Oxfordshire County Council,SCS Pooled Budgets,LD Team budget (CMPB) - City,Contract Hire/Leasing,33300,Transport (General),18/09/2012,7000443701,630,Metro Taxis Oxford
http://statistics.data.gov.uk/id/local-authority/38,Oxfordshire County Council,SCS Pooled Budgets,OP Pool Continuing Care Home Support,Other Agency and Contracted Services,57302,Home Support (Ext) Continuing Care,06/09/2012,3350227156,1319.5,Active Assistance
http://statistics.data.gov.uk/id/local-authority/38,Oxfordshire County Council,SCS Pooled Budgets,PD Pool Continuing Care Home Support,Other Agency and Contracted Services,57302,Home Support (Ext) Continuing Care,06/09/2012,3350227160,1167.25,Active Assistance
http://statistics.data.gov.uk/id/local-authority/38,Oxfordshire County Council,SCS Pooled Budgets,PD Pool Continuing Care Home Support,Other Agency and Contracted Services,57302,Home Support (Ext) Continuing Care,10/09/2012,3350227154,1167.25,Active Assistance
http://statistics.data.gov.uk/id/local-authority/38,Oxfordshire County Council,SCS Pooled Budgets,PD Pool Continuing Care Home Support,Other Agency and Contracted Services,57302,Home Support (Ext) Continuing Care,17/09/2012,3350227212,1167.25,Active Assistance
http://statistics.data.gov.uk/id/local-authority/38,Oxfordshire County Council,SCS Pooled Budgets,PD Pool Continuing Care Home Support,Other Agency and Contracted Services,57302,Home Support (Ext) Continuing Care,24/09/2012,3350227325,1167.25,Active Assistance
http://statistics.data.gov.uk/id/local-authority/38,Oxfordshire County Council,SCS Pooled Budgets,PD Pool Continuing Care Home Support,Other Agency and Contracted Services,57302,Home Support (Ext) Continuing Care,26/09/2012,3301605407,2290,Active Assistance
http://statistics.data.gov.uk/id/local-authority/38,Oxfordshire County Council,SCS Other Cost Centres,Control Account Trojan Residential Care,Balance Sheet General,B2040,ABACUS Accounts Payable Control A/c,13/09/2012,7000440212,2808.19,REDACTED PERSONAL DATA
http://statistics.data.gov.uk/id/local-authority/38,Oxfordshire County Council,Education & Early Intervention,Leading the EYFS (Q&I),Expenses,46403,Course / Tuition Fee,28/09/2012,3301602198,3165,Child First Nursery Ltd
